Workbook

Sheet Rozcestí
C1: Ověřovací nástroj kvality PENB

Sheet 1. PENB
A1: Krok 1. | C1: Krok 2. | D1: Krok 3. | F1: Krok 4. | H1: Krok 5. | J1: Krok 6.
A2: ZDE
C3: Základní parametry z PENB | H3: Zpět | I3: Pokračovat | J3: Nápověda
C5: Účel zpracování průkazu
C10: Základní informace o hodnocené budově
C11: Geometrické charakteristiky budovy
C12: Parametr | H12: jednotky | I12: hodnota
C13: Objem budovy V (objem částí budovy s upravovaným vnitřním prostředím vymezený vnějšími povrchy konstrukcí obálky budovy) | H13: [m3]
C16: Celková plocha obálky budovy A (součet vnějších ploch konstrukcí ohraničujících objem budovy V) | H16: [m2] | I16: =D31 -> 0
C19: Objemový faktor tvaru budovy A/V | H19: [m2/m3] | I19: =I16/I13 -> 
C20: Celková energeticky vztažná plocha budovy Ac | H20: [m2]
C22: A) stavební prvky a konstrukce
C23: a.1) požadavky na součinitel prostupu tepla
C24: Konstrukce obálky budovy | D24: Plocha | E24: Součinitel prostupu tepla | H24: Činitel tepl. redukce bj | I24: Měrná ztráta prostupem tepla
E25: Vypočtená hodnota | F25: Referenční hodnota | G25: Splněno
D26: Aj | E26: Uj | F26: UN,rc,j | H26: bj | I26: HT,j
D27: [m2] | E27: [W/(m2.K)] | F27: [W/(m2.K)] | G27: [ano/ne] | H27: [-] | I27: [W/K]
C31: Celkem | E31: x | F31: x | G31: x | H31: x

Sheet 2. Konstrukce
B1: Krok 1. | D1: Krok 2. | E1: Krok 3. | F1: Krok 4. | G1: Krok 5.
B2: =IF(SUM('1. PENB'!I13:I15)>0,IF(SUM('1. PENB'!I20)>0,IF(SUM('1. PENB'!D31)>0,IF(SUM('1. PENB'!I31)>0,"Zadáno","Nezadáno"),"Nezadáno"),"Nezadáno"),"Nezadáno") -> Nezadáno | D2: ZDE
C3: Popis stavebních konstrukcí | E3: Zpět | F3: Pokračovat | G3: Nápověda
C5: Obvodové stěny mezi vytápěnou částí a venkovním prostředím | D5: Čistá plocha bez výplní (m2) | E5: Materiál stěny | F5: Existující zateplení (cm) | G5: Uvažované U (W/m2.K)
C6: Obvodová stěna 1 | G6: =IF(D6>0,Vypocet!I13,"") -> 
C7: Obvodová stěna 2 | G7: =IF(D7>0,Vypocet!I14,"") -> 
C8: Obvodová stěna 3 | G8: =IF(D8>0,Vypocet!I15,"") -> 
C9: Obvodová stěna 4 | G9: =IF(D9>0,Vypocet!I16,"") -> 
C11: Obvodové stěny mezi vytápěnou částí a venkovním prostředím | D11: Plocha oken a dveří (m2) | E11: Typ výplňové konstrukce | F11: Poznámka | G11: Uvažované U (W/m2.K)
C12: Okna a dveře 1 | G12: =IF(D12>0,Vypocet!I18,"") -> 
C13: Okna a dveře 2 | G13: =IF(D13>0,Vypocet!I19,"") -> 
C14: Okna a dveře 3 | G14: =IF(D14>0,Vypocet!I20,"") -> 
C15: Okna a dveře 4 | G15: =IF(D15>0,Vypocet!I21,"") -> 
C16: Střešní okna | G16: =IF(D16>0,Vypocet!I22,"") -> 
C18: Podlahy | D18: Celková plocha (m2) | E18: Typ podlahy | F18: Tloušťka izolace v podlaze (cm) | G18: Uvažované U (W/m2.K)
C19: Podlaha na terénu 1 | G19: =IF(D19>0,Vypocet!I24,"") -> 
C20: Podlaha na terénu 2 | G20: =IF(D20>0,Vypocet!I25,"") -> 
C22: Podlaha nad nevytápěným sklepem 1 | G22: =IF(D22>0,Vypocet!I27,"") -> 
C23: Podlaha nad nevytápěným sklepem 2 | G23: =IF(D23>0,Vypocet!I28,"") -> 
C25: Střechy a stropy | D25: Celková plocha (m2) | E25: Typ střechy | F25: Existující dodatečná tepelná izolace (cm) | G25: Uvažované U (W/m2.K)
C26: Střecha plochá 1 | G26: =IF(D26>0,Vypocet!I30,"") -> 
C27: Střecha plochá 2 | G27: =IF(D27>0,Vypocet!I31,"") -> 
C29: Střecha šikmá 1 | G29: =IF(D29>0,Vypocet!I33,"") -> 
C30: Střecha šikmá 2 | G30: =IF(D30>0,Vypocet!I34,"") -> 
C32: Strop pod půdou 1 | G32: =IF(D32>0,Vypocet!I36,"") -> 
C33: Strop pod půdou 2 | G33: =IF(D33>0,Vypocet!I37,"") -> 
C35: Ostatní | D35: Celková plocha (m2) | E35: Materiál | F35: Existující dodatečná tepelná izolace (cm) | G35: Uvažované U (W/m2.K)
C36: Stěna k nevytápěnému prostoru 1 | G36: =IF(D36>0,Vypocet!I39,"") -> 
C37: Stěna k nevytápěnému prostoru 2 | G37: =IF(D37>0,Vypocet!I40,"") -> 
C38: Stěna ke stejně vytápěnému prostoru 1 | G38: =IF(D38>0,Vypocet!I41,"") -> 
C39: Stěna ke stejně vytápěnému prostoru 2 | G39: =IF(D39>0,Vypocet!I42,"") -> 

Sheet 3. Geometrie
A1: Krok 1. | E1: Krok 2. | H1: Krok 3. | K1: Krok 4. | M1: Krok 5. | N1: Krok 6.
A2: =IF(SUM('1. PENB'!I13:I15)>0,IF(SUM('1. PENB'!I20)>0,IF(SUM('1. PENB'!D31)>0,IF(SUM('1. PENB'!I31)>0,"Zadáno","Nezadáno"),"Nezadáno"),"Nezadáno"),"Nezadáno") -> Nezadáno | E2: =IF(SUM('2. Konstrukce'!D6:D9)>0,IF(SUM('2. Konstrukce'!D12:D16)>0,IF(SUM('2. Konstrukce'!D19:D20,'2. Konstrukce'!D22:D23)>0,IF(SUM('2. Konstrukce'!D26:D27,'2. Konstrukce'!D29:D30,'2. Konstrukce'!D32:D33)>0,"Zadáno","Nezadáno"),"Nezadáno"),"Nezadáno"),"Nezadáno") -> Nezadáno | H2: ZDE
D3: Ostatní vstupy | K3: Zpět | L3: Pokračovat | M3: Nápověda
D5: Objem z vnějších rozměrů | G5: m3
D7: Počet vytápěných podlaží
D9: Pomocná kalkulačka pro základní tvar
D10: základní rozměry kontrolované budovy určené z vnějších rozměrů je nutné zadat vždy! | E10: a
E11: b
E12: c
E13: d
E14: e
E15: Výsledek | F15: =F10*F11*F12+F13*F14*F10+(F12-F13)*F10*F14 -> 0 | G15: m3

Sheet 4. Tepelně tech. parametry
A1: Krok 1. | E1: Krok 2. | I1: Krok 3. | O1: Krok 4. | R1: Krok 5. | U1: Krok 6.
A2: =IF(SUM('1. PENB'!I13:I15)>0,IF(SUM('1. PENB'!I20)>0,IF(SUM('1. PENB'!D31)>0,IF(SUM('1. PENB'!I31)>0,"Zadáno","Nezadáno"),"Nezadáno"),"Nezadáno"),"Nezadáno") -> Nezadáno | E2: =IF(SUM('2. Konstrukce'!D6:D9)>0,IF(SUM('2. Konstrukce'!D12:D16)>0,IF(SUM('2. Konstrukce'!D19:D20,'2. Konstrukce'!D22:D23)>0,IF(SUM('2. Konstrukce'!D26:D27,'2. Konstrukce'!D29:D30,'2. Konstrukce'!D32:D33)>0,"Zadáno","Nezadáno"),"Nezadáno"),"Nezadáno"),"Nezadáno") -> Nezadáno | I2: =IF('3. Geometrie'!F5>0,IF('3. Geometrie'!F7>0,IF('3. Geometrie'!F10>0,IF('3. Geometrie'!F11>0,IF('3. Geometrie'!F12>0,"Zadáno","Nezadáno"),"Nezadáno"),"Nezadáno"),"Nezadáno"),"Nezadáno") -> Nezadáno | O2: ZDE
C3: Základní parametry z PENB | F3: Zpět | G3: Pokračovat | I3: Nápověda | O3: Kontrolní hodnoty
C5: Základní informace o hodnocené budově | O5: Základní informace o kontrolní budově
C6: Geometrické charakteristiky budovy | O6: Geometrické charakteristiky budovy
C7: Parametr | H7: jednotky | I7: hodnota | O7: Parametr | T7: jednotky | U7: hodnota
C8: Objem budovy V (objem částí budovy s upravovaným vnitřním prostředím vymezený vnějšími povrchy konstrukcí obálky budovy) | H8: [m3] | I8: =SUM('1. PENB'!I13:I15) -> 0 | O8: Objem budovy V (objem částí budovy s upravovaným vnitřním prostředím vymezený vnějšími povrchy konstrukcí obálky budovy) | T8: [m3] | U8: ='3. Geometrie'!F5 -> 0
C11: Celková plocha obálky budovy A (součet vnějších ploch konstrukcí ohraničujících objem budovy V) | H11: [m2] | I11: =D30 -> 0 | O11: Celková plocha obálky budovy A (součet vnějších ploch konstrukcí ohraničujících objem budovy V) | T11: [m2] | U11: =Vypocet!J44 -> 0
C14: Objemový faktor tvaru budovy A/V | H14: [m2/m3] | I14: =I11/I8 ->  | O14: Objemový faktor tvaru budovy A/V | T14: [m2/m3] | U14: =U11/U8 -> 
C15: Celková energeticky vztažná plocha budovy Ac | H15: [m2] | I15: ='1. PENB'!I20 -> 0 | O15: Celková energeticky vztažná plocha budovy Ac | T15: [m2] | U15: =Vypocet!J51*Vypocet!J52 -> 0
C17: A) stavební prvky a konstrukce | O17: A) stavební prvky a konstrukce kontrolní budovy
C18: a.1) požadavky na součinitel prostupu tepla | O18: a.1) požadavky na součinitel prostupu tepla
C19: Konstrukce obálky budovy | D19: Plocha | E19: Součinitel prostupu tepla | H19: Činitel tepl. redukce bj | I19: Měrná ztráta prostupem tepla | O19: Konstrukce obálky budovy | P19: Plocha | Q19: Součinitel prostupu tepla | T19: Činitel tepl. redukce bj | U19: Měrná ztráta prostupem tepla
E20: Vypočtená hodnota | F20: Referenční hodnota | G20: Splněno | Q20: Vypočtená hodnota | R20: Referenční hodnota | S20: Splněno
D21: Aj | E21: Uj | F21: UN,rc,j | H21: bj | I21: HT,j | P21: Aj | Q21: Uj | R21: UN,rc,j | T21: bj | U21: HT,j
H22: bj | I22: HT,j | T22: bj | U22: HT,j
D23: [m2] | E23: [W/(m2.K)] | F23: [W/(m2.K)] | G23: [ano/ne] | H23: [-] | I23: [W/K] | P23: [m2] | Q23: [W/(m2.K)] | R23: [W/(m2.K)] | S23: [ano/ne] | T23: [-] | U23: [W/K]
C24: =CONCATENATE('1. PENB'!C28) ->  | O24: Obvodové zdivo | P24: =SUM(Vypocet!J13:J16) -> 0 | Q24: -- | R24: -- | S24: -- | T24: -- | U24: =SUM(Vypocet!L13:L16) -> 0
C25: =CONCATENATE('1. PENB'!C29) ->  | O25: Podlahy | P25: =SUM(Vypocet!J24:J25,Vypocet!J27:J28) -> 0 | Q25: -- | R25: -- | S25: -- | T25: -- | U25: =SUM(Vypocet!L24:L25,Vypocet!L27:L28) -> 0
C26: =CONCATENATE('1. PENB'!C30) ->  | O26: Střechy a stropy | P26: =SUM(Vypocet!J30:J31,Vypocet!J33:J34,Vypocet!J36:J37) -> 0 | Q26: -- | R26: -- | S26: -- | T26: -- | U26: =SUM(Vypocet!L30:L31,Vypocet!L33:L34,Vypocet!L36:L37) -> 0
C27: =CONCATENATE('1. PENB'!C31) -> Celkem | O27: Stěny k nevyt. prostoru | P27: =SUM(Vypocet!J39:J42) -> 0 | Q27: -- | R27: -- | S27: -- | T27: -- | U27: =SUM(Vypocet!L39:L42) -> 0
C28: =CONCATENATE('1. PENB'!C32) ->  | O28: Otvorová výplň | P28: =SUM(Vypocet!J18:J22) -> 0 | Q28: -- | R28: -- | S28: -- | T28: -- | U28: =SUM(Vypocet!L18:L22) -> 0
C29: =CONCATENATE('1. PENB'!C33) ->  | O29: Tepelné mosty | P29: -- | Q29: -- | R29: -- | S29: -- | T29: -- | U29: =SUM(Vypocet!L45) -> 0
C30: Celkem | D30: =SUM('1. PENB'!D31) -> 0 | E30: x | F30: x | G30: x | H30: x | I30: =SUM('1. PENB'!I31) -> 0 | O30: Celkem | P30: =SUM(P24:P29) -> 0 | Q30: x | R30: x | S30: x | T30: x | U30: =Vypocet!L46 -> 0
C33: Průměrný součinitel prostupu tepla budovy, Uem | H33: =IF(I11=0,"",I30/I11) ->  | I33: [W/(m2K)] | O33: Průměrný součinitel prostupu tepla budovy, Uem | T33: =U30/U11 ->  | U33: [W/(m2K)]
C35: pozn: spočteno z výše zadaných hodnot

Sheet 5. Technické systémy
B1: Krok 1. | F1: Krok 2. | G1: Krok 3. | I1: Krok 4. | J1: Krok 5. | Q1: Krok 6.
B2: =IF(SUM('1. PENB'!I13:I15)>0,IF(SUM('1. PENB'!I20)>0,IF(SUM('1. PENB'!D31)>0,IF(SUM('1. PENB'!I31)>0,"Zadáno","Nezadáno"),"Nezadáno"),"Nezadáno"),"Nezadáno") -> Nezadáno | F2: =IF(SUM('2. Konstrukce'!D6:D9)>0,IF(SUM('2. Konstrukce'!D12:D16)>0,IF(SUM('2. Konstrukce'!D19:D20,'2. Konstrukce'!D22:D23)>0,IF(SUM('2. Konstrukce'!D26:D27,'2. Konstrukce'!D29:D30,'2. Konstrukce'!D32:D33)>0,"Zadáno","Nezadáno"),"Nezadáno"),"Nezadáno"),"Nezadáno") -> Nezadáno | G2: =IF('3. Geometrie'!F5>0,IF('3. Geometrie'!F7>0,IF('3. Geometrie'!F10>0,IF('3. Geometrie'!F11>0,IF('3. Geometrie'!F12>0,"Zadáno","Nezadáno"),"Nezadáno"),"Nezadáno"),"Nezadáno"),"Nezadáno") -> Nezadáno | I2: =IF(SUM('4. Tepelně tech. parametry'!U8:U10)>0,IF(SUM('4. Tepelně tech. parametry'!U11:U13)>0,IF(SUM('4. Tepelně tech. parametry'!U15)>0,IF(SUM('4. Tepelně tech. parametry'!U30)>0,"Zadáno","Nezadáno"),"Nezadáno"),"Nezadáno"),"Nezadáno") -> Nezadáno | J2: ZDE
C3: Hodnoty pro technické systémy z PENB | M3: Zpět | Q3: Pokračovat | U3: Nápověda
C5: B) technické systémy
C6: b.1.a) vytápění
C7: Hodnocená budova/zóna | F7: Typ zdroje | I7: Energo- nositel | J7: Pokrytí dílčí potřeby energie na vytápění | N7: Jmenovitý tepelný výkon | P7: Účinnost výroby energie zdrojem tepla | S7: Účinnost distribuce energie na vytápění | U7: Účinnost sdílení energie na vytápění
P8: ηH,gen | R8: COP | S8: ηH,dis | U8: ηH,em
F9: [-] | I9: [-] | J9: [%] | N9: [kW] | P9: [%] | R9: [-] | S9: [%] | U9: [%]
C10: Referenční budova | F10: x | I10: x | J10: x | N10: x | P10: =IF(E14="*",80,IF(E19="*",80,IF(E24="*",80,""))) ->  | R10: -- | S10: =IF(E14="*",85,IF(E19="*",85,IF(E24="*",85,""))) ->  | U10: =IF(E14="*",80,IF(E19="*",80,IF(E24="*",80,""))) -> 
C11: Hodnocená budova/zóna:
C12: 1. | D12: Rodinny dům | F12: Zdroj | G12: Rozvody | I12: Energonositel
E13: * | G13: =IF(Data!B180=0,"","*") -> 
E14: =IF(Data!B180=0,"","*") ->  | G14: =IF(Data!B180=0,"","*") -> 
E15: =IF(Data!O171="-","","*") ->  | G15: Koncové prvky
G16: =IF(Data!B180=0,"","*") -> 
C17: 2. | D17: Rodinny dům | F17: Zdroj | G17: Rozvody | I17: Energonositel
E18: * | G18: =IF(Data!X180=0,"","*") ->  | H18: *
E19: =IF(Data!X180=0,"","*") ->  | G19: =IF(Data!X180=0,"","*") -> 
E20: =IF(Data!AF171="-","","*") ->  | G20: Koncové prvky
G21: =IF(Data!X180=0,"","*") -> 
C22: 3. | D22: Rodinny dům | F22: Zdroj | G22: Rozvody | I22: Energonositel
E23: * | G23: =IF(Data!AN180=0,"","*") -> 
E24: =IF(Data!AN180=0,"","*") ->  | G24: =IF(Data!AN180=0,"","*") -> 
E25: =IF(Data!AV171="-","","*") ->  | G25: Koncové prvky
G26: =IF(Data!AN180=0,"","*") -> 
C27: Solární kolektory | F27: Typ kolektoru | H27: Účel | I27: Energonositel | N27: Plocha apertury (účinná plocha solárního kolektoru) | S27: =IF(Data!I672=3,S77,"") ->  | U27: m2
F28: =IF(Data!I672=3,Data!B674,"") ->  | H28: =IF(Data!I672=3,Data!J672,"") ->  | I28: Energie okolního prostředí (Slunce)
J29: =IF(SUM(J12+J17+J22+J27)=1,"V pořádku",IF(SUM(J12+J17+J22+J27)=0,"","Nesprávně zadáno")) -> 
C31: b.2.a) chlazení
C32: Hodnocená budova/zóna | F32: Typ zdroje chlazení | I32: Energo- nositel | J32: Pokrytí dílčí potřeby energie na chlazení | N32: Jmenovitý chladící výkon | P32: Chladicí faktor zdroje chladu | S32: Účinnost distribuce energie na chlazení | U32: Účinnost sdílení energie na chlazení
P33: EERC,gen | S33: ηC,dis | U33: ηC,em
F34: [-] | I34: [-] | J34: [%] | N34: [kW] | P34: [-] | S34: [%] | U34: [%]
C35: Referenční budova | F35: x | I35: x | J35: x | N35: x | P35: =IF(Data!K293=0,"",2.7) ->  | S35: =IF(Data!K293=0,"",85) ->  | U35: =IF(Data!K293=0,"",85) -> 
C36: Hodnocená budova/zóna:
C37: Rodinny dům | F37: Zdroj | I37: Energonositel
E38: *
J39: =IF(SUM(J37)=1,"V pořádku",IF(SUM(J37)=0,"","Nesprávně zadáno")) -> 
C40: b.3) větrání
C41: Hodnocená budova/zóna | F41: Typ větracího systému | I41: Energo- nositel | J41: Tepelný výkon | M41: Chladící výkon | O41: Pokrytí dílčí potřeby energie na větrání | Q41: Jmen. elektr. příkon systému větrání | S41: Jmen. objem. průtok větracího vzduchu | U41: Měrný příkon ventilátoru nuceného větrání
U42: SFPahu
F43: [-] | I43: [-] | J43: [kW] | M43: [kW] | O43: [%] | Q43: [kW] | S43: [m3/hod] | U43: [W.s/m3]
C44: Referenční budova | F44: x | I44: x | J44: x | M44: x | O44: x | Q44: x | S44: x | U44: =IF('5. Technické systémy'!E48="*",1750,"") -> 
C45: Hodnocená budova/zóna:
C46: Rodinny dům | F46: Zdroj | H46: Měrný příkonu ventilátorů | I46: Energonositel
E47: * | G47: =IF(Data!J355="-","","*") -> 
E48: =IF(Data!J355="-","","*") ->  | G48: =IF(Data!J355="-","","*") -> 
O49: =IF(SUM(O46)=1,"V pořádku",IF(SUM(O46)=0,"","Nesprávně zadáno")) -> 
C50: b.4) úprava vlhkosti vzduchu
C51: Hodnocená budova/zóna | F51: Typ systému vlhčení | J51: Energo- nositel | M51: Jmenovitý elektrický příkon | P51: Jmenovitý tepelný výkon | S51: Pokrytí dílčí dodané energie na úpravu vlhkosti | U51: Účinnost zdroje úpravy vlhkosti systému vlhčení
U52: ηRH+,gen
F53: [-] | J53: [-] | M53: [kW] | P53: [kW] | S53: [%] | U53: [%]
C54: Referenční budova | F54: x | J54: x | M54: x | P54: x | S54: x | U54: 70
C55: Hodnocená budova/zóna:
C56: Rodinny dům
C59: b.5.a) příprava teplé vody (TV)
C60: Hodnocená budova/zóna | F60: Systém přípravy TV v budově | I60: Energo- nositel | J60: Pokrytí dílčí potřeby energie na přípravu teplé vody | L60: Jmen. příkon pro ohřev TV | N60: Objem zásobníku TV | P60: Účinnost zdroje tepla pro přípravu teplé vody | S60: Měrná tepelná ztráta zásobníku teplé vody | U60: Měrná tepelná ztráta rozvodů teplé vody
P61: ηW,gen | R61: COP | S61: QW,st | U61: QW,dis
F62: [-] | I62: [-] | J62: [%] | L62: [kW] | N62: [litry] | P62: [%] | R62: [-] | S62: [Wh/l.d] | U62: [Wh/m.d]
C63: Referenční budova | F63: x | I63: x | J63: x | L63: x | N63: x | P63: =IF(Data!H439>10,85,IF(E71="*",85,IF(E75="*",85,""))) ->  | R63: -- | S63: =IF(Data!H439>10,7,IF(E71="*",7,IF(E75="*",7,""))) ->  | U63: =IF(Data!H439>10,150,IF(E71="*",150,IF(E75="*",150,""))) -> 
C64: Hodnocená budova/zóna:
C65: Rodinny dům | F65: Zdroj | G65: Zásobník teplé vody
E66: * | G66: * | I66: Energonositel
E67: =IF(Data!J431="-","","*") ->  | G67: =IF(Data!J550="-","","*") -> 
E68: =IF(Data!O431="-","","*") ->  | G68: =IF(Data!J550="-","","*") -> 
C69: Rodinny dům | F69: Zdroj | G69: Zásobník teplé vody
E70: * | G70: * | I70: Energonositel
E71: =IF(Data!AA431="-","","*") ->  | G71: =IF(Data!AA550="-","","*") -> 
E72: =IF(Data!AF431="-","","*") ->  | G72: =IF(Data!AA550="-","","*") -> 
C73: Rodinny dům | F73: Zdroj | G73: Zásobník teplé vody
E74: * | G74: * | I74: Energonositel
E75: =IF(Data!AQ431="-","","*") ->  | G75: =IF(Data!AQ550="-","","*") -> 
E76: =IF(Data!AV431="-","","*") ->  | G76: =IF(Data!AQ550="-","","*") -> 
C77: Solární kolektory | F77: Typ kolektoru | H77: Účel | I77: Energonositel | L77: Plocha apertury (účinná plocha solárního kolektoru) | U77: m2
I78: Slunce
J79: =IF(SUM(J65+J69+J73+J77)=1,"V pořádku",IF(SUM(J65+J69+J73+J77)=0,"","Nesprávně zadáno")) -> 
C80: b) dílčí dodané energie
C81: ř. | K81: Vytápění | M81: Chlazení | O81: Větrání | Q81: Úprava vlhkosti vzduchu | S81: Příprava teplé vody | U81: Osvětlení
K82: Ref. budova | L82: Hod. budova | M82: Ref. budova | N82: Hod. budova | O82: Ref. budova | P82: Hod. budova | Q82: Ref. budova | R82: Hod. budova | S82: Ref. budova | T82: Hod. budova | U82: Ref. budova | V82: Hod. budova
C83: (1) | E83: Potřeba energie | J83: [MWh/rok] | O83: x | P83: x | U83: x | V83: x
C84: (2) | E84: Vypočtená spotřeba energie | J84: [MWh/rok]
C85: (3) | E85: Pomocná energie | J85: [MWh/rok]
C86: (4) | E86: Dílčí dodaná energie (ř.4)=(ř.2)+(ř.3) | J86: [MWh/rok] | L86: =IF((L84+L85)=0,"",(L84+L85)) ->  | N86: =IF((N84+N85)=0,"",(N84+N85)) ->  | P86: =IF((P84+P85)=0,"",(P84+P85)) ->  | R86: =IF((R84+R85)=0,"",(R84+R85)) ->  | T86: =IF((T84+T85)=0,"",(T84+T85)) ->  | V86: =IF((V84+V85)=0,"",(V84+V85)) -> 
C87: (5) | E87: Měrná dílčí dodaná energie na celkovou energeticky vztažnou plochu (ř.4) / m2 | J87: [kWh/(m2.rok)] | L87: =IF(L86="","",((L86/'1. PENB'!I20)*1000)) ->  | N87: =IF(N86="","",((N86/'1. PENB'!I20)*1000)) ->  | P87: =IF(P86="","",((P86/'1. PENB'!I20)*1000)) ->  | R87: =IF(R86="","",((R86/'1. PENB'!I20)*1000)) ->  | T87: =IF(T86="","",((T86/'1. PENB'!I20)*1000)) ->  | V87: =IF(V86="","",((V86/'1. PENB'!I20)*1000)) -> 
C89: d) rozdělení dílčích dodaných energií, celkové primární energie a neobnovitelné primární energie podle energonositelů
C90: Energonositel | F90: Dílčí vypočtená spotřeba energie / Pomocná energie | H90: Faktor celkové primární energie | I90: Faktor neobnovitelné primární energie | J90: Celková primární energie | Q90: Neobnovitelná primární energie
F91: [MWh/rok] | H91: [-] | I91: [-] | J91: [MWh/rok] | Q91: [MWh/rok]
C94: Celkem | F94: =IF(SUM(L86,N86,P86,R86,T86,V86)=0,"",SUM(L86,N86,P86,R86,T86,V86)) ->  | H94: x | I94: x

Sheet 6. Vyhodnocení
A1: Krok 1. | H1: Krok 2. | P1: Krok 3. | AB1: Krok 4. | AG1: Krok 5. | AM1: Krok 6.
A2: =IF(SUM('1. PENB'!I13:I15)>0,IF(SUM('1. PENB'!I20)>0,IF(SUM('1. PENB'!D31)>0,IF(SUM('1. PENB'!I31)>0,"Zadáno","Nezadáno"),"Nezadáno"),"Nezadáno"),"Nezadáno") -> Nezadáno | H2: =IF(SUM('2. Konstrukce'!D6:D9)>0,IF(SUM('2. Konstrukce'!D12:D16)>0,IF(SUM('2. Konstrukce'!D19:D20,'2. Konstrukce'!D22:D23)>0,IF(SUM('2. Konstrukce'!D26:D27,'2. Konstrukce'!D29:D30,'2. Konstrukce'!D32:D33)>0,"Zadáno","Nezadáno"),"Nezadáno"),"Nezadáno"),"Nezadáno") -> Nezadáno | P2: =IF('3. Geometrie'!F5>0,IF('3. Geometrie'!F7>0,IF('3. Geometrie'!F10>0,IF('3. Geometrie'!F11>0,IF('3. Geometrie'!F12>0,"Zadáno","Nezadáno"),"Nezadáno"),"Nezadáno"),"Nezadáno"),"Nezadáno") -> Nezadáno | AB2: =IF(SUM('4. Tepelně tech. parametry'!U8:U10)>0,IF(SUM('4. Tepelně tech. parametry'!U11:U13)>0,IF(SUM('4. Tepelně tech. parametry'!U15)>0,IF(SUM('4. Tepelně tech. parametry'!U30)>0,"Zadáno","Nezadáno"),"Nezadáno"),"Nezadáno"),"Nezadáno") -> Nezadáno | AG2: =IF(SUM('5. Technické systémy'!J12:M28)>0,IF(SUM('5. Technické systémy'!J65:K78)>0,IF(SUM('5. Technické systémy'!F94:G94)>0,IF(SUM('5. Technické systémy'!J94:P94)>0,IF(SUM('5. Technické systémy'!Q94:V94)>0,"Zadáno","Nezadáno"),"Nezadáno"),"Nezadáno"),"Nezadáno"),"Nezadáno") -> Nezadáno | AM2: ZDE
C3: Hodnoty pro technické systémy z PENB | M3: Zpět | P3: Pokračovat | S3: Nápověda | Z3: Hodnoty pro technické systémy z PENB
C5: B) technické systémy | Z5: B) technické systémy
C6: b.1.a) vytápění | Z6: b.1.a) vytápění
C7: Hodnocená budova/zóna | F7: Typ zdroje | G7: Energo- nositel | J7: Pokrytí dílčí potřeby energie na vytápění | L7: Jmenovitý tepelný výkon | N7: Účinnost výroby energie zdrojem tepla | Q7: Účinnost distribuce energie na vytápění | S7: Účinnost sdílení energie na vytápění | Z7: Hodnocená budova/zóna | AC7: Typ zdroje | AD7: Energo- nositel | AG7: Pokrytí dílčí potřeby energie na vytápění | AI7: Jmenovitý tepelný výkon | AK7: Účinnost výroby energie zdrojem tepla | AN7: Účinnost distribuce energie na vytápění | AP7: Účinnost sdílení energie na vytápění
N8: ηH,gen | P8: COP | Q8: ηH,dis | S8: ηH,em | AK8: ηH,gen | AM8: COP | AN8: ηH,dis | AP8: ηH,em
F9: [-] | G9: [-] | J9: [%] | L9: [kW] | N9: [%] | P9: [-] | Q9: [%] | S9: [%] | AC9: [-] | AD9: [-] | AG9: [%] | AI9: [kW] | AK9: [%] | AM9: [-] | AN9: [%] | AP9: [%]
C10: Referenční budova | F10: x | G10: x | J10: x | L10: x | N10: =IF(SUM('5. Technické systémy'!P10:Q10)=0,"",(SUM('5. Technické systémy'!P10:Q10))) ->  | P10: -- | Q10: =IF(SUM('5. Technické systémy'!S10:T10)=0,"",(SUM('5. Technické systémy'!S10:T10))) ->  | S10: =IF(SUM('5. Technické systémy'!U10:V10)=0,"",(SUM('5. Technické systémy'!U10:V10))) ->  | Z10: Referenční budova | AC10: x | AD10: x | AG10: x | AI10: x | AK10: =N10 ->  | AM10: -- | AN10: =Q10 ->  | AP10: =S10 -> 
C11: Hodnocená budova/zóna: | Z11: Hodnocená budova/zóna:
C12: 1. | D12: Rodinny dům | F12: =IF(Data!B180=0,"",Data!B180) ->  | G12: =IF(Data!AN201=0,"",Data!AN201) ->  | J12: =IF(SUM('5. Technické systémy'!J12:M16)=0,"",(SUM('5. Technické systémy'!J12:M16))) ->  | L12: =IF(SUM('5. Technické systémy'!N12:O16)=0,"",(SUM('5. Technické systémy'!N12:O16))) ->  | N12: =IF(SUM('5. Technické systémy'!P12:Q16)=0,"",(SUM('5. Technické systémy'!P12:Q16))) ->  | P12: =IF(SUM('5. Technické systémy'!R12:R16)=0,"",(SUM('5. Technické systémy'!R12:R16))) ->  | Q12: =IF(SUM('5. Technické systémy'!S12:T16)=0,"",(SUM('5. Technické systémy'!S12:T16))) ->  | S12: =IF(SUM('5. Technické systémy'!U12:V16)=0,"",(SUM('5. Technické systémy'!U12:V16))) ->  | Z12: 1. | AA12: Rodinny dům | AC12: =F12 ->  | AG12: =J12 ->  | AI12: =L12 ->  | AK12: =Data!R182 ->  | AM12: =Data!S182 ->  | AN12: =IF(Data!K265=0,"",Data!K265) ->  | AP12: =IF(Data!K278=0,"",Data!K278) -> 
C13: 2. | D13: Rodinny dům | F13: =IF(Data!X180=0,"",Data!X180) ->  | G13: =IF(Data!AN202=0,"",Data!AN202) ->  | J13: =IF(SUM('5. Technické systémy'!J17:M21)=0,"",(SUM('5. Technické systémy'!J17:M21))) ->  | L13: =IF(SUM('5. Technické systémy'!N17:O21)=0,"",(SUM('5. Technické systémy'!N17:O21))) ->  | N13: =IF(SUM('5. Technické systémy'!P17:Q21)=0,"",(SUM('5. Technické systémy'!P17:Q21))) ->  | P13: =IF(SUM('5. Technické systémy'!R17:R21)=0,"",(SUM('5. Technické systémy'!R17:R21))) ->  | Q13: =IF(SUM('5. Technické systémy'!S17:T21)=0,"",(SUM('5. Technické systémy'!S17:T21))) ->  | S13: =IF(SUM('5. Technické systémy'!U17:V21)=0,"",(SUM('5. Technické systémy'!U17:V21))) ->  | Z13: 2. | AA13: Rodinny dům | AG13: =J13 ->  | AI13: =L13 ->  | AK13: =Data!AI182 ->  | AM13: =Data!AJ182 ->  | AN13: =IF(Data!Q265=0,"",Data!Q265) ->  | AP13: =IF(Data!Q278=0,"",Data!Q278) -> 
C14: 3. | D14: Rodinny dům | F14: =IF(Data!AN180=0,"",Data!AN180) ->  | G14: =IF(Data!AN203=0,"",Data!AN203) ->  | J14: =IF(SUM('5. Technické systémy'!J22:M26)=0,"",(SUM('5. Technické systémy'!J22:M26))) ->  | L14: =IF(SUM('5. Technické systémy'!N22:O26)=0,"",(SUM('5. Technické systémy'!N22:O26))) ->  | N14: =IF(SUM('5. Technické systémy'!P22:Q26)=0,"",(SUM('5. Technické systémy'!P22:Q26))) ->  | P14: =IF(SUM('5. Technické systémy'!R22:R26)=0,"",(SUM('5. Technické systémy'!R22:R26))) ->  | Q14: =IF(SUM('5. Technické systémy'!S22:T26)=0,"",(SUM('5. Technické systémy'!S22:T26))) ->  | S14: =IF(SUM('5. Technické systémy'!U22:V26)=0,"",(SUM('5. Technické systémy'!U22:V26))) ->  | Z14: 3. | AA14: Rodinny dům | AG14: =J14 ->  | AI14: =L14 ->  | AK14: =Data!AY182 ->  | AM14: =Data!AZ182 ->  | AN14: =IF(Data!W265=0,"",Data!W265) ->  | AP14: =IF(Data!W278=0,"",Data!W278) -> 
C15: Solární kolektory | F15: =IF(Data!B674=0,"",IF(Data!I672=3,Data!B674,"")) ->  | G15: =IF(F15="","",Data!AN205) ->  | J15: =IF(SUM('5. Technické systémy'!J27:M28)=0,"",(SUM('5. Technické systémy'!J27:M28))) ->  | Z15: =C15 -> Solární kolektory | AC15: =F15 ->  | AD15: =G15 ->  | AG15: =J15 -> 
C16: Závěrečná tabulka | Z16: Závěrečná tabulka
C17: Potřeba energie na vytápění hodnocené budovy | L17: =IF(Q17="","",('5. Technické systémy'!L83/'1. PENB'!I20*1000)) ->  | N17: [kWh/(m2.rok)] | Q17: =IF('5. Technické systémy'!L83="","",'5. Technické systémy'!L83) ->  | S17: [MWh/rok] | Z17: =C17 -> Potřeba energie na vytápění hodnocené budovy | AI17: =IF(AN17="","",(AN17/'1. PENB'!I20)*1000) ->  | AK17: =N17 -> [kWh/(m2.rok)] | AN17: =IF(Q17="","",Vypocet!G247) ->  | AP17: =S17 -> [MWh/rok]
C19: Vypočtená spotřeba energie na vytápění hodnocené budovy | L19: =IF(Q19="","",('5. Technické systémy'!L84/'1. PENB'!I20)*1000) ->  | N19: [kWh/(m2.rok)] | Q19: =IF('5. Technické systémy'!L84="","",'5. Technické systémy'!L84) ->  | S19: [MWh/rok] | Z19: =C19 -> Vypočtená spotřeba energie na vytápění hodnocené budovy | AI19: =IF(AN19="","",(AN19/'1. PENB'!I20)*1000) ->  | AK19: =N19 -> [kWh/(m2.rok)] | AN19: =IF(Q19="","",Vypocet!G281) ->  | AP19: [MWh/rok]
C21: b.2.a) chlazení | Z21: b.2.a) chlazení
C22: Hodnocená budova/zóna | F22: Typ zdroje chlazení | G22: Energo- nositel | J22: Pokrytí dílčí potřeby energie na chlazení | L22: Jmenovitý chladící výkon | N22: Chladicí faktor zdroje chladu | Q22: Účinnost distribuce energie na chlazení | S22: Účinnost sdílení energie na chlazení | Z22: Hodnocená budova/zóna | AC22: Typ zdroje chlazení | AD22: Energo- nositel | AG22: Pokrytí dílčí potřeby energie na chlazení | AI22: Jmenovitý chladící výkon | AK22: Chladicí faktor zdroje chladu | AN22: Účinnost distribuce energie na chlazení | AP22: Účinnost sdílení energie na chlazení
N23: EERC,gen | Q23: ηC,dis | S23: ηC,em | AK23: EERC,gen | AN23: ηC,dis | AP23: ηC,em
F24: [-] | G24: [-] | J24: [%] | L24: [kW] | N24: [-] | Q24: [%] | S24: [%] | AC24: [-] | AD24: [-] | AG24: [%] | AI24: [kW] | AK24: [-] | AN24: [%] | AP24: [%]
C25: Referenční budova | F25: x | G25: x | J25: x | L25: x | N25: =IF(SUM('5. Technické systémy'!P35:R35)=0,"",(SUM('5. Technické systémy'!P35:R35))) ->  | Q25: =IF(SUM('5. Technické systémy'!S35:T35)=0,"",(SUM('5. Technické systémy'!S35:T35))) ->  | S25: =IF(SUM('5. Technické systémy'!U35:V35)=0,"",(SUM('5. Technické systémy'!U35:V35))) ->  | Z25: Referenční budova | AC25: x | AD25: x | AG25: x | AI25: x | AK25: =N25 ->  | AN25: =Q25 ->  | AP25: =S25 -> 
C26: Hodnocená budova/zóna: | Z26: Hodnocená budova/zóna:
C27: Rodinny dům | F27: =IF(Data!J293=0,"",Data!J293) ->  | G27: =IF(Data!AN308=0,"",Data!AN308) ->  | J27: =IF(SUM('5. Technické systémy'!L37:M38)=0,"",(SUM('5. Technické systémy'!L37:M38))) ->  | L27: =IF(SUM('5. Technické systémy'!N37:O38)=0,"",(SUM('5. Technické systémy'!N37:O38))) ->  | N27: =IF(SUM('5. Technické systémy'!P37:R38)=0,"",(SUM('5. Technické systémy'!P37:R38))) ->  | Q27: =IF(SUM('5. Technické systémy'!S37:T38)=0,"",(SUM('5. Technické systémy'!S37:T38))) ->  | S27: =IF(SUM('5. Technické systémy'!U37:V38)=0,"",(SUM('5. Technické systémy'!U37:V38))) ->  | Z27: Rodinny dům | AC27: =F27 ->  | AD27: =G27 ->  | AG27: =J27 ->  | AI27: =L27 ->  | AK27: =IF(Data!K293=0,"",Data!K293) -> 
C28: Závěrečná tabulka | Z28: Závěrečná tabulka
C29: Potřeba energie na chlazení hodnocené budovy | L29: =IF(Q29="","",('5. Technické systémy'!N83/'1. PENB'!I20)*1000) ->  | N29: [kWh/(m2.rok)] | Q29: =IF('5. Technické systémy'!N83="","",'5. Technické systémy'!N83) ->  | S29: [MWh/rok] | Z29: =C29 -> Potřeba energie na chlazení hodnocené budovy | AI29: =IF(AN29="","",(AN29/'1. PENB'!I20)*1000) ->  | AK29: =N29 -> [kWh/(m2.rok)] | AN29: =IF(Q29="","",Vypocet!G311) ->  | AP29: =S29 -> [MWh/rok]
C31: Vypočtená spotřeba energie na chlazení hodnocené budovy | L31: =IF(Q31="","",('5. Technické systémy'!N84/'1. PENB'!I20)*1000) ->  | N31: [kWh/(m2.rok)] | Q31: =IF('5. Technické systémy'!N84="","",'5. Technické systémy'!N84) ->  | S31: [MWh/rok] | Z31: =C31 -> Vypočtená spotřeba energie na chlazení hodnocené budovy | AI31: =IF(AN31="","",(AN31/'1. PENB'!I20)*1000) ->  | AK31: =N31 -> [kWh/(m2.rok)] | AN31: =IF(Q31="","",Vypocet!G318) ->  | AP31: [MWh/rok]
C33: b.3) větrání | Z33: b.3) větrání
C34: Hodnocená budova/zóna | F34: Typ větracího systému | G34: Energo- nositel | I34: Tepelný výkon | K34: Chladící výkon | M34: Pokrytí dílčí potřeby energie na větrání | O34: Jmen. elektr. příkon systému větrání | Q34: Jmen. objem. průtok větracího vzduchu | S34: Měrný příkon ventilátoru nuceného větrání | Z34: Hodnocená budova/zóna | AC34: Typ větracího systému | AD34: Energo- nositel | AF34: Tepelný výkon | AH34: Chladící výkon | AJ34: Pokrytí dílčí potřeby energie na větrání | AL34: Jmen. elektr. příkon systému větrání | AN34: Jmen. objem. průtok větracího vzduchu | AP34: Měrný příkon ventilátoru nuceného větrání
S35: SFPahu | AP35: SFPahu
F36: [-] | G36: [-] | I36: [kW] | K36: [kW] | M36: [%] | O36: [kW] | Q36: [m3/hod] | S36: [W.s/m3] | AC36: [-] | AD36: [-] | AF36: [kW] | AH36: [kW] | AJ36: [%] | AL36: [kW] | AN36: [m3/hod] | AP36: [W.s/m3]
C37: Referenční budova | F37: x | G37: x | I37: x | K37: x | M37: x | O37: x | Q37: x | S37: =IF(SUM('5. Technické systémy'!U44:V44)=0,"",(SUM('5. Technické systémy'!U44:V44))) ->  | Z37: Referenční budova | AC37: x | AD37: x | AF37: x | AH37: x | AJ37: x | AL37: x | AN37: x | AP37: =S37 -> 
C38: Hodnocená budova/zóna: | Z38: Hodnocená budova/zóna:
C39: Rodinny dům | F39: =IF(Data!B358=0,"Přirozené větrání",Data!B358) -> Přirozené větrání | G39: =IF(Data!AN372=0,"",Data!AN372) ->  | I39: =IF(SUM('5. Technické systémy'!K46:L48)=0,"",(SUM('5. Technické systémy'!K46:L48))) ->  | K39: =IF(SUM('5. Technické systémy'!M46:N48)=0,"",(SUM('5. Technické systémy'!M46:N48))) ->  | M39: =IF(SUM('5. Technické systémy'!O46:P48)=0,"",(SUM('5. Technické systémy'!O46:P48))) ->  | O39: =IF(SUM('5. Technické systémy'!Q46:R48)=0,"",(SUM('5. Technické systémy'!Q46:R48))) ->  | Q39: =IF(SUM('5. Technické systémy'!S46:T48)=0,"",(SUM('5. Technické systémy'!S46:T48))) ->  | S39: =IF(SUM('5. Technické systémy'!U46:V48)=0,"",(SUM('5. Technické systémy'!U46:V48))) ->  | Z39: Rodinny dům | AC39: =F39 -> Přirozené větrání | AD39: =G39 ->  | AF39: =I39 ->  | AH39: =K39 ->  | AJ39: =M39 ->  | AL39: =O39 ->  | AN39: =Q39 ->  | AP39: =IF(Data!K381=0,"",Data!K381) -> 
C40: Závěrečná tabulka | Z40: Závěrečná tabulka
C41: Vypočtená spotřeba energie na nucené větrání | L41: =IF(Q41="","",('5. Technické systémy'!P84/'1. PENB'!I20)*1000) ->  | N41: [kWh/(m2.rok)] | Q41: =IF('5. Technické systémy'!P84="","",'5. Technické systémy'!P84) ->  | S41: [MWh/rok] | Z41: =C41 -> Vypočtená spotřeba energie na nucené větrání | AI41: =IF(AN41="","",(AN41/'1. PENB'!I20)*1000) ->  | AK41: =N41 -> [kWh/(m2.rok)] | AN41: =IF(Q41="","",Vypocet!G436) ->  | AP41: [MWh/rok]
C43: b.4) úprava vlhkosti vzduchu | Z43: b.4) úprava vlhkosti vzduchu
C44: Hodnocená budova/zóna | F44: Typ systému vlhčení | H44: Energo- nositel | K44: Jmenovitý elektrický příkon | N44: Jmenovitý tepelný výkon | Q44: Pokrytí dílčí dodané energie na úpravu vlhkosti | S44: Účinnost zdroje úpravy vlhkosti systému vlhčení | Z44: Hodnocená budova/zóna | AC44: Typ systému vlhčení | AE44: Energo- nositel | AH44: Jmenovitý elektrický příkon | AK44: Jmenovitý tepelný výkon | AN44: Pokrytí dílčí dodané energie na úpravu vlhkosti | AP44: Účinnost zdroje úpravy vlhkosti systému vlhčení
S45: ηRH+,gen | AP45: ηRH+,gen
F46: [-] | H46: [-] | K46: [kW] | N46: [kW] | Q46: [%] | S46: [%] | AC46: [-] | AE46: [-] | AH46: [kW] | AK46: [kW] | AN46: [%] | AP46: [%]
C47: Referenční budova | F47: x | H47: x | K47: x | N47: x | Q47: x | Z47: Referenční budova | AC47: x | AE47: x | AH47: x | AK47: x | AN47: x
C48: Hodnocená budova/zóna: | Z48: Hodnocená budova/zóna:
C49: Rodinny dům | Z49: Rodinny dům
C50: Závěrečná tabulka | Z50: Závěrečná tabulka
C54: b.5.a) příprava teplé vody (TV) | Z54: b.5.a) příprava teplé vody (TV)
C55: Hodnocená budova/zóna | F55: Systém přípravy TV v budově | G55: Energo- nositel | H55: Pokrytí dílčí potřeby energie na přípravu teplé vody | J55: Jmen. příkon pro ohřev TV | L55: Objem zásobníku TV | N55: Účinnost zdroje tepla pro přípravu teplé vody | Q55: Měrná tepelná ztráta zásobníku teplé vody | S55: Měrná tepelná ztráta rozvodů teplé vody | Z55: Hodnocená budova/zóna | AC55: Systém přípravy TV v budově | AD55: Energo- nositel | AE55: Pokrytí dílčí potřeby energie na přípravu teplé vody | AG55: Jmen. příkon pro ohřev TV | AI55: Objem zásobníku TV | AK55: Účinnost zdroje tepla pro přípravu teplé vody | AN55: Měrná tepelná ztráta zásobníku teplé vody | AP55: Měrná tepelná ztráta rozvodů teplé vody
N56: ηW,gen | P56: COP | Q56: QW,st | S56: QW,dis | AK56: ηW,gen | AM56: COP | AN56: QW,st | AP56: QW,dis
F57: [-] | G57: [-] | H57: [%] | J57: [kW] | L57: [litry] | N57: [%] | P57: [-] | Q57: [Wh/l.d] | S57: [Wh/m.d] | AC57: [-] | AD57: [-] | AE57: [%] | AG57: [kW] | AI57: [litry] | AK57: [%] | AM57: [-] | AN57: [Wh/l.d] | AP57: [Wh/m.d]
C58: Referenční budova | F58: x | G58: x | H58: x | J58: x | L58: x | N58: =IF(SUM('5. Technické systémy'!P63:Q63)=0,"",(SUM('5. Technické systémy'!P63:Q63))) ->  | P58: -- | Q58: =IF(SUM('5. Technické systémy'!S63:T63)=0,"",(SUM('5. Technické systémy'!S63:T63))) ->  | S58: =IF(SUM('5. Technické systémy'!U63:V63)=0,"",(SUM('5. Technické systémy'!U63:V63))) ->  | Z58: Referenční budova | AC58: x | AD58: x | AE58: x | AG58: x | AI58: x | AK58: =N58 ->  | AM58: -- | AN58: =Q58 ->  | AP58: =S58 -> 
C59: Hodnocená budova/zóna: | Z59: Hodnocená budova/zóna:
C60: 1. | D60: Rodinny dům | F60: =IF(Data!B441=0,"",Data!B441) ->  | G60: =IF(Data!AN463=0,"",Data!AN463) ->  | H60: =IF(SUM('5. Technické systémy'!J65:K68)=0,"",(SUM('5. Technické systémy'!J65:K68))) ->  | J60: =IF(SUM('5. Technické systémy'!L65:M68)=0,"",(SUM('5. Technické systémy'!L65:M68))) ->  | L60: =IF(SUM('5. Technické systémy'!N65:O68)=0,"",(SUM('5. Technické systémy'!N65:O68))) ->  | N60: =IF(SUM('5. Technické systémy'!P65:Q68)=0,"",(SUM('5. Technické systémy'!P65:Q68))) ->  | P60: =IF(SUM('5. Technické systémy'!R65:R68)=0,"",(SUM('5. Technické systémy'!R65:R68))) ->  | Q60: =IF(SUM('5. Technické systémy'!S65:T68)=0,"",(SUM('5. Technické systémy'!S65:T68))) ->  | S60: =IF(SUM('5. Technické systémy'!U65:V68)=0,"",(SUM('5. Technické systémy'!U65:V68))) ->  | Z60: 1. | AA60: Rodinny dům | AC60: =F60 ->  | AG60: =J60 ->  | AI60: =L60 ->  | AK60: =IF(Data!Q443=0,"",Data!Q443) ->  | AM60: =IF(Data!R443="","",Data!R443) ->  | AN60: =IF(Data!P561=0,"",Data!P561) ->  | AP60: =S60 -> 
C61: 2. | D61: Rodinny dům | F61: =IF(Data!X440=0,"",Data!X440) ->  | G61: =IF(Data!AN464=0,"",Data!AN464) ->  | H61: =IF(SUM('5. Technické systémy'!J69:K72)=0,"",(SUM('5. Technické systémy'!J69:K72))) ->  | J61: =IF(SUM('5. Technické systémy'!L69:M72)=0,"",(SUM('5. Technické systémy'!L69:M72))) ->  | L61: =IF(SUM('5. Technické systémy'!N69:O72)=0,"",(SUM('5. Technické systémy'!N69:O72))) ->  | N61: =IF(SUM('5. Technické systémy'!P69:Q72)=0,"",(SUM('5. Technické systémy'!P69:Q72))) ->  | P61: =IF(SUM('5. Technické systémy'!R69:R72)=0,"",(SUM('5. Technické systémy'!R69:R72))) ->  | Q61: =IF(SUM('5. Technické systémy'!S69:T72)=0,"",(SUM('5. Technické systémy'!S69:T72))) ->  | S61: =IF(SUM('5. Technické systémy'!U69:V72)=0,"",(SUM('5. Technické systémy'!U69:V72))) ->  | Z61: 2. | AA61: Rodinny dům | AG61: =J61 ->  | AI61: =L61 ->  | AK61: =IF(Data!AI442=0,"",Data!AI442) ->  | AM61: =IF(Data!AJ442="","",Data!AJ442) ->  | AN61: =IF(Data!AG561=0,"",Data!AG561) ->  | AP61: =S61 -> 
C62: 3. | D62: Rodinny dům | F62: =IF(Data!AN440=0,"",Data!AN440) ->  | G62: =IF(Data!AN465=0,"",Data!AN465) ->  | H62: =IF(SUM('5. Technické systémy'!J73:K76)=0,"",(SUM('5. Technické systémy'!J73:K76))) ->  | J62: =IF(SUM('5. Technické systémy'!L73:M76)=0,"",(SUM('5. Technické systémy'!L73:M76))) ->  | L62: =IF(SUM('5. Technické systémy'!N73:O76)=0,"",(SUM('5. Technické systémy'!N73:O76))) ->  | N62: =IF(SUM('5. Technické systémy'!P73:Q76)=0,"",(SUM('5. Technické systémy'!P73:Q76))) ->  | P62: =IF(SUM('5. Technické systémy'!R73:R76)=0,"",(SUM('5. Technické systémy'!R73:R76))) ->  | Q62: =IF(SUM('5. Technické systémy'!S73:T76)=0,"",(SUM('5. Technické systémy'!S73:T76))) ->  | S62: =IF(SUM('5. Technické systémy'!U73:V76)=0,"",(SUM('5. Technické systémy'!U73:V76))) ->  | Z62: 3. | AA62: Rodinny dům | AG62: =J62 ->  | AI62: =L62 ->  | AK62: =IF(Data!AY442=0,"",Data!AY442) ->  | AM62: =IF(Data!AZ442="","",Data!AZ442) ->  | AN62: =IF(Data!AW561=0,"",Data!AW561) ->  | AP62: =S62 -> 
C63: Solární kolektory | F63: =IF(Data!B674=0,"",IF(Data!I672>1,Data!B674,"")) ->  | G63: =IF(F63="","",Data!AN205) ->  | H63: =IF(SUM('5. Technické systémy'!J77:K78)=0,"",(SUM('5. Technické systémy'!J77:K78))) ->  | Z63: =C63 -> Solární kolektory | AC63: =F63 ->  | AD63: =G63 ->  | AE63: =H63 -> 
C64: Závěrečná tabulka | Z64: Závěrečná tabulka
C65: Potřeba energie na přípravu teplé vody | L65: =IF(Q65="","",('5. Technické systémy'!T83/'1. PENB'!I20)*1000) ->  | N65: [kWh/(m2.rok)] | Q65: =IF('5. Technické systémy'!T83="","",'5. Technické systémy'!T83) ->  | S65: [MWh/rok] | Z65: =C65 -> Potřeba energie na přípravu teplé vody | AI65: =IF(AN65="","",(AN65/'1. PENB'!I20)*1000) ->  | AK65: =N65 -> [kWh/(m2.rok)] | AN65: =IF(Q65="","",Vypocet!G322) ->  | AP65: [MWh/rok]
C67: Vypočtená spotřeba energie na přípravu teplé vody | L67: =IF(Q67="","",('5. Technické systémy'!T84/'1. PENB'!I20)*1000) ->  | N67: [kWh/(m2.rok)] | Q67: =IF('5. Technické systémy'!T84="","",'5. Technické systémy'!T84) ->  | S67: [MWh/rok] | Z67: =C67 -> Vypočtená spotřeba energie na přípravu teplé vody | AI67: =IF(AN67="","",(AN67/'1. PENB'!I20)*1000) ->  | AK67: =N67 -> [kWh/(m2.rok)] | AN67: =IF(Q67="","",Vypocet!G419) ->  | AP67: [MWh/rok]
C69: d) rozdělení dílčích dodaných energií, celkové primární energie a neobnovitelné primární energie podle energonositelů | Z69: d) rozdělení dílčích dodaných energií, celkové primární energie a neobnovitelné primární energie podle energonositelů
C70: Celková dodaná energie hodnocené budovy | L70: =IF(Q70="","",(Q70/'1. PENB'!I20)*1000) ->  | N70: [kWh/(m2.rok)] | Q70: =IF(SUM('5. Technické systémy'!F94:G94)=0,"",SUM('5. Technické systémy'!F94:G94)) ->  | S70: [MWh/rok] | Z70: =C70 -> Celková dodaná energie hodnocené budovy | AI70: =IF(AN70="","",(AN70/'1. PENB'!I20)*1000) ->  | AK70: =N70 -> [kWh/(m2.rok)] | AN70: =IF(Q70="","",Vypocet!B493) ->  | AP70: [MWh/rok]
C71: Celková primární energie | L71: =IF(Q71="","",(Q71/'1. PENB'!I20)*1000) ->  | N71: [kWh/(m2.rok)] | Q71: =IF(SUM('5. Technické systémy'!J94:P94)=0,"",SUM('5. Technické systémy'!J94:P94)) ->  | S71: [MWh/rok] | Z71: =C71 -> Celková primární energie | AI71: =IF(AN71="","",(AN71/'1. PENB'!I20)*1000) ->  | AK71: =N71 -> [kWh/(m2.rok)] | AN71: =IF(Q71="","",Vypocet!F493) ->  | AP71: [MWh/rok]
C72: Neobnovitelná primární energie | L72: =IF(Q72="","",(Q72/'1. PENB'!I20)*1000) ->  | N72: [kWh/(m2.rok)] | Q72: =IF(SUM('5. Technické systémy'!Q94:V94)=0,"",SUM('5. Technické systémy'!Q94:V94)) ->  | S72: [MWh/rok] | Z72: =C72 -> Neobnovitelná primární energie | AI72: =IF(AN72="","",(AN72/'1. PENB'!I20)*1000) ->  | AK72: =N72 -> [kWh/(m2.rok)] | AN72: =IF(Q72="","",Vypocet!G493) ->  | AP72: [MWh/rok]
C73: Využití obnovitelných zdrojů energie z hlediska primární energie | Q73: =IF(Q71="","",1-(Q72/Q71)) ->  | S73: [%] | Z73: =C73 -> Využití obnovitelných zdrojů energie z hlediska primární energie | AN73: =IF(Q73="","",1-(AN72/AN71)) ->  | AP73: [%]

Sheet Kalkulačka na U
C1: Pomocný výpočet U konstrukcí | H1: Zpět | J1: Nápověda
C3: Původní stav | H3: Nový stav
C5: Název konstrukce: | H5: Název konstrukce:
C7: Skladba od interiéru: | D7: Tloušťka konstrukce | E7: Součinitel tepelné vodivosti | F7: Poznámka | H7: Skladba od interiéru: | I7: Tloušťka konstrukce | J7: Součinitel tepelné vodivosti | K7: Poznámka
D8: d [mm] | E8: λ [W/(m.K)] | I8: d [mm] | J8: λ [W/(m.K)]
C9: Tepelný odpor při přestupu tepla v interiéru Rsi | E9: =Data!AG7 -> 0.13 | F9: (m2W)/K | H9: Tepelný odpor při přestupu tepla v interiéru Rsi | J9: =Data!AK36 -> 0.13 | K9: (m2W)/K
C20: Tepelný odpor při přestupu tepla v exteriéru Rse | E20: =Data!AI23 -> 5.88 | F20: (m2.W)/K | H20: Tepelný odpor při přestupu tepla v exteriéru Rse | J20: =Data!AI47 -> 5.88 | K20: (m2.W)/K
C21: Vypočtený součinitel prostupu tepla U | E21: =IF(SUM(Data!AH12:AH21)=0,"",Data!AI23) ->  | F21: W/(m2K) | H21: Vypočtený součinitel prostupu tepla U | J21: =IF(SUM(Data!AH36:AH47)=0,"",Data!AI49) ->  | K21: W/(m2K)
C28: Původní stav | H28: Nový stav
C30: Název konstrukce: | H30: Název konstrukce:
C32: Skladba od interiéru: | D32: Tloušťka konstrukce | E32: Součinitel tepelné vodivosti | F32: Poznámka | H32: Skladba od interiéru: | I32: Tloušťka konstrukce | J32: Součinitel tepelné vodivosti | K32: Poznámka
D33: d [mm] | E33: λ [W/(m.K)] | I33: d [mm] | J33: λ [W/(m.K)]
C34: Tepelný odpor při přestupu tepla v interiéru Rsi | E34: =Data!AK61 -> 0.13 | F34: (m2W)/K | H34: Tepelný odpor při přestupu tepla v interiéru Rsi | J34: =Data!AK85 -> 0.13 | K34: (m2W)/K
C45: Tepelný odpor při přestupu tepla v exteriéru Rse | E45: =Data!AI72 -> 5.88 | F45: (m2.W)/K | H45: Tepelný odpor při přestupu tepla v exteriéru Rse | J45: =Data!AI96 -> 5.88 | K45: (m2.W)/K
C46: Vypočtený součinitel prostupu tepla U | E46: =IF(SUM(Data!AH61:AH70)=0,"",Data!AI72) ->  | F46: W/(m2K) | H46: Vypočtený součinitel prostupu tepla U | J46: =IF(SUM(Data!AH85:AH94)=0,"",Data!AI96) ->  | K46: W/(m2K)

Sheet Help
C1: Nápověda
C3: Stavební konstrukce
B5: 1. | C5: Plocha konstrukcí se zadává v plošných metrech. Zadává se čistá plocha konstrukce po odečtení otvorových výplní. | D5: zpět
B7: 2. | C7: Zadávají se pouze konstrukce mezi vytápěnou částí a venkovním prostředím nebo mezi vytápěnou a nevytápěnou částí budovy. | D7: zpět
B9: 3. | C9: Kontrukce pod vytápěným prostorem mohou být buď podlaha na zemině nebo podlaha nad nevytápěným sklepem. | D9: zpět
B11: 4. | C11: U konstrukcí nad vytápěným prostorem se uvádějí tyto části: střecha nebo strop k nevytápěné půdě. Pokud je střecha bez zateplení, zadává se pouze strop pod půdou. | D11: zpět
B13: 5. | C13: Existující zateplení předpokládá jako izolant polystyren nebo minerální vatu. Pro termoizolační omítku zadejte poloviční hodnotu. | D13: zpět
B15: 6. | C15: Do objemu budovy se vkládá vypočtený objem vytápěné části budovy včetně všech vnitřních konstrukcí. Pro jednoduchý tvar je možné použít kalkulačku. | D15: zpět
C17: Technické systémy
B19: 1. | C19: V případech kdy ve vybraných možnostech není přesný typ (kotle, zásobníku, atd.), je nutné zvolit tak, aby se volba co nejvíce blížila skutečnému stavu. | D19: zpět
B21: 2. | C21: V případě, že v odstavci "b.3) větrání" nebude zvolen způsob výměny vzduchu, model bude vždy počítat s přirozeným způsobem větrání. | D21: zpět
B23: 3. | C23: V případech kdy je využíván zdroj jak na vytápění tak pro přípravu teplé vody. Lze v nabídce při zadávání 1. zdroje pro přípravu TV vybrat parametry zdrojů zadaných v části "b.1.a) vytápění". | D23: zpět
B25: 4. | C25: Při zadávání solárních kolektorů je lze zohlednit pouze ve výpočtu dodané energie pro přípravu teplé vody nebo zároveň i do výpočtu dodané energie na vytápění. Přednost má přitom vždy využití pro přípravu teplé vody. | D25: zpět
B27: 5. | C27: Plocha apertury - plocha otvoru, kterým vstupuje do kolektoru nesoustředěné sluneční záření. Hodnota je ve většině případů udávána jednotlivými výrobci fotovoltaických článků/solárních kolektorů. Hodnota je vždy menší než plocha celého kolektoru! | D27: zpět
C30: Pomocný výpočet U konstrukcí

Sheet Data (hidden)
B1: stěna | C1: U | D1: U norm pož | E1: U Norm dop | F1: U pas min | G1: U pas max | H1: Tloušťka (m) | K1: klima | AG1: Rsi | AH1: Rse
B2: konstrukce | K2: měsíc | O2: leden | P2: únor | Q2: březen | R2: duben | S2: květen | T2: červen | U2: červenec | V2: srpen | W2: září | X2: říjen | Y2: listopad | Z2: prosinec | AD2: 1 | AE2: 1 | AF2: Stěna (tepelný tok vodorovně) | AG2: 0.13 | AH2: 0.04
A3: 1 | B3: Cihly plné 30 cm | C3: 1.67 | D3: 0.3 | E3: 0.25 | F3: 0.18 | G3: 0.12 | H3: 0.3 | K3: průměrná venkovní teplota | M3: qe | N3: [°C] | O3: -1.3 | P3: -0.1 | Q3: 3.7 | R3: 8.1 | S3: 13.3 | T3: 16.1 | U3: 18 | V3: 17.9 | W3: 13.5 | X3: 8.3 | Y3: 3.2 | Z3: 0.5 | AE3: 2 | AF3: Stěna přilehlá k zemině (tepelný tok vodorovně) | AG3: 0.13 | AH3: 0
A4: 2 | B4: Cihly plné 45 cm | C4: 1.27 | D4: 0.3 | E4: 0.25 | F4: 0.18 | G4: 0.12 | H4: 0.45 | K4: intenzita slunečního záření | L4: S | M4: Is | N4: [kWh/m2] | O4: 8.2 | P4: 13.4 | Q4: 25.3 | R4: 36 | S4: 49.1 | T4: 51.8 | U4: 51.3 | V4: 42.4 | W4: 28.8 | X4: 18.6 | Y4: 9.4 | Z4: 6 | AE4: 3 | AF4: Střecha/strop pod nevytápěným prostorem (tepelný tok zdola nahoru) | AG4: 0.1 | AH4: 0.04
A5: 3 | B5: Cihly plné 60 cm | C5: 1.03 | D5: 0.3 | E5: 0.25 | F5: 0.18 | G5: 0.12 | H5: 0.6 | K5: intenzita slunečního záření | L5: J | M5: Is | N5: [kWh/m2] | O5: 34.2 | P5: 51.1 | Q5: 74.4 | R5: 85.7 | S5: 87 | T5: 75.6 | U5: 78.1 | V5: 96 | W5: 77.8 | X5: 74.4 | Y5: 45.4 | Z5: 29 | AE5: 4 | AF5: Podlaha nad volným prostorem nebo sklepem (tepelný tok shora dolů) | AG5: 0.17 | AH5: 0.04
A6: 4 | B6: Zdivo smíšené 30 cm | C6: 2.91 | D6: 0.3 | E6: 0.25 | F6: 0.18 | G6: 0.12 | H6: 0.3 | K6: intenzita slunečního záření | L6: V | M6: Is | N6: [kWh/m2] | O6: 14.1 | P6: 25.5 | Q6: 46.9 | R6: 74.2 | S6: 87 | T6: 90 | U6: 84.1 | V6: 80.4 | W6: 53.3 | X6: 38.7 | Y6: 18 | Z6: 11.2 | AE6: 5 | AF6: Podlaha na zemině (tepelný tok shora dolů) | AG6: 0.17 | AH6: 0
A7: 5 | B7: Zdivo smíšené 45 cm | C7: 2.48 | D7: 0.3 | E7: 0.25 | F7: 0.18 | G7: 0.12 | H7: 0.45 | K7: intenzita slunečního záření | L7: Z | M7: Is | N7: [kWh/m2] | O7: 14.1 | P7: 25.5 | Q7: 46.9 | R7: 74.2 | S7: 87 | T7: 90 | U7: 84.1 | V7: 80.4 | W7: 53.3 | X7: 38.7 | Y7: 18 | Z7: 11.2 | AE7: =VLOOKUP(AD2,AE2:AH6,1) -> 1 | AF7: =VLOOKUP(AD2,AE2:AH6,2) -> Stěna (tepelný tok vodorovně) | AG7: =VLOOKUP(AD2,AE2:AH6,3) -> 0.13 | AH7: =VLOOKUP(AD2,AE2:AH6,4) -> 0.04
A8: 6 | B8: Zdivo smíšené 60 cm | C8: 2.16 | D8: 0.3 | E8: 0.25 | F8: 0.18 | G8: 0.12 | H8: 0.6 | K8: intenzita slunečního záření | L8: H | M8: Is | N8: [kWh/m2] | O8: 20.8 | P8: 37 | Q8: 72.2 | R8: 113.8 | S8: 148.8 | T8: 146.2 | U8: 144.3 | V8: 136.2 | W8: 87.1 | X8: 56.5 | Y8: 25.2 | Z8: 14.9
A9: 7 | B9: Betonové vylévané tvárnice 20 cm | C9: 2.65 | D9: 0.3 | E9: 0.25 | F9: 0.18 | G9: 0.12 | H9: 0.2 | K9: intenzita slunečního záření | L9: SV | M9: Is | N9: [kWh/m2] | O9: 8.2 | P9: 14.8 | Q9: 29.8 | R9: 50.4 | S9: 65.5 | T9: 70.6 | U9: 66.2 | V9: 56.5 | W9: 35.3 | X9: 21.6 | Y9: 9.4 | Z9: 6
A10: 8 | B10: Betonové vylévané tvárnice 30 cm | C10: 2.2 | D10: 0.3 | E10: 0.25 | F10: 0.18 | G10: 0.12 | H10: 0.3 | K10: intenzita slunečního záření | L10: SZ | M10: Is | N10: [kWh/m2] | O10: 8.2 | P10: 14.8 | Q10: 29.8 | R10: 50.4 | S10: 65.5 | T10: 70.6 | U10: 66.2 | V10: 56.5 | W10: 35.3 | X10: 21.6 | Y10: 9.4 | Z10: 6 | AF10: Konstrukce 1 PS
A11: 9 | B11: Děrované cihly 30 cm | C11: 1.56 | D11: 0.3 | E11: 0.25 | F11: 0.18 | G11: 0.12 | H11: 0.3 | K11: intenzita slunečního záření | L11: JV | M11: Is | N11: [kWh/m2] | O11: 26.8 | P11: 41 | Q11: 64.7 | R11: 86.4 | S11: 92.3 | T11: 87.8 | U11: 85.6 | V11: 94.5 | W11: 69.1 | X11: 60.3 | Y11: 33.8 | Z11: 23.1 | AF11: Materiál | AG11: d [mm] | AH11: λ [W/(m.K)] | AK11: Rsi | AL11: Rse
A12: 10 | B12: Děrované cihly 45 cm | C12: 1.18 | D12: 0.3 | E12: 0.25 | F12: 0.18 | G12: 0.12 | H12: 0.45 | K12: intenzita slunečního záření | L12: JZ | M12: Is | N12: [kWh/m2] | O12: 26.8 | P12: 41 | Q12: 64.7 | R12: 86.4 | S12: 92.3 | T12: 87.8 | U12: 85.6 | V12: 94.5 | W12: 69.1 | X12: 60.3 | Y12: 33.8 | Z12: 23.1 | AF12: ='Kalkulačka na U'!$C$10 -> 0 | AG12: ='Kalkulačka na U'!D10 -> 0 | AH12: ='Kalkulačka na U'!E10 -> 0 | AI12: =IF(AG12=0,0,IF(AND(ISBLANK(AG12),ISBLANK(AG12)),0,AG12/AH12/1000)) -> 0 | AK12: =AG7 -> 0.13 | AL12: =AH7 -> 0.04
A13: 11 | B13: Děrované cihly 60 cm | C13: 0.95 | D13: 0.3 | E13: 0.25 | F13: 0.18 | G13: 0.12 | H13: 0.6 | AF13: ='Kalkulačka na U'!$C$10 -> 0 | AG13: ='Kalkulačka na U'!D11 -> 0 | AH13: ='Kalkulačka na U'!E11 -> 0 | AI13: 0
A14: 12 | B14: Tvárnice šedé 30 cm | C14: 1.59 | D14: 0.3 | E14: 0.25 | F14: 0.18 | G14: 0.12 | H14: 0.3 | AF14: ='Kalkulačka na U'!$C$10 -> 0 | AG14: ='Kalkulačka na U'!D12 -> 0 | AH14: ='Kalkulačka na U'!E12 -> 0 | AI14: 0
A15: 13 | B15: Tvárnice šedé 45 cm | C15: 1.2 | D15: 0.3 | E15: 0.25 | F15: 0.18 | G15: 0.12 | H15: 0.45 | AF15: ='Kalkulačka na U'!$C$10 -> 0 | AG15: ='Kalkulačka na U'!D13 -> 0 | AH15: ='Kalkulačka na U'!E13 -> 0 | AI15: =IF(AG15=0,0,IF(AND(ISBLANK(AG15),ISBLANK(AG15)),0,AG15/AH15/1000)) -> 0
A16: 14 | B16: Tvárnice šedé 60 cm | C16: 0.97 | D16: 0.3 | E16: 0.25 | F16: 0.18 | G16: 0.12 | H16: 0.6 | K16: Energonositelé dle vyhlášky č.78/2013 Sb. | P16: Faktor celkové primární energie | T16: Faktor neobnovitelné primární energie | X16: Součinitel emisí CO2 | Y16: dle MDVRR SR č. 364/2012 Z.z. | AF16: ='Kalkulačka na U'!$C$10 -> 0 | AG16: ='Kalkulačka na U'!D14 -> 0 | AH16: ='Kalkulačka na U'!E14 -> 0 | AI16: =IF(AG16=0,0,IF(AND(ISBLANK(AG16),ISBLANK(AG16)),0,AG16/AH16/1000)) -> 0
A17: 15 | B17: Moderní děrované cihly 30 cm | C17: 0.7 | D17: 0.3 | E17: 0.25 | F17: 0.18 | G17: 0.12 | H17: 0.3 | P17: (-) | T17: (-) | X17: (kg/kWh) | AF17: ='Kalkulačka na U'!$C$10 -> 0 | AG17: ='Kalkulačka na U'!D15 -> 0 | AH17: ='Kalkulačka na U'!E15 -> 0 | AI17: 0
A18: 16 | B18: Moderní děrované cihly 45 cm | C18: 0.49 | D18: 0.3 | E18: 0.25 | F18: 0.18 | G18: 0.12 | H18: 0.45 | K18: Zemní plyn | P18: 1.1 | T18: 1.1 | X18: 0.277 | AF18: ='Kalkulačka na U'!$C$10 -> 0 | AG18: ='Kalkulačka na U'!D16 -> 0 | AH18: ='Kalkulačka na U'!E16 -> 0 | AI18: 0
A19: 17 | B19: Moderní děrované cihly 60 cm | C19: 0.38 | D19: 0.3 | E19: 0.25 | F19: 0.18 | G19: 0.12 | H19: 0.6 | K19: Černé uhlí | P19: 1.1 | T19: 1.1 | X19: 0.394 | AF19: ='Kalkulačka na U'!$C$10 -> 0 | AG19: ='Kalkulačka na U'!D17 -> 0 | AH19: ='Kalkulačka na U'!E17 -> 0 | AI19: 0
A20: 18 | B20: Moderní pórobeton 30 cm | C20: 0.58 | D20: 0.3 | E20: 0.25 | F20: 0.18 | G20: 0.12 | H20: 0.3 | K20: Hnědé uhlí | P20: 1.1 | T20: 1.1 | X20: 0.433 | AF20: ='Kalkulačka na U'!$C$10 -> 0 | AG20: ='Kalkulačka na U'!D18 -> 0 | AH20: ='Kalkulačka na U'!E18 -> 0 | AI20: 0
A21: 19 | B21: Moderní pórobeton 45 cm | C21: 0.4 | D21: 0.3 | E21: 0.25 | F21: 0.18 | G21: 0.12 | H21: 0.45 | K21: Propan-butan/LPG | P21: 1.2 | T21: 1.2 | X21: 0.248 | AF21: ='Kalkulačka na U'!$C$10 -> 0 | AG21: ='Kalkulačka na U'!D19 -> 0 | AH21: ='Kalkulačka na U'!E19 -> 0 | AI21: 0
A22: 20 | B22: Moderní pórobeton 60 cm | C22: 0.31 | D22: 0.3 | E22: 0.25 | F22: 0.18 | G22: 0.12 | H22: 0.6 | K22: Topný olej | P22: 1.2 | T22: 1.2 | X22: 0.33
A23: 21 | B23: Vápenopískové cihly 30 cm | C23: 1.75 | D23: 0.3 | E23: 0.25 | F23: 0.18 | G23: 0.12 | H23: 0.3 | K23: Elektřina ze sítě | P23: 3.2 | T23: 3 | X23: 0.293 | AH23: U | AI23: =ROUND(1/(AK12+AL12+SUM(AI12:AI21)),2) -> 5.88
A24: 22 | B24: Vápenopískové cihly 45 cm | C24: 1.34 | D24: 0.3 | E24: 0.25 | F24: 0.18 | G24: 0.12 | H24: 0.45 | K24: Dřevěné peletky | P24: 1.2 | T24: 0.2 | X24: 0.02
A25: 23 | B25: Vápenopískové cihly 60 cm | C25: 1.09 | D25: 0.3 | E25: 0.25 | F25: 0.18 | G25: 0.12 | H25: 0.6 | K25: Kusové dřevo, dřevní štěpky | P25: 1.1 | T25: 0.1 | X25: 0.02
A26: 24 | B26: Porotherm 30 P+D - běžná malta | C26: 0.74 | D26: 0.3 | E26: 0.25 | F26: 0.18 | G26: 0.12 | H26: 0.3 | K26: Energie okolního prostředí (elektřina a teplo) | P26: 1 | T26: 0 | X26: 0 | AD26: 1 | AE26: 1 | AF26: Stěna (tepelný tok vodorovně) | AG26: 0.13 | AH26: 0.04
A27: 25 | B27: Porotherm 30 Profi - tenké spáry | C27: 0.54 | D27: 0.3 | E27: 0.25 | F27: 0.18 | G27: 0.12 | H27: 0.3 | K27: Elektřína - dodávka mimo budovu | P27: -3.2 | T27: -3 | X27: 0 | AE27: 2 | AF27: Stěna přilehlá k zemině (tepelný tok vodorovně) | AG27: 0.13 | AH27: 0
A28: 26 | B28: Porotherm 36,5 P+D - běžná malta | C28: 0.43 | D28: 0.3 | E28: 0.25 | F28: 0.18 | G28: 0.12 | H28: 0.365 | K28: Teplo - dodávka mimo budovu | P28: -1.1 | T28: -0.1 | X28: 0 | AE28: 3 | AF28: Střecha/strop pod nevytápěným prostorem (tepelný tok zdola nahoru) | AG28: 0.1 | AH28: 0.04
A29: 27 | B29: Porotherm 36,5 Profi - tenké spáry | C29: 0.36 | D29: 0.3 | E29: 0.25 | F29: 0.18 | G29: 0.12 | H29: 0.365 | K29: Soustava s vyšším než 80% podílem obnovitelných zdrojů | P29: 1.1 | T29: 0.1 | X29: 0 | AE29: 4 | AF29: Podlaha nad volným prostorem nebo sklepem (tepelný tok shora dolů) | AG29: 0.17 | AH29: 0.04
A30: 28 | B30: Porotherm 44 P+D - běžná malta | C30: 0.39 | D30: 0.3 | E30: 0.25 | F30: 0.18 | G30: 0.12 | H30: 0.44 | K30: Soustava s vyšším než 50% a nejvýše 80% podílem obnovitelných zdrojů | P30: 1.1 | T30: 0.3 | X30: 0 | AE30: 5 | AF30: Podlaha na zemině (tepelný tok shora dolů) | AG30: 0.17 | AH30: 0
A31: 29 | B31: Porotherm 44 Profi - tenké spáry | C31: 0.29 | D31: 0.3 | E31: 0.25 | F31: 0.18 | G31: 0.12 | H31: 0.44 | K31: Soustava s 50% a nižším podílem obnovitelných zdrojů | P31: 1.1 | T31: 1 | X31: 0 | AE31: =VLOOKUP(AD26,AE26:AH30,1) -> 1 | AF31: =VLOOKUP(AD26,AE26:AH30,2) -> Stěna (tepelný tok vodorovně) | AG31: =VLOOKUP(AD26,AE26:AH30,3) -> 0.13 | AH31: =VLOOKUP(AD26,AE26:AH30,4) -> 0.04
A32: 30 | B32: Porotherm 50 Hi CB - tenké spáry | C32: 0.17 | D32: 0.3 | E32: 0.25 | F32: 0.18 | G32: 0.12 | H32: 0.5 | K32: Ostatní neuvedené energonositele | P32: 1.2 | T32: 1.2 | X32: 0
A33: 31 | B33: Požadavek na stěny od roku 1979 | C33: 0.89 | D33: 0.3 | E33: 0.25 | F33: 0.18 | G33: 0.12 | H33: 0.6
A34: 32 | B34: Požadavek na stěny od roku 1992 | C34: 0.46 | D34: 0.3 | E34: 0.25 | F34: 0.18 | G34: 0.12 | H34: 0.6 | AF34: Konstrukce 1 NS
A35: 33 | B35: Požadavek na těžké stěny od roku 2002 | C35: 0.38 | D35: 0.3 | E35: 0.25 | F35: 0.18 | G35: 0.12 | H35: 0.45 | AF35: Materiál | AG35: d [mm] | AH35: λ [W/(m.K)] | AK35: Rsi | AL35: Rse
A36: 34 | B36: Požadavek na lehké stěny od roku 2002 | C36: 0.3 | D36: 0.3 | E36: 0.25 | F36: 0.18 | G36: 0.12 | H36: 0.4 | AF36: ='Kalkulačka na U'!H10 -> 0 | AG36: ='Kalkulačka na U'!I10 -> 0 | AH36: ='Kalkulačka na U'!J10 -> 0 | AI36: =IF(AG36=0,0,IF(AND(ISBLANK(AG36),ISBLANK(AG36)),0,AG36/AH36/1000)) -> 0 | AK36: =AG31 -> 0.13 | AL36: =AH31 -> 0.04
A37: 35 | B37: Požadavek na stěny od roku 2011 | C37: 0.3 | D37: 0.3 | E37: 0.25 | F37: 0.18 | G37: 0.12 | H37: 0.45 | AF37: ='Kalkulačka na U'!H11 -> 0 | AG37: ='Kalkulačka na U'!I11 -> 0 | AH37: ='Kalkulačka na U'!J11 -> 0 | AI37: =IF(AG37=0,0,IF(AND(ISBLANK(AG37),ISBLANK(AG37)),0,AG37/AH37/1000)) -> 0
A38: 36 | B38: Stěna pro nízkoenergetický dům | C38: 0.25 | D38: 0.3 | E38: 0.25 | F38: 0.18 | G38: 0.12 | H38: 0.4 | AF38: ='Kalkulačka na U'!H12 -> 0 | AG38: ='Kalkulačka na U'!I12 -> 0 | AH38: ='Kalkulačka na U'!J12 -> 0 | AI38: =IF(AG38=0,0,IF(AND(ISBLANK(AG38),ISBLANK(AG38)),0,AG38/AH38/1000)) -> 0
B39: v případě přidávání dalších konstrukcí- nutné propojit s výpočtem objemu !! | AF39: ='Kalkulačka na U'!H13 -> 0 | AG39: ='Kalkulačka na U'!I13 -> 0 | AH39: ='Kalkulačka na U'!J13 -> 0 | AI39: =IF(AG39=0,0,IF(AND(ISBLANK(AG39),ISBLANK(AG39)),0,AG39/AH39/1000)) -> 0
AF40: ='Kalkulačka na U'!H14 -> 0 | AG40: ='Kalkulačka na U'!I14 -> 0 | AH40: ='Kalkulačka na U'!J14 -> 0 | AI40: =IF(AG40=0,0,IF(AND(ISBLANK(AG40),ISBLANK(AG40)),0,AG40/AH40/1000)) -> 0
B41: strop a střecha | AF41: ='Kalkulačka na U'!H15 -> 0 | AG41: ='Kalkulačka na U'!I15 -> 0 | AH41: ='Kalkulačka na U'!J15 -> 0 | AI41: 0
B42: konstrukce | AF42: ='Kalkulačka na U'!H16 -> 0 | AG42: ='Kalkulačka na U'!I16 -> 0 | AH42: ='Kalkulačka na U'!J16 -> 0 | AI42: 0
A43: 1 | B43: Střecha plochá - s železobetonovou deskou | C43: 0.5 | D43: 0.24 | E43: 0.16 | F43: 0.15 | G43: 0.1 | H43: 0.38 | I43: do 45° | AF43: ='Kalkulačka na U'!H17 -> 0 | AG43: ='Kalkulačka na U'!I17 -> 0 | AH43: ='Kalkulačka na U'!J17 -> 0 | AI43: 0
A44: 2 | B44: Střecha plochá - s keramickými vložkam | C44: 1.34 | D44: 0.24 | E44: 0.16 | F44: 0.15 | G44: 0.1 | H44: 0.26 | I44: do 45° | AF44: ='Kalkulačka na U'!H18 -> 0 | AG44: ='Kalkulačka na U'!I18 -> 0 | AH44: ='Kalkulačka na U'!J18 -> 0 | AI44: 0
A45: 3 | B45: Střecha plochá - novější (zateplená) | C45: 0.25 | D45: 0.24 | E45: 0.16 | F45: 0.15 | G45: 0.1 | H45: 0.38 | I45: do 45° | AF45: ='Kalkulačka na U'!H19 -> 0 | AG45: ='Kalkulačka na U'!I19 -> 0 | AH45: ='Kalkulačka na U'!J19 -> 0 | AI45: 0
A46: 4 | B46: Střecha plochá - U doporučené | C46: 0.16 | D46: 0.24 | E46: 0.16 | F46: 0.15 | G46: 0.1 | H46: 0.45 | I46: do 45°
A47: 5 | B47: Střecha plochá - pasivní standard | C47: 0.14 | D47: 0.24 | E47: 0.16 | F47: 0.15 | G47: 0.1 | H47: 0.5 | I47: do 45° | AH47: U | AI47: =ROUND(1/(AK36+AL36+SUM(AI36:AI45)),2) -> 5.88
A48: 6 | B48: Střecha šikmá - tenká vrstva izolace (zastaralá) | C48: 0.66 | D48: 0.24 | E48: 0.16 | F48: 0.15 | G48: 0.1 | H48: 0.215 | I48: do 45°
A49: 7 | B49: Střecha šikmá - izolace mezi krokvemi | C49: 0.28 | D49: 0.24 | E49: 0.16 | F49: 0.15 | G49: 0.1 | H49: 0.215 | I49: do 45°
A50: 8 | B50: Střecha šikmá - izolace i pod krokvemi | C50: 0.22 | D50: 0.24 | E50: 0.16 | F50: 0.15 | G50: 0.1 | H50: 0.255 | I50: do 45°
A51: 9 | B51: Střecha šikmá - novější (zateplená) | C51: 0.19 | D51: 0.24 | E51: 0.16 | F51: 0.15 | G51: 0.1 | H51: 0.3 | I51: do 45° | AD51: 1 | AE51: 1 | AF51: Stěna (tepelný tok vodorovně) | AG51: 0.13 | AH51: 0.04
A52: 10 | B52: Střecha šikmá - U doporučené | C52: 0.16 | D52: 0.24 | E52: 0.16 | F52: 0.15 | G52: 0.1 | H52: 0.34 | I52: do 45° | AE52: 2 | AF52: Stěna přilehlá k zemině (tepelný tok vodorovně) | AG52: 0.13 | AH52: 0
A53: 11 | B53: Střecha šikmá - pasivní standard | C53: 0.14 | D53: 0.24 | E53: 0.16 | F53: 0.15 | G53: 0.1 | H53: 0.38 | I53: do 45° | AE53: 3 | AF53: Střecha/strop pod nevytápěným prostorem (tepelný tok zdola nahoru) | AG53: 0.1 | AH53: 0.04
A54: 1 | B54: Střecha šikmá - tenká vrstva izolace (zastaralá) | C54: 0.66 | D54: 0.24 | E54: 0.16 | F54: 0.15 | G54: 0.1 | H54: 0.215 | I54: nad 45° | AE54: 4 | AF54: Podlaha nad volným prostorem nebo sklepem (tepelný tok shora dolů) | AG54: 0.17 | AH54: 0.04
A55: 2 | B55: Střecha šikmá - izolace mezi krokvemi | C55: 0.28 | D55: 0.3 | E55: 0.2 | F55: 0.18 | G55: 0.12 | H55: 0.215 | I55: nad 45° | AE55: 5 | AF55: Podlaha na zemině (tepelný tok shora dolů) | AG55: 0.17 | AH55: 0
A56: 3 | B56: Střecha šikmá - izolace i pod krokvemi | C56: 0.22 | D56: 0.3 | E56: 0.2 | F56: 0.18 | G56: 0.12 | H56: 0.255 | I56: nad 45° | AE56: =VLOOKUP(AD51,AE51:AH55,1) -> 1 | AF56: =VLOOKUP(AD51,AE51:AH55,2) -> Stěna (tepelný tok vodorovně) | AG56: =VLOOKUP(AD51,AE51:AH55,3) -> 0.13 | AH56: =VLOOKUP(AD51,AE51:AH55,4) -> 0.04
A57: 4 | B57: Střecha šikmá - novější (zateplená) | C57: 0.19 | D57: 0.3 | E57: 0.2 | F57: 0.18 | G57: 0.12 | H57: 0.3 | I57: nad 45°
A58: 5 | B58: Střecha šikmá - U doporučené | C58: 0.16 | D58: 0.3 | E58: 0.2 | F58: 0.18 | G58: 0.12 | H58: 0.34 | I58: nad 45°
A59: 6 | B59: Střecha šikmá - pasivní standard | C59: 0.14 | D59: 0.3 | E59: 0.2 | F59: 0.18 | G59: 0.12 | H59: 0.38 | I59: nad 45° | AF59: Konstrukce 2 PS
A60: 1 | B60: Strop - dřevěný,trámový | C60: 0.99 | D60: 0.3 | E60: 0.2 | F60: 0.15 | G60: 0.1 | H60: 0.4 | I60: podlaha půdy | AF60: Materiál | AG60: d [mm] | AH60: λ [W/(m.K)] | AK60: Rsi | AL60: Rse
A61: 2 | B61: Strop - s nosnou keramickou vložkou | C61: 1.5 | D61: 0.3 | E61: 0.2 | F61: 0.15 | G61: 0.1 | H61: 0.265 | I61: podlaha půdy | AF61: ='Kalkulačka na U'!C35 -> 0 | AG61: ='Kalkulačka na U'!D35 -> 0 | AH61: ='Kalkulačka na U'!E35 -> 0 | AI61: =IF(AG61=0,0,IF(AND(ISBLANK(AG61),ISBLANK(AG61)),0,AG61/AH61/1000)) -> 0 | AK61: =AG56 -> 0.13 | AL61: =AH56 -> 0.04
A62: 3 | B62: Strop - železobetonový strop (bez izolace) | C62: 3.82 | D62: 0.3 | E62: 0.2 | F62: 0.15 | G62: 0.1 | H62: 0.18 | I62: podlaha půdy | AF62: ='Kalkulačka na U'!C36 -> 0 | AG62: ='Kalkulačka na U'!D36 -> 0 | AH62: ='Kalkulačka na U'!E36 -> 0 | AI62: 0
A63: 4 | B63: Strop - dutinové panely (bez izolace) | C63: 3.06 | D63: 0.3 | E63: 0.2 | F63: 0.15 | G63: 0.1 | H63: 0.22 | I63: podlaha půdy | AF63: ='Kalkulačka na U'!C37 -> 0 | AG63: ='Kalkulačka na U'!D37 -> 0 | AH63: ='Kalkulačka na U'!E37 -> 0 | AI63: 0
A64: 5 | B64: Strop - U požadované | C64: 0.3 | D64: 0.3 | E64: 0.2 | F64: 0.15 | G64: 0.1 | H64: 0.37 | I64: podlaha půdy | AF64: ='Kalkulačka na U'!C38 -> 0 | AG64: ='Kalkulačka na U'!D38 -> 0 | AH64: ='Kalkulačka na U'!E38 -> 0 | AI64: =IF(AG64=0,0,IF(AND(ISBLANK(AG64),ISBLANK(AG64)),0,AG64/AH64/1000)) -> 0
A65: 6 | B65: Strop - U doporučené | C65: 0.2 | D65: 0.3 | E65: 0.2 | F65: 0.15 | G65: 0.1 | H65: 0.43 | I65: podlaha půdy | AF65: ='Kalkulačka na U'!C39 -> 0 | AG65: ='Kalkulačka na U'!D39 -> 0 | AH65: ='Kalkulačka na U'!E39 -> 0 | AI65: =IF(AG65=0,0,IF(AND(ISBLANK(AG65),ISBLANK(AG65)),0,AG65/AH65/1000)) -> 0
A66: 7 | B66: Strop - pasivní standard | C66: 0.14 | D66: 0.3 | E66: 0.2 | F66: 0.15 | G66: 0.1 | H66: 0.51 | I66: podlaha půdy | AF66: ='Kalkulačka na U'!C40 -> 0 | AG66: ='Kalkulačka na U'!D40 -> 0 | AH66: ='Kalkulačka na U'!E40 -> 0 | AI66: 0
B67: v případě přidávání dalších konstrukcí- nutné propojit s výpočtem objemu !! | AF67: ='Kalkulačka na U'!C41 -> 0 | AG67: ='Kalkulačka na U'!D41 -> 0 | AH67: ='Kalkulačka na U'!E41 -> 0 | AI67: 0
AF68: ='Kalkulačka na U'!C42 -> 0 | AG68: ='Kalkulačka na U'!D42 -> 0 | AH68: ='Kalkulačka na U'!E42 -> 0 | AI68: 0
AF69: ='Kalkulačka na U'!C43 -> 0 | AG69: ='Kalkulačka na U'!D43 -> 0 | AH69: ='Kalkulačka na U'!E43 -> 0 | AI69: 0
B70: podlaha | AF70: ='Kalkulačka na U'!C44 -> 0 | AG70: ='Kalkulačka na U'!D44 -> 0 | AH70: ='Kalkulačka na U'!E44 -> 0 | AI70: 0
A71: 1 | B71: Podl. na terénu - zastaralá (bez izolace) | C71: 1.7 | D71: 0.45 | E71: 0.3 | F71: 0.22 | G71: 0.15 | H71: 0.2
A72: 2 | B72: Podl. na terénu - zastaralá (s izolací) | C72: 0.97 | D72: 0.45 | E72: 0.3 | F72: 0.22 | G72: 0.15 | H72: 0.23 | AH72: U | AI72: =ROUND(1/(AK61+AL61+SUM(AI61:AI70)),2) -> 5.88
A73: 3 | B73: Podl. na terénu - težká s parketami (bez izolace) | C73: 3.24 | D73: 0.45 | E73: 0.3 | F73: 0.22 | G73: 0.15 | H73: 0.07
A74: 4 | B74: Podl. na terénu - lehká s parketami (bez izolace) | C74: 1.8 | D74: 0.45 | E74: 0.3 | F74: 0.22 | G74: 0.15 | H74: 0.05
A75: 5 | B75: Podl. na terénu - težká s dlažbou (bez izolace) | C75: 4.35 | D75: 0.45 | E75: 0.3 | F75: 0.22 | G75: 0.15 | H75: 0.07 | AD75: 1 | AE75: 1 | AF75: Stěna (tepelný tok vodorovně) | AG75: 0.13 | AH75: 0.04
A76: 6 | B76: Podl. na terénu - lehká s dlažbou (bez izolace) | C76: 2.33 | D76: 0.45 | E76: 0.3 | F76: 0.22 | G76: 0.15 | H76: 0.05 | AE76: 2 | AF76: Stěna přilehlá k zemině (tepelný tok vodorovně) | AG76: 0.13 | AH76: 0
A77: 7 | B77: Podl. na terénu - U požadované | C77: 0.45 | D77: 0.45 | E77: 0.3 | F77: 0.22 | G77: 0.15 | H77: 0.15 | AE77: 3 | AF77: Střecha/strop pod nevytápěným prostorem (tepelný tok zdola nahoru) | AG77: 0.1 | AH77: 0.04
A78: 8 | B78: Podl. na terénu - U doporučené | C78: 0.3 | D78: 0.45 | E78: 0.3 | F78: 0.22 | G78: 0.15 | H78: 0.18 | AE78: 4 | AF78: Podlaha nad volným prostorem nebo sklepem (tepelný tok shora dolů) | AG78: 0.17 | AH78: 0.04
A79: 9 | B79: Podl. na terénu - pasivní standard | C79: 0.2 | D79: 0.45 | E79: 0.3 | F79: 0.22 | G79: 0.15 | H79: 0.25 | AE79: 5 | AF79: Podlaha na zemině (tepelný tok shora dolů) | AG79: 0.17 | AH79: 0
A80: 10 | AE80: =VLOOKUP(AD75,AE75:AH79,1) -> 1 | AF80: =VLOOKUP(AD75,AE75:AH79,2) -> Stěna (tepelný tok vodorovně) | AG80: =VLOOKUP(AD75,AE75:AH79,3) -> 0.13 | AH80: =VLOOKUP(AD75,AE75:AH79,4) -> 0.04
A81: 1 | B81: Podl. nad suterénem - bez tep. izolace (zastaralá) | C81: 1.53 | D81: 0.6 | E81: 0.4 | F81: 0.3 | G81: 0.2 | H81: 0.35
A82: 2 | B82: Podl. nad suterénem - s tep. izolací (zastaralá) | C82: 0.82 | D82: 0.6 | E82: 0.4 | F82: 0.3 | G82: 0.2 | H82: 0.33
A83: 3 | B83: Podl. nad suterénem - težká s parketami (bez izolace) | C83: 1.72 | D83: 0.6 | E83: 0.4 | F83: 0.3 | G83: 0.2 | H83: 0.34 | AF83: Konstrukce 2 NS
A84: 4 | B84: Podl. nad suterénem - lehká s parketami (bez izolace) | C84: 1.18 | D84: 0.6 | E84: 0.4 | F84: 0.3 | G84: 0.2 | H84: 0.32 | AF84: Materiál | AG84: d [mm] | AH84: λ [W/(m.K)] | AK84: Rsi | AL84: Rse
A85: 5 | B85: Podl. nad suterénem - težká s dlažbou (bez izolace) | C85: 1.8 | D85: 0.6 | E85: 0.4 | F85: 0.3 | G85: 0.2 | H85: 0.385 | AF85: ='Kalkulačka na U'!H35 -> 0 | AG85: ='Kalkulačka na U'!I35 -> 0 | AH85: ='Kalkulačka na U'!J35 -> 0 | AI85: =IF(AG85=0,0,IF(AND(ISBLANK(AG85),ISBLANK(AG85)),0,AG85/AH85/1000)) -> 0 | AK85: =AG80 -> 0.13 | AL85: =AH80 -> 0.04
A86: 6 | B86: Podl. nad suterénem - lehká s dlažbou (bez izolace) | C86: 1.33 | D86: 0.6 | E86: 0.4 | F86: 0.3 | G86: 0.2 | H86: 0.33 | AF86: ='Kalkulačka na U'!H36 -> 0 | AG86: ='Kalkulačka na U'!I36 -> 0 | AH86: ='Kalkulačka na U'!J36 -> 0 | AI86: 0
A87: 7 | B87: Podl. nad suterénem - U požadované | C87: 0.6 | D87: 0.6 | E87: 0.4 | F87: 0.3 | G87: 0.2 | H87: 0.38 | AF87: ='Kalkulačka na U'!H37 -> 0 | AG87: ='Kalkulačka na U'!I37 -> 0 | AH87: ='Kalkulačka na U'!J37 -> 0 | AI87: 0
A88: 8 | B88: Podl. nad suterénem - U doporučené | C88: 0.4 | D88: 0.6 | E88: 0.4 | F88: 0.3 | G88: 0.2 | H88: 0.42 | AF88: ='Kalkulačka na U'!H38 -> 0 | AG88: ='Kalkulačka na U'!I38 -> 0 | AH88: ='Kalkulačka na U'!J38 -> 0 | AI88: =IF(AG88=0,0,IF(AND(ISBLANK(AG88),ISBLANK(AG88)),0,AG88/AH88/1000)) -> 0
A89: 9 | B89: Podl. nad suterénem - pasivní standard | C89: 0.28 | D89: 0.6 | E89: 0.4 | F89: 0.3 | G89: 0.2 | H89: 0.46 | AF89: ='Kalkulačka na U'!H39 -> 0 | AG89: ='Kalkulačka na U'!I39 -> 0 | AH89: ='Kalkulačka na U'!J39 -> 0 | AI89: =IF(AG89=0,0,IF(AND(ISBLANK(AG89),ISBLANK(AG89)),0,AG89/AH89/1000)) -> 0
A90: 10 | AF90: ='Kalkulačka na U'!H40 -> 0 | AG90: ='Kalkulačka na U'!I40 -> 0 | AH90: ='Kalkulačka na U'!J40 -> 0 | AI90: 0
A91: 11 | AF91: ='Kalkulačka na U'!H41 -> 0 | AG91: ='Kalkulačka na U'!I41 -> 0 | AH91: ='Kalkulačka na U'!J41 -> 0 | AI91: 0
B92: v případě přidávání dalších konstrukcí- nutné propojit s výpočtem objemu !! | AF92: ='Kalkulačka na U'!H42 -> 0 | AG92: ='Kalkulačka na U'!I42 -> 0 | AH92: ='Kalkulačka na U'!J42 -> 0 | AI92: 0
AF93: ='Kalkulačka na U'!H43 -> 0 | AG93: ='Kalkulačka na U'!I43 -> 0 | AH93: ='Kalkulačka na U'!J43 -> 0 | AI93: 0
AF94: ='Kalkulačka na U'!H44 -> 0 | AG94: ='Kalkulačka na U'!I44 -> 0 | AH94: ='Kalkulačka na U'!J44 -> 0 | AI94: 0
B95: okna | H95: g - součinitel propustnosti sol. záření
A96: 1 | B96: okno jednoduché s jedním sklem | C96: 4.5 | D96: 1.5 | E96: 1.2 | F96: 0.8 | G96: 0.6 | H96: 0.85 | AH96: U | AI96: =ROUND(1/(AK85+AL85+SUM(AI85:AI94)),2) -> 5.88
A97: 2 | B97: okno jednoduché s dvojsklem (starší) | C97: 2.5 | D97: 1.5 | E97: 1.2 | F97: 0.8 | G97: 0.6 | H97: 0.75
A98: 3 | B98: okno zdvojené (sešroub. rámy) s dvěma skly | C98: 2.4 | D98: 1.5 | E98: 1.2 | F98: 0.8 | G98: 0.6 | H98: 0.75
A99: 4 | B99: okno špaletové | C99: 2.35 | D99: 1.5 | E99: 1.2 | F99: 0.8 | G99: 0.6 | H99: 0.75
A100: 5 | B100: okno s kovovým rámem a drátosklem | C100: 3.5 | D100: 1.5 | E100: 1.2 | F100: 0.8 | G100: 0.6 | H100: 0.6
A101: 6 | B101: luxfery | C101: 4 | D101: 1.5 | E101: 1.2 | F101: 0.8 | G101: 0.6 | H101: 0.3
A102: 7 | B102: okno starší s dvojsklem | C102: 1.5 | D102: 1.5 | E102: 1.2 | F102: 0.8 | G102: 0.6 | H102: 0.75
A103: 8 | B103: okno novější s dvojsklem | C103: 1.2 | D103: 1.5 | E103: 1.2 | F103: 0.8 | G103: 0.6 | H103: 0.67
A104: 9 | B104: okno s trojsklem | C104: 0.7 | D104: 1.5 | E104: 1.2 | F104: 0.8 | G104: 0.6 | H104: 0.5
A105: 10 | B105: dveře dřevěné vchodové plné | C105: 2.3 | D105: 1.7 | E105: 1.2 | F105: 0.8 | G105: 0.6 | H105: 0
A106: 11 | B106: dveře dřevěné vchodové s prosklením | C106: 4 | D106: 1.7 | E106: 1.2 | F106: 0.8 | G106: 0.6 | H106: 0.75
A107: 12 | B107: dveře balkonové dřevěné | C107: 2.4 | D107: 1.7 | E107: 1.2 | F107: 0.8 | G107: 0.6 | H107: 0.75
A108: 13 | B108: dveře vchodové novější s prosklením | C108: 1.2 | D108: 1.7 | E108: 1.2 | F108: 0.8 | G108: 0.9 | H108: 0.67
A109: 14 | B109: dveře vchodové novější plné | C109: 1.2 | D109: 1.7 | E109: 1.2 | F109: 0.8 | G109: 0.9 | H109: 0
A110: 15 | B110: dveře vchodové trojsklo s prosklením | C110: 0.8 | D110: 1.7 | E110: 1.2 | F110: 0.8 | G110: 0.9 | H110: 0.5
A111: 16 | B111: garážová vrata | C111: 1.3 | D111: 1.7 | E111: 1.2 | F111: 0.8 | G111: 0.9 | H111: 0
A114: 1 | B114: okno střešní jednoduché s jedním sklem | C114: 4.5 | D114: 1.4 | E114: 1.1 | F114: 0.9 | G114: 0.9 | H114: 0.85
A115: 2 | B115: okno střešní starší jednoduché s dvojsklem | C115: 2.5 | D115: 1.4 | E115: 1.1 | F115: 0.9 | G115: 0.9 | H115: 0.75
A116: 3 | B116: okno střešní zdvojené s dvěma skly | C116: 2.4 | D116: 1.4 | E116: 1.1 | F116: 0.9 | G116: 0.9 | H116: 0.75
A117: 4 | B117: okno střešní novější s dvojsklem | C117: 1.2 | D117: 1.4 | E117: 1.1 | F117: 0.9 | G117: 0.9 | H117: 0.67
A118: 5 | B118: okno střešní s trojsklem | C118: 0.9 | D118: 1.4 | E118: 1.1 | F118: 0.9 | G118: 0.9 | H118: 0.5
A119: 6 | C119: 1
A120: 7 | C120: 1
B125: vnitřní stěny
A126: 1 | B126: Cihly plné 10 cm | C126: 2.87 | D126: 0.6 | E126: 0.4 | F126: 0.3 | G126: 0.2 | H126: 0.1
A127: 2 | B127: Cihly plné 20 cm | C127: 2.11 | D127: 0.6 | E127: 0.4 | F127: 0.3 | G127: 0.2 | H127: 0.2
A128: 3 | B128: Cihly plné 30 cm | C128: 1.67 | D128: 0.6 | E128: 0.4 | F128: 0.3 | G128: 0.2 | H128: 0.3
A129: 4 | B129: Zdivo smíšené 10 cm | C129: 3.8 | D129: 0.6 | E129: 0.4 | F129: 0.3 | G129: 0.2 | H129: 0.1
A130: 5 | B130: Zdivo smíšené 20 cm | C130: 3.3 | D130: 0.6 | E130: 0.4 | F130: 0.3 | G130: 0.2 | H130: 0.2
A131: 6 | B131: Zdivo smíšené 30 cm | C131: 2.91 | D131: 0.6 | E131: 0.4 | F131: 0.3 | G131: 0.2 | H131: 0.3
A132: 7 | B132: Děrované cihly 10 cm | C132: 2.76 | D132: 0.6 | E132: 0.4 | F132: 0.3 | G132: 0.2 | H132: 0.1
A133: 8 | B133: Děrované cihly 20 cm | C133: 2 | D133: 0.6 | E133: 0.4 | F133: 0.3 | G133: 0.2 | H133: 0.2
A134: 9 | B134: Děrované cihly 30 cm | C134: 1.56 | D134: 0.6 | E134: 0.4 | F134: 0.3 | G134: 0.2 | H134: 0.3
A135: 10 | B135: Tvárnice šedé 10 cm | C135: 2.79 | D135: 0.6 | E135: 0.4 | F135: 0.3 | G135: 0.2 | H135: 0.1
A136: 11 | B136: Tvárnice šedé 20 cm | C136: 2.03 | D136: 0.6 | E136: 0.4 | F136: 0.3 | G136: 0.2 | H136: 0.2
A137: 12 | B137: Tvárnice šedé 30 cm | C137: 1.59 | D137: 0.6 | E137: 0.4 | F137: 0.3 | G137: 0.2 | H137: 0.3
A138: 13 | B138: Moderní děrované cihly 10 cm | C138: 1.6 | D138: 0.6 | E138: 0.4 | F138: 0.3 | G138: 0.2 | H138: 0.1
A139: 14 | B139: Moderní děrované cihly 20 cm | C139: 0.98 | D139: 0.6 | E139: 0.4 | F139: 0.3 | G139: 0.2 | H139: 0.2
A140: 15 | B140: Moderní děrované cihly 30 cm | C140: 0.7 | D140: 0.6 | E140: 0.4 | F140: 0.3 | G140: 0.2 | H140: 0.3
A141: 16 | B141: Moderní pórobeton 10 cm | C141: 1.38 | D141: 0.6 | E141: 0.4 | F141: 0.3 | G141: 0.2 | H141: 0.1
A142: 17 | B142: Moderní pórobeton 20 cm | C142: 0.82 | D142: 0.6 | E142: 0.4 | F142: 0.3 | G142: 0.2 | H142: 0.2
A143: 18 | B143: Moderní pórobeton 30 cm | C143: 0.58 | D143: 0.6 | E143: 0.4 | F143: 0.3 | G143: 0.2 | H143: 0.3
A144: 19 | B144: Vápenopískové cihly 10 cm | C144: 2.94 | D144: 0.6 | E144: 0.4 | F144: 0.3 | G144: 0.2 | H144: 0.1
A145: 20 | B145: Vápenopískové cihly 20 cm | C145: 2.19 | D145: 0.6 | E145: 0.4 | F145: 0.3 | G145: 0.2 | H145: 0.2
A146: 21 | B146: Vápenopískové cihly 30 cm | C146: 1.75 | D146: 0.6 | E146: 0.4 | F146: 0.3 | G146: 0.2 | H146: 0.3
B147: v případě přidávání dalších konstrukcí- nutné propojit s výpočtem objemu !!
A148: 1 | B148: Dveře vnitřní plné | C148: 2 | D148: 3.5 | E148: 2.3 | F148: 1.7 | G148: 1.7
A149: 2 | B149: Dveře vnitřní 2/3 prosklené | C149: 3 | D149: 3.5 | E149: 2.3 | F149: 1.7 | G149: 1.7
B168: A.1 Zdroje tepla
B170: Hodnoty pro technické systémy dle TNI 73 0331
B171: Základní rozdělení zdrojů tepla | H171: 1 | I171: =IF($H$171=2,A186,IF($H$171=3,A196,IF($H$171=4,A207,IF($H$171=5,A218,IF($H$171=6,A229,IF($H$171=7,A241,"chyba")))))) -> chyba | J171: =IF($H$171=2,B186,IF($H$171=3,B196,IF($H$171=4,B207,IF($H$171=5,B218,IF($H$171=6,B229,IF($H$171=7,B241,"-")))))) -> - | K171: =IF($H$171=2,F186,IF($H$171=3,F196,IF($H$171=4,F207,IF($H$171=5,F218,IF($H$171=6,F229,IF($H$171=7,F241)))))) -> FALSE | M171: =$I$180 -> 10 | N171: =IF($M$171=21,H186,IF($M$171=22,H194,IF($M$171=23,H202,IF($M$171=31,H212,IF($M$171=32,H222,IF($M$171=61,H234,IF($M$171=62,H242,IF($M$171=63,H250,"chyba")))))))) -> chyba | O171: =IF($M$171=21,I186,IF($M$171=22,I194,IF($M$171=23,I202,IF($M$171=31,I212,IF($M$171=32,I222,IF($M$171=61,I234,IF($M$171=62,I242,IF($M$171=63,I250,"-")))))))) -> - | P171: =IF($M$171=21,V186,IF($M$171=22,V194,IF($M$171=23,V202,IF($M$171=31,V212,IF($M$171=32,V222,IF($M$171=61,V234,IF($M$171=62,V242,IF($M$171=63,V250,"chyba")))))))) -> chyba | Y171: 1 | Z171: =IF($Y$171=2,A186,IF($Y$171=3,A196,IF($Y$171=4,A207,IF($Y$171=5,A218,IF($Y$171=6,A229,IF($Y$171=7,A241,"chyba")))))) -> chyba | AA171: =IF($Y$171=2,B186,IF($Y$171=3,B196,IF($Y$171=4,B207,IF($Y$171=5,B218,IF($Y$171=6,B229,IF($Y$171=7,B241,"-")))))) -> - | AB171: =IF($Y$171=2,F186,IF($Y$171=3,F196,IF($Y$171=4,F207,IF($Y$171=5,F218,IF($Y$171=6,F229,IF($Y$171=7,F241)))))) -> FALSE | AD171: =$Z$180 -> 10 | AE171: =IF($AD$171=21,H186,IF($AD$171=22,H194,IF($AD$171=23,H202,IF($AD$171=31,H212,IF($AD$171=32,H222,IF($AD$171=61,H234,IF($AD$171=62,H242,IF($AD$171=63,H250,"chyba")))))))) -> chyba | AF171: =IF($AD$171=21,I186,IF($AD$171=22,I194,IF($AD$171=23,I202,IF($AD$171=31,I212,IF($AD$171=32,I222,IF($AD$171=61,I234,IF($AD$171=62,I242,IF($AD$171=63,I250,"-")))))))) -> - | AG171: =IF($AD$171=21,V186,IF($AD$171=22,V194,IF($AD$171=23,V202,IF($AD$171=31,V212,IF($AD$171=32,V222,IF($AD$171=61,V234,IF($AD$171=62,V242,IF($AD$171=63,V250,"chyba")))))))) -> chyba | AO171: 1 | AP171: =IF($AO$171=2,A186,IF($AO$171=3,A196,IF($AO$171=4,A207,IF($AO$171=5,A218,IF($AO$171=6,A229,IF($AO$171=7,A241,"chyba")))))) -> chyba | AQ171: =IF($AO$171=2,B186,IF($AO$171=3,B196,IF($AO$171=4,B207,IF($AO$171=5,B218,IF($AO$171=6,B229,IF($AO$171=7,B241,"-")))))) -> - | AR171: =IF($AO$171=2,F186,IF($AO$171=3,F196,IF($AO$171=4,F207,IF($AO$171=5,F218,IF($AO$171=6,F229,IF($AO$171=7,F241,"-")))))) -> - | AT171: =$AP$180 -> 10 | AU171: =IF($AT$171=21,H186,IF($AT$171=22,H194,IF($AT$171=23,H202,IF($AT$171=31,H212,IF($AT$171=32,H222,IF($AT$171=61,H234,IF($AT$171=62,H242,IF($AT$171=63,H250,"chyba")))))))) -> chyba | AV171: =IF($AT$171=21,I186,IF($AT$171=22,I194,IF($AT$171=23,I202,IF($AT$171=31,I213,IF($AT$171=32,I222,IF($AT$171=61,I234,IF($AT$171=62,I242,IF($AT$171=63,I250,"-")))))))) -> - | AW171: =IF($AT$171=21,V186,IF($AT$171=22,V194,IF($AT$171=23,V202,IF($AT$171=31,V212,IF($AT$171=32,V222,IF($AT$171=61,V234,IF($AT$171=62,V242,IF($AT$171=63,V250,"chyba")))))))) -> chyba
A172: 1 | I172: chyba | J172: - | K172: FALSE | M172: 10 | N172: chyba | O172: - | P172: chyba | Z172: chyba | AA172: - | AB172: FALSE | AD172: =$Z$180 -> 10 | AE172: chyba | AF172: - | AG172: =IF($AD$171=21,V187,IF($AD$171=22,V195,IF($AD$171=23,V203,IF($AD$171=31,V213,IF($AD$171=32,V223,IF($AD$171=61,V235,IF($AD$171=62,V243,IF($AD$171=63,V251,"chyba")))))))) -> chyba | AP172: chyba | AQ172: - | AR172: - | AT172: 10 | AU172: chyba | AV172: - | AW172: =IF($AT$171=21,V187,IF($AT$171=22,V195,IF($AT$171=23,V203,IF($AT$171=31,V213,IF($AT$171=32,V223,IF($AT$171=61,V235,IF($AT$171=62,V243,IF($AT$171=63,V251,"chyba")))))))) -> chyba
A173: 2 | B173: Zdroj tepla na plynná a kapalná paliva | H173: 1 | I173: chyba | J173: - | K173: FALSE | M173: 10 | N173: chyba | O173: - | P173: chyba | Y173: 1 | Z173: chyba | AA173: - | AB173: FALSE | AD173: 10 | AE173: chyba | AF173: - | AG173: chyba | AO173: 1 | AP173: chyba | AQ173: - | AR173: - | AT173: 10 | AU173: chyba | AV173: - | AW173: chyba
A174: 3 | B174: Kotel na pevná paliva | I174: chyba | J174: - | K174: FALSE | M174: 10 | N174: chyba | O174: - | P174: chyba | Z174: chyba | AA174: - | AB174: FALSE | AD174: 10 | AE174: chyba | AF174: - | AG174: chyba | AP174: chyba | AQ174: - | AR174: - | AT174: 10 | AU174: chyba | AV174: - | AW174: chyba
A175: 4 | B175: Elektrokotel | H175: 1 | I175: chyba | J175: - | K175: FALSE | M175: 10 | N175: chyba | O175: - | P175: chyba | Y175: 1 | Z175: chyba | AA175: - | AB175: FALSE | AD175: 10 | AE175: chyba | AF175: - | AG175: chyba | AO175: 1 | AP175: chyba | AQ175: - | AR175: - | AT175: 10 | AU175: chyba | AV175: - | AW175: chyba
A176: 5 | B176: Objektová předávací stanice | I176: chyba | J176: - | K176: FALSE | M176: 10 | N176: chyba | O176: - | P176: chyba | Z176: chyba | AA176: - | AB176: FALSE | AD176: 10 | AE176: chyba | AF176: - | AG176: chyba | AP176: chyba | AQ176: - | AR176: - | AT176: 10 | AU176: chyba | AV176: - | AW176: chyba
A177: 6 | B177: Tepelné čerpadlo | I177: chyba | J177: - | K177: FALSE | M177: 10 | N177: chyba | O177: - | P177: chyba | Z177: chyba | AA177: - | AB177: FALSE | AD177: 10 | AE177: chyba | AF177: - | AG177: chyba | AP177: chyba | AQ177: - | AR177: - | AT177: 10 | AU177: chyba | AV177: - | AW177: chyba
A178: 7 | B178: Lokální topidlo na pevná a plynná paliva | I178: chyba | J178: - | K178: FALSE | M178: 10 | N178: chyba | O178: - | P178: chyba | Z178: chyba | AA178: - | AB178: FALSE | AD178: 10 | AE178: chyba | AF178: - | AG178: chyba | AP178: chyba | AQ178: - | AR178: - | AT178: 10 | AU178: chyba | AV178: - | AW178: chyba
A180: =H171 -> 1 | B180: =VLOOKUP(A180,A172:B178,2) -> 0 | I180: =(H171*10)+(H173-1) -> 10 | J180: =IF(I171="chyba","",VLOOKUP(I180,I171:K178,2)) ->  | K180: =IF(I171="chyba","",VLOOKUP(I180,I171:K178,3)) ->  | N180: =(H171*100)+((H173-1)*10)+(H175-1) -> 100 | O180: =VLOOKUP(N180,N171:P178,2) ->  | P180: =VLOOKUP(N180,N171:P178,3) ->  | S180: =IF(K180>0,K180,P180) ->  | W180: =Y171 -> 1 | X180: =VLOOKUP(W180,A172:B178,2) -> 0 | Z180: =(Y171*10)+(Y173-1) -> 10 | AA180: =IF(Z171="chyba","",VLOOKUP(Z180,Z171:AB178,2)) ->  | AB180: =IF(Z171="chyba","",VLOOKUP(Z180,Z171:AB178,3)) ->  | AE180: =(Y171*100)+((Y173-1)*10)+(Y175-1) -> 100 | AF180: =VLOOKUP(AE180,AE171:AG178,2) ->  | AG180: =VLOOKUP(AE180,AE171:AG178,3) ->  | AJ180: =IF(AB180>0,AB180,AG180) ->  | AM180: =AO171 -> 1 | AN180: =VLOOKUP(AM180,A172:B178,2) -> 0 | AP180: =(AO171*10)+(AO173-1) -> 10 | AQ180: =IF(AP171="chyba","",VLOOKUP(AP180,AP171:AR178,2)) ->  | AR180: =IF(AP171="chyba","",VLOOKUP(AP180,AP171:AR178,3)) ->  | AU180: =(AO171*100)+((AO173-1)*10)+(AO175-1) -> 100 | AV180: =VLOOKUP(AU180,AU171:AW178,2) ->  | AW180: =VLOOKUP(AU180,AU171:AW178,3) ->  | AZ180: =IF(AR180>0,AR180,AW180) -> 
R181: ηH,gen | S181: COPH,gen | AI181: ηH,gen | AJ181: COPH,gen | AY181: ηH,gen | AZ181: COPH,gen
R182: =IF(N180<600,S180,IF(N180>700,S180,"")) ->  | S182: =IF(N180<600,"",IF(N180>700,"",S180)) ->  | AI182: =IF(AE180<600,AJ180,IF(AE180>700,AJ180,"")) ->  | AJ182: =IF(AE180<600,"",IF(AE180>700,"",AJ180)) ->  | AY182: =IF(AU180<600,AZ180,IF(AU180>700,AZ180,"")) ->  | AZ182: =IF(AU180<600,"",IF(AU180>700,"",AZ180)) -> 
I183: A.2 Sezónní účinnost výroby tepla zdrojem tepla ηH,gen pro plynové kotle a kotle na kapalná paliva do 35 kW určené pouze pro vytápění | AN183: ENERGONOSITELE | AO183: =P16 -> Faktor celkové primární energie | AP183: =T16 -> Faktor neobnovitelné primární energie | AQ183: =X16 -> Součinitel emisí CO2
I184: A.3 Sezónní účinnost výroby tepla zdrojem tepla ηH,gen pro plynové kotle a kotle na kapalná paliva do 35 kW určené pro vytápění a přípravu teplé vody | AO184: =P17 -> (-) | AP184: =T17 -> (-) | AQ184: =X17 -> (kg/kWh)
B185: A.1.1.1 Zdroje tepla na plynná a kapalná paliva | I185: A.4 Sezónní účinnost výroby tepla zdrojem tepla ηH,gen pro plynové kotle nad 35 kW určené pro vytápění a/nebo přípravu teplé vody | V185: ηH,gen | AM185: 0
A186: 21 | B186: Kotel do 35 kW pouze pro vytápění | H186: 211 | I186: standardní - jednostupňový hořák | O186: Kotel do 35 kW pouze pro vytápění | V186: 0.76 | AM186: 1 | AN186: =$K$18 -> Zemní plyn | AO186: =$P$18 -> 1.1 | AP186: =$T$18 -> 1.1 | AQ186: =$X$18 -> 0.277
A187: 22 | B187: Kotel do 35 kW pro vytápění a přípravu TV | H187: 212 | I187: standardní - modulovaný hořák | O187: Kotel do 35 kW pouze pro vytápění | V187: 0.78 | AM187: 2 | AN187: =$K$19 -> Černé uhlí | AO187: =$P$19 -> 1.1 | AP187: =$T$19 -> 1.1 | AQ187: =$X$19 -> 0.394
A188: 23 | B188: Kotel nad 35 kW pro vytápění a/nebo přípravu TV | H188: 213 | I188: nízkoteplotní (s modulovaným hořákem) | O188: Kotel do 35 kW pouze pro vytápění | V188: 0.88 | AM188: 3 | AN188: =$K$20 -> Hnědé uhlí | AO188: =$P$20 -> 1.1 | AP188: =$T$20 -> 1.1 | AQ188: =$X$20 -> 0.433
A189: 24 | B189: - | H189: 214 | I189: kondenzační (s modulovaným hořákem) | O189: Kotel do 35 kW pouze pro vytápění | V189: 0.93 | AM189: 4 | AN189: =$K$21 -> Propan-butan/LPG | AO189: =$P$21 -> 1.2 | AP189: =$T$21 -> 1.2 | AQ189: =$X$21 -> 0.248
A190: 25 | B190: - | H190: 215 | I190: - | AM190: 5 | AN190: =$K$22 -> Topný olej | AO190: =$P$22 -> 1.2 | AP190: =$T$22 -> 1.2 | AQ190: =$X$22 -> 0.33
A191: 26 | B191: - | H191: 216 | I191: - | AM191: 6 | AN191: =$K$23 -> Elektřina ze sítě | AO191: =$P$23 -> 3.2 | AP191: =$T$23 -> 3 | AQ191: =$X$23 -> 0.293
A192: 27 | B192: - | H192: 217 | I192: - | AM192: 7 | AN192: =$K$24 -> Dřevěné peletky | AO192: =$P$24 -> 1.2 | AP192: =$T$24 -> 0.2 | AQ192: =$X$24 -> 0.02
A193: 28 | B193: - | H193: 218 | I193: - | AM193: 8 | AN193: =$K$25 -> Kusové dřevo, dřevní štěpky | AO193: =$P$25 -> 1.1 | AP193: =$T$25 -> 0.1 | AQ193: =$X$25 -> 0.02
H194: 221 | I194: standardní - jednostupňový hořák | O194: Kotel do 35 kW pro vytápění a přípravu TV | V194: 0.74 | AM194: 9 | AN194: =$K$26 -> Energie okolního prostředí (elektřina a teplo) | AO194: =$P$26 -> 1 | AP194: =$T$26 -> 0 | AQ194: =$X$26 -> 0
B195: A.1.1.2 Kotle na pevná paliva | H195: 222 | I195: standardní - modulovaný hořák | O195: Kotel do 35 kW pro vytápění a přípravu TV | V195: 0.77 | AM195: 10 | AN195: =$K$27 -> Elektřína - dodávka mimo budovu | AO195: =$P$27 -> -3.2 | AP195: =$T$27 -> -3 | AQ195: =$X$27 -> 0
A196: 31 | B196: Kotel do 50 kW | H196: 223 | I196: nízkoteplotní (s modulovaným hořákem) | O196: Kotel do 35 kW pro vytápění a přípravu TV | V196: 0.85 | AM196: 11 | AN196: =$K$28 -> Teplo - dodávka mimo budovu | AO196: =$P$28 -> -1.1 | AP196: =$T$28 -> -0.1 | AQ196: =$X$28 -> 0
A197: 32 | B197: Kotel 50 - 300 kW | H197: 224 | I197: kondenzační (s modulovaným hořákem) | O197: Kotel do 35 kW pro vytápění a přípravu TV | V197: 0.94 | AM197: 12 | AN197: =$K$29 -> Soustava s vyšším než 80% podílem obnovitelných zdrojů | AO197: =$P$29 -> 1.1 | AP197: =$T$29 -> 0.1 | AQ197: =$X$29 -> 0
A198: 33 | B198: - | H198: 225 | I198: - | AM198: 13 | AN198: =$K$30 -> Soustava s vyšším než 50% a nejvýše 80% podílem obnovitelných zdrojů | AO198: =$P$30 -> 1.1 | AP198: =$T$30 -> 0.3 | AQ198: =$X$30 -> 0
A199: 34 | B199: - | H199: 226 | I199: - | AM199: 14 | AN199: =$K$31 -> Soustava s 50% a nižším podílem obnovitelných zdrojů | AO199: =$P$31 -> 1.1 | AP199: =$T$31 -> 1 | AQ199: =$X$31 -> 0
A200: 35 | B200: - | H200: 227 | I200: - | AM200: 15 | AN200: =$K$32 -> Ostatní neuvedené energonositele | AO200: =$P$32 -> 1.2 | AP200: =$T$32 -> 1.2 | AQ200: =$X$32 -> 0
A201: 36 | B201: - | H201: 228 | I201: - | AL201: 1. Zdroj | AM201: 1 | AN201: =VLOOKUP((AM201-1),AM185:AP200,2) -> 0 | AO201: =VLOOKUP((AM201-1),AM185:AP200,3) -> 0 | AP201: =VLOOKUP((AM201-1),AM185:AP200,4) -> 0 | AQ201: =VLOOKUP((AM201-1),AM185:AQ200,5) -> 0
A202: 37 | B202: - | H202: 231 | I202: standardní - jednostupňový hořák | O202: Kotel nad 35 kW pro vytápění a/nebo přípravu TV | V202: 0.77 | AL202: 2. Zdroj | AM202: 1 | AN202: =VLOOKUP((AM202-1),AM185:AP200,2) -> 0 | AO202: =VLOOKUP((AM202-1),AM185:AP200,3) -> 0 | AP202: =VLOOKUP((AM202-1),AM185:AP200,4) -> 0 | AQ202: =VLOOKUP((AM202-1),AM185:AQ200,5) -> 0
A203: 38 | B203: - | H203: 232 | I203: standardní - modulovaný hořák | O203: Kotel nad 35 kW pro vytápění a/nebo přípravu TV | V203: 0.8 | AL203: 3. Zdroj | AM203: 1 | AN203: =VLOOKUP((AM203-1),AM185:AP200,2) -> 0 | AO203: =VLOOKUP((AM203-1),AM185:AP200,3) -> 0 | AP203: =VLOOKUP((AM203-1),AM185:AP200,4) -> 0 | AQ203: =VLOOKUP((AM203-1),AM185:AQ200,5) -> 0
H204: 233 | I204: nízkoteplotní (s modulovaným hořákem) | O204: Kotel nad 35 kW pro vytápění a/nebo přípravu TV | V204: 0.89 | AL204: FV | AN204: =$K$26 -> Energie okolního prostředí (elektřina a teplo) | AO204: =$P$26 -> 1 | AP204: =$T$26 -> 0 | AQ204: =$X$26 -> 0
B205: A.1.1.3 Elektrokotle | H205: 234 | I205: kondenzační (s modulovaným hořákem) | O205: Kotel nad 35 kW pro vytápění a/nebo přípravu TV | V205: 0.98 | AL205: Kolektory | AN205: =$K$26 -> Energie okolního prostředí (elektřina a teplo) | AO205: =$P$26 -> 1 | AP205: =$T$26 -> 0 | AQ205: =$X$26 -> 0
B206: A.7 Sezónní účinnost výroby tepla zdrojem tepla ηH,gen pro elektrokotle | F206: ηH,gen | H206: 235 | I206: -
A207: 41 | B207: Výkonový rozsah 0 kW - 149 kW | F207: 0.94 | H207: 236 | I207: -
A208: 42 | B208: Výkonový rozsah ≥ 150 kW | F208: 0.96 | H208: 237 | I208: -
A209: 43 | B209: - | H209: 238 | I209: -
A210: 44 | B210: -
A211: 45 | B211: - | I211: A.5 Sezónní účinnost výroby tepla zdrojem tepla ηH,gen pro kotle na pevná paliva do jmenovitého výkonu 50 kW určené pro vytápění a/nebo přípravu teplé vody | V211: ηH,gen
A212: 46 | B212: - | H212: 311 | I212: s ručním přikládáním splňující požadavky třídy I - bez akumulace | O212: Kotel do 50 kW | V212: 0.5
A213: 47 | B213: - | H213: 312 | I213: s ručním přikládáním splňující požadavky třídy I - s akumulací | O213: Kotel do 50 kW | V213: 0.56
A214: 48 | B214: - | H214: 313 | I214: s ručním přikládáním splňující požadavky třídy II - bez akumulace | O214: Kotel do 50 kW | V214: 0.59
H215: 314 | I215: s ručním přikládáním splňující požadavky třídy II - s akumulací | O215: Kotel do 50 kW | V215: 0.66
B216: A.1.1.4 Objektové předávací stanice | H216: 315 | I216: s ručním přikládáním splňující požadavky třídy III - bez akumulace | O216: Kotel do 50 kW | V216: 0.68
B217: A.8 Sezónní účinnost výroby tepla zdrojem tepla ηH,gen pro předávací stanici | F217: ηH,gen | H217: 316 | I217: s ručním přikládáním splňující požadavky třídy III - s akumulací | O217: Kotel do 50 kW | V217: 0.76
A218: 51 | B218: Výkonový rozsah 0 kW - 49 kW | F218: 0.98 | H218: 317 | I218: s automatickým přikládáním splňující požadavky třídy III - bez akumulace | O218: Kotel do 50 kW | V218: 0.71
A219: 52 | B219: Výkonový rozsah ≥ 50 kW | F219: 0.99 | H219: 318 | I219: s automatickým přikládáním splňující požadavky třídy III - s akumulací | O219: Kotel do 50 kW | V219: 0.79
A220: 53 | B220: -
A221: 54 | B221: - | I221: A.6 Sezónní účinnost výroby tepla zdrojem tepla ηH,gen pro kotle na pevná paliva o jmenovitém výkonu 50 -300 kW určené pro vytápění a/nebo přípravu teplé vody | V221: ηH,gen
A222: 55 | B222: - | H222: 321 | I222: s ručním přikládáním splňující požadavky třídy I - bez akumulace | O222: Kotel 50 - 300 kW | V222: 0.54
A223: 56 | B223: - | H223: 322 | I223: s ručním přikládáním splňující požadavky třídy I - s akumulací | O223: Kotel 50 - 300 kW | V223: 0.6
A224: 57 | B224: - | H224: 323 | I224: s ručním přikládáním splňující požadavky třídy II - bez akumulace | O224: Kotel 50 - 300 kW | V224: 0.63
A225: 58 | B225: - | H225: 324 | I225: s ručním přikládáním splňující požadavky třídy II - s akumulací | O225: Kotel 50 - 300 kW | V225: 0.69
H226: 325 | I226: s ručním přikládáním splňující požadavky třídy III - bez akumulace | O226: Kotel 50 - 300 kW | V226: 0.71
... 409 more rows

Sheet Vypocet (hidden)
A2: Základní informace o hodnocené budově | C2: Hodnota | D2: Jednotky
A3: Objem budovy V (objem částí budovy s upravovaným vnitřním prostředím vymezený vnějšími povrchy konstrukcí obálky budovy) | C3: =SUM('1. PENB'!I13:I15) -> 0 | D3: [m3]
A4: Celková plocha obálky budovy A (součet vnějších ploch konstrukcí ohraničujících objem budovy V) | C4: =SUM('1. PENB'!I16:I18) -> 0 | D4: [m2]
A5: Objemový faktor tvaru budovy A/V | C5: ='1. PENB'!I19 ->  | D5: [-]
A6: Celková energeticky vztažná plocha budovy Ac | C6: ='1. PENB'!I20 -> 0 | D6: [m2]
A8: Celková plocha obalových konstrukcí | C8: ='1. PENB'!D31 -> 0 | D8: [m2]
A9: Měrná ztráta prostupem Ht | C9: ='1. PENB'!I31 -> 0 | D9: [W/K]
A11: výpočet Ht | C11: lambda původní izolace | E11: 0.04
A12: Konstrukce | B12: kód | C12: popis | D12: Uzáklad | E12: zateplení | F12: Rsi | G12: Rse | H12: Rpův | I12: Ucelk | J12: A | K12: b | L12: Ucelk*A*b
A13: Obvodová stěna 1 | B13: 1 | C13: =VLOOKUP(Vypocet!B13,Data!$A$3:$B$38,2) -> Cihly plné 30 cm | D13: =VLOOKUP(B13,Data!$A$3:$C$38,3) -> 1.67 | E13: ='2. Konstrukce'!F6 -> 0 | F13: 0.04 | G13: 0.13 | H13: =1/D13-F13-G13 -> 0.4288023952 | I13: =1/(F13+G13+(E13/100)/$E$11+H13) -> 1.67 | J13: ='2. Konstrukce'!D6 -> 0 | K13: 1 | L13: =I13*J13*K13 -> 0
A14: Obvodová stěna 2 | B14: 1 | C14: =VLOOKUP(Vypocet!B14,Data!$A$3:$B$38,2) -> Cihly plné 30 cm | D14: =VLOOKUP(B14,Data!$A$3:$C$38,3) -> 1.67 | E14: ='2. Konstrukce'!F7 -> 0 | F14: 0.04 | G14: 0.13 | H14: =1/D14-F14-G14 -> 0.4288023952 | I14: =1/(F14+G14+(E14/100)/$E$11+H14) -> 1.67 | J14: ='2. Konstrukce'!D7 -> 0 | K14: 1 | L14: =I14*J14*K14 -> 0
A15: Obvodová stěna 3 | B15: 1 | C15: =VLOOKUP(Vypocet!B15,Data!$A$3:$B$38,2) -> Cihly plné 30 cm | D15: =VLOOKUP(B15,Data!$A$3:$C$38,3) -> 1.67 | E15: ='2. Konstrukce'!F8 -> 0 | F15: 0.04 | G15: 0.13 | H15: 0.4288023952 | I15: 1.67 | J15: ='2. Konstrukce'!D8 -> 0 | K15: 1 | L15: 0
A16: Obvodová stěna 4 | B16: 1 | C16: =VLOOKUP(Vypocet!B16,Data!$A$3:$B$38,2) -> Cihly plné 30 cm | D16: =VLOOKUP(B16,Data!$A$3:$C$38,3) -> 1.67 | E16: ='2. Konstrukce'!F9 -> 0 | F16: 0.04 | G16: 0.13 | H16: 0.4288023952 | I16: 1.67 | J16: ='2. Konstrukce'!D9 -> 0 | K16: 1 | L16: 0
M17: korekce dveře | N17: g - souč. prop. sol. záření
A18: Okna a dveře 1 | B18: 1 | C18: =VLOOKUP(Vypocet!B18,Data!$A$96:$B$111,2) -> okno jednoduché s jedním sklem | D18: =VLOOKUP(B18,Data!$A$96:$C$111,3) -> 4.5 | I18: =D18 -> 4.5 | J18: ='2. Konstrukce'!D12 -> 0 | K18: 1 | L18: =I18*J18*K18 -> 0 | M18: =IF(OR(B18=10,B18=14,B18=16),-J18,0) -> 0 | N18: =VLOOKUP(B18,Data!$A$96:$H$111,8) -> 0.85
A19: Okna a dveře 2 | B19: 1 | C19: =VLOOKUP(Vypocet!B19,Data!$A$96:$B$111,2) -> okno jednoduché s jedním sklem | D19: =VLOOKUP(B19,Data!$A$96:$C$111,3) -> 4.5 | I19: =D19 -> 4.5 | J19: ='2. Konstrukce'!D13 -> 0 | K19: 1 | L19: =I19*J19*K19 -> 0 | M19: =IF(OR(B19=10,B19=14,B19=16),-J19,0) -> 0 | N19: =VLOOKUP(B19,Data!$A$96:$H$111,8) -> 0.85
A20: Okna a dveře 3 | B20: 1 | C20: =VLOOKUP(Vypocet!B20,Data!$A$96:$B$111,2) -> okno jednoduché s jedním sklem | D20: =VLOOKUP(B20,Data!$A$96:$C$111,3) -> 4.5 | I20: 4.5 | J20: ='2. Konstrukce'!D14 -> 0 | K20: 1 | L20: =I20*J20*K20 -> 0 | M20: 0 | N20: =VLOOKUP(B20,Data!$A$96:$H$111,8) -> 0.85
A21: Okna a dveře 4 | B21: 1 | C21: =VLOOKUP(Vypocet!B21,Data!$A$96:$B$111,2) -> okno jednoduché s jedním sklem | D21: =VLOOKUP(B21,Data!$A$96:$C$111,3) -> 4.5 | I21: 4.5 | J21: ='2. Konstrukce'!D15 -> 0 | K21: 1 | L21: =I21*J21*K21 -> 0 | M21: 0 | N21: =VLOOKUP(B21,Data!$A$96:$H$111,8) -> 0.85
A22: Střešní okna | B22: 1 | C22: =VLOOKUP(Vypocet!B22,Data!$A$114:$B$118,2) -> okno střešní jednoduché s jedním sklem | D22: =VLOOKUP(B22,Data!$A$114:$C$118,3) -> 4.5 | I22: 4.5 | J22: ='2. Konstrukce'!D16 -> 0 | K22: 1 | L22: =I22*J22*K22 -> 0 | N22: =VLOOKUP(B22,Data!$A$114:$H$118,8) -> 0.85
A24: Podlaha na terénu 1 | B24: 1 | C24: =VLOOKUP(Vypocet!B24,Data!$A$71:$B$79,2) -> Podl. na terénu - zastaralá (bez izolace) | D24: =VLOOKUP(B24,Data!$A$71:$C$79,3) -> 1.7 | E24: ='2. Konstrukce'!F19 -> 0 | F24: 0.17 | G24: 0 | H24: =1/D24-F24-G24 -> 0.4182352941 | I24: =1/(F24+G24+(E24/100)/$E$11+H24) -> 1.7 | J24: ='2. Konstrukce'!D19 -> 0 | K24: 0.42 | L24: =I24*J24*K24 -> 0
A25: Podlaha na terénu 2 | B25: 1 | C25: =VLOOKUP(Vypocet!B25,Data!$A$71:$B$79,2) -> Podl. na terénu - zastaralá (bez izolace) | D25: =VLOOKUP(B25,Data!$A$71:$C$79,3) -> 1.7 | E25: ='2. Konstrukce'!F20 -> 0 | F25: 0.17 | G25: 0 | H25: =1/D25-F25-G25 -> 0.4182352941 | I25: =1/(F25+G25+(E25/100)/$E$11+H25) -> 1.7 | J25: ='2. Konstrukce'!D20 -> 0 | K25: 0.42 | L25: =I25*J25*K25 -> 0
A27: Podlaha nad nevytápěným sklepem 1 | B27: 1 | C27: =VLOOKUP(Vypocet!B27,Data!$A$81:$B$89,2) -> Podl. nad suterénem - bez tep. izolace (zastaralá) | D27: =VLOOKUP(B27,Data!$A$81:$C$89,3) -> 1.53 | E27: ='2. Konstrukce'!F22 -> 0 | F27: 0.17 | G27: 0.04 | H27: =1/D27-F27-G27 -> 0.4435947712 | I27: =1/(F27+G27+(E27/100)/$E$11+H27) -> 1.53 | J27: ='2. Konstrukce'!D22 -> 0 | K27: 0.44 | L27: =I27*J27*K27 -> 0
A28: Podlaha nad nevytápěným sklepem 2 | B28: 1 | C28: =VLOOKUP(Vypocet!B28,Data!$A$81:$B$89,2) -> Podl. nad suterénem - bez tep. izolace (zastaralá) | D28: =VLOOKUP(B28,Data!$A$81:$C$89,3) -> 1.53 | E28: ='2. Konstrukce'!F23 -> 0 | F28: 0.17 | G28: 0.04 | H28: =1/D28-F28-G28 -> 0.4435947712 | I28: =1/(F28+G28+(E28/100)/$E$11+H28) -> 1.53 | J28: ='2. Konstrukce'!D23 -> 0 | K28: 0.44 | L28: =I28*J28*K28 -> 0
A30: Střecha plochá 1 | B30: 1 | C30: =VLOOKUP(Vypocet!B30,Data!A43:G47,2) -> Střecha plochá - s železobetonovou deskou | D30: =VLOOKUP(B30,Data!A43:G47,3) -> 0.5 | E30: ='2. Konstrukce'!F26 -> 0 | F30: 0.1 | G30: 0.04 | H30: =1/D30-F30-G30 -> 1.86 | I30: =1/(F30+G30+(E30/100)/$E$11+H30) -> 0.5 | J30: ='2. Konstrukce'!D26 -> 0 | K30: 1 | L30: =I30*J30*K30 -> 0
A31: Střecha plochá 1 | B31: 1 | C31: =VLOOKUP(Vypocet!B31,Data!A43:G47,2) -> Střecha plochá - s železobetonovou deskou | D31: =VLOOKUP(B31,Data!A43:G47,3) -> 0.5 | E31: ='2. Konstrukce'!F27 -> 0 | F31: 0.1 | G31: 0.04 | H31: =1/D31-F31-G31 -> 1.86 | I31: =1/(F31+G31+(E31/100)/$E$11+H31) -> 0.5 | J31: ='2. Konstrukce'!D27 -> 0 | K31: 1 | L31: =I31*J31*K31 -> 0
A33: Střecha šikmá 1 | B33: 1 | C33: =VLOOKUP(Vypocet!B33,Data!A54:G59,2) -> Střecha šikmá - tenká vrstva izolace (zastaralá) | D33: =VLOOKUP(B33,Data!A54:G59,3) -> 0.66 | E33: ='2. Konstrukce'!F29 -> 0 | F33: 0.1 | G33: 0.04 | H33: =1/D33-F33-G33 -> 1.375151515 | I33: =1/(F33+G33+(E33/100)/$E$11+H33) -> 0.66 | J33: ='2. Konstrukce'!D29 -> 0 | K33: 1 | L33: =I33*J33*K33 -> 0
A34: Střecha šikmá 2 | B34: 1 | C34: =VLOOKUP(Vypocet!B34,Data!A54:G59,2) -> Střecha šikmá - tenká vrstva izolace (zastaralá) | D34: =VLOOKUP(B34,Data!A54:G59,3) -> 0.66 | E34: ='2. Konstrukce'!F30 -> 0 | F34: 0.1 | G34: 0.04 | H34: =1/D34-F34-G34 -> 1.375151515 | I34: =1/(F34+G34+(E34/100)/$E$11+H34) -> 0.66 | J34: ='2. Konstrukce'!D30 -> 0 | K34: 1 | L34: =I34*J34*K34 -> 0
A36: Strop pod půdou 1 | B36: 1 | C36: =VLOOKUP(Vypocet!B36,Data!A60:G66,2) -> Strop - dřevěný,trámový | D36: =VLOOKUP(B36,Data!A60:G66,3) -> 0.99 | E36: ='2. Konstrukce'!F32 -> 0 | F36: 0.1 | G36: 0.04 | H36: =1/D36-F36-G36 -> 0.8701010101 | I36: =1/(F36+G36+(E36/100)/$E$11+H36) -> 0.99 | J36: ='2. Konstrukce'!D32 -> 0 | K36: 0.83 | L36: =I36*J36*K36 -> 0
A37: Strop pod půdou 2 | B37: 1 | C37: =VLOOKUP(Vypocet!B37,Data!A60:G66,2) -> Strop - dřevěný,trámový | D37: =VLOOKUP(B37,Data!A60:G66,3) -> 0.99 | E37: ='2. Konstrukce'!F33 -> 0 | F37: 0.1 | G37: 0.04 | H37: =1/D37-F37-G37 -> 0.8701010101 | I37: =1/(F37+G37+(E37/100)/$E$11+H37) -> 0.99 | J37: ='2. Konstrukce'!D33 -> 0 | K37: 0.83 | L37: =I37*J37*K37 -> 0
A39: Stěna k nevytápěnému prostoru 1 | B39: 1 | C39: =VLOOKUP(Vypocet!B39,Data!$A$126:$B$146,2) -> Cihly plné 10 cm | D39: =VLOOKUP(B39,Data!A126:C146,3) -> 2.87 | E39: ='2. Konstrukce'!F36 -> 0 | F39: 0.13 | G39: 0.04 | H39: =1/D39-F39-G39 -> 0.1784320557 | I39: =1/(F39+G39+(E39/100)/$E$11+H39) -> 2.87 | J39: ='2. Konstrukce'!D36 -> 0 | K39: 0.49 | L39: =I39*J39*K39 -> 0
A40: Stěna k nevytápěnému prostoru 2 | B40: 1 | C40: =VLOOKUP(Vypocet!B40,Data!$A$126:$B$146,2) -> Cihly plné 10 cm | D40: =VLOOKUP(B40,Data!A126:C146,3) -> 2.87 | E40: ='2. Konstrukce'!F37 -> 0 | F40: 0.13 | G40: 0.04 | H40: =1/D40-F40-G40 -> 0.1784320557 | I40: =1/(F40+G40+(E40/100)/$E$11+H40) -> 2.87 | J40: ='2. Konstrukce'!D37 -> 0 | K40: 0.49 | L40: =I40*J40*K40 -> 0
A41: Stěna ke stejně vytápěnému prostoru 1 | B41: 1 | C41: =VLOOKUP(Vypocet!B41,Data!$A$126:$B$146,2) -> Cihly plné 10 cm | D41: =VLOOKUP(B41,Data!A126:C146,3) -> 2.87 | F41: 0.13 | G41: 0.04 | H41: =1/D41-F41-G41 -> 0.1784320557 | I41: =1/(F41+G41+(E41/100)/$E$11+H41) -> 2.87 | J41: ='2. Konstrukce'!D38 -> 0 | K41: 0.03 | L41: =I41*J41*K41 -> 0
A42: Stěna ke stejně vytápěnému prostoru 2 | B42: 1 | C42: =VLOOKUP(Vypocet!B42,Data!$A$126:$B$146,2) -> Cihly plné 10 cm | D42: =VLOOKUP(B42,Data!A126:C146,3) -> 2.87 | F42: 0.13 | G42: 0.04 | H42: =1/D42-F42-G42 -> 0.1784320557 | I42: =1/(F42+G42+(E42/100)/$E$11+H42) -> 2.87 | J42: ='2. Konstrukce'!D39 -> 0 | K42: 0.03 | L42: =I42*J42*K42 -> 0
A44: suma A | J44: =SUM(J13:J42) -> 0
A45: tepelné mosty | I45: =IF(D50=1,0.02,IF(D85<=3,0.02,IF(D85<=5,0.05,IF(D85>5,0.1,"chyba")))) -> 0.02 | J45: =SUM(J13:J42) -> 0 | L45: =I45*J45 -> 0
A46: HT | L46: =SUM(L13:L45) -> 0 | M46: W/K
A49: Účel zpracování průkazu | C49: Konstrukce zadána
A50: Nová budova | B50: FALSE | D50: =IF(B50=TRUE,1,0) -> 0 | F50: Vstupy | H50: Podlahová plocha z vnitřních rozměrů
A51: Prodej budovy nebo její části | B51: FALSE | D51: =IF(B51=TRUE,2,0) -> 0 | F51: a | G51: ='3. Geometrie'!F10 -> 0 | H51: počet podlaží | J51: ='3. Geometrie'!F7 -> 0 | M51: koeficient pro pricky | N51: 0.95
A52: Větší změna dokončené budovy | B52: FALSE | D52: =IF(B52=TRUE,2,0) -> 0 | F52: b | G52: ='3. Geometrie'!F11 -> 0 | H52: plocha podlah | J52: =SUM(J24:J25,J27:J28) -> 0 | K52: m2
A53: Budova užívaná orgánem veřejné moci | B53: FALSE | D53: 0 | F53: c | G53: ='3. Geometrie'!F12 -> 0 | H53: plocha obv. zdí | J53: =J52*0.1 -> 0 | K53: m2 | M53: Koeficient pro vnitřní podlahovou plochu podle kontrolní budovy | P53: Vnitřní podlahová plocha pro PENB
A54: Pronájem budovy nebo její části | B54: FALSE | D54: 0 | F54: d | G54: ='3. Geometrie'!F13 -> 0 | I54: A,int= | J54: =((J52-J53)*J51)*N51 -> 0 | K54: m2 | M54: =J54/(J51*J52) ->  | P54: ='1. PENB'!I20*Vypocet!M54 ->  | Q54: m2
F55: e | G55: ='3. Geometrie'!F14 -> 0
A56: Konstrukce | B56: Zateplena | C56: Zadána | D56: Body
A57: =A13 -> Obvodová stěna 1 | B57: =IF(I13<=0.25,"ANO","NE") -> NE | C57: =IF(J13>0,"ANO","NE") -> NE | D57: =IF(C57="NE",0,IF(B57="ANO",0,1)) -> 0 | H57: Vnitřní objem prostoru pod střechou
A58: =A14 -> Obvodová stěna 2 | B58: =IF(I14<=0.25,"ANO","NE") -> NE | C58: =IF(J14>0,"ANO","NE") -> NE | D58: =IF(C58="NE",0,IF(B58="ANO",0,1)) -> 0 | H58: Vnitřní podlahová plocha | K58: =((J52-J53)*N51) -> 0 | L58: m2
A59: =A15 -> Obvodová stěna 3 | B59: NE | C59: NE | D59: 0 | H59: Výška objektu | K59: =G52 -> 0 | L59: m2
A60: =A16 -> Obvodová stěna 4 | B60: NE | C60: NE | D60: 0 | H60: Tloušťka vnitřního stropu | K60: 0.3 | L60: m
H61: Tloušťka podlahy | K61: 0.3 | L61: m
A62: =A18 -> Okna a dveře 1 | B62: =IF(I18<=1.2,"ANO","NE") -> NE | C62: NE | D62: 0 | I62: V,int,1 | J62: =(K58*K59)-(K58*K61)-(K60*K58*J51) -> 0 | K62: m3
A63: =A19 -> Okna a dveře 2 | B63: =IF(I19<=1.2,"ANO","NE") -> NE | C63: NE | D63: 0
A64: =A20 -> Okna a dveře 3 | B64: =IF(I20<=1.2,"ANO","NE") -> NE | C64: NE | D64: 0 | I64: V,int,2 | J64: ='3. Geometrie'!F5*0.8 -> 0 | K64: m3
A65: =A21 -> Okna a dveře 4 | B65: =IF(I21<=1.2,"ANO","NE") -> NE | C65: NE | D65: 0
A66: =A22 -> Střešní okna | B66: =IF(I22<=1.1,"ANO","NE") -> NE | C66: NE | D66: 0
A68: =A24 -> Podlaha na terénu 1 | B68: =IF(I24<=0.3,"ANO","NE") -> NE | C68: NE | D68: 0
A69: =A25 -> Podlaha na terénu 2 | B69: =IF(I25<=0.3,"ANO","NE") -> NE | C69: NE | D69: 0
D70: 1
A71: =A27 -> Podlaha nad nevytápěným sklepem 1 | B71: =IF(I27<=0.4,"ANO","NE") -> NE | C71: NE | D71: 0
A72: =A28 -> Podlaha nad nevytápěným sklepem 2 | B72: =IF(I28<=0.4,"ANO","NE") -> NE | C72: NE | D72: 0
A74: =A30 -> Střecha plochá 1 | B74: =IF(I30<=0.16,"ANO","NE") -> NE | C74: NE | D74: 0
A75: =A31 -> Střecha plochá 1 | B75: =IF(I31<=0.16,"ANO","NE") -> NE | C75: NE | D75: 0
A77: =A33 -> Střecha šikmá 1 | B77: =IF(I33<=0.2,"ANO","NE") -> NE | C77: NE | D77: 0
A78: =A34 -> Střecha šikmá 2 | B78: =IF(I34<=0.2,"ANO","NE") -> NE | C78: NE | D78: 0
A80: =A36 -> Strop pod půdou 1 | B80: =IF(I36<=0.2,"ANO","NE") -> NE | C80: NE | D80: 0
A81: =A37 -> Strop pod půdou 2 | B81: =IF(I37<=0.2,"ANO","NE") -> NE | C81: NE | D81: 0
F82: okna | G82: =SUM(D62:D66) -> 0
A83: =A39 -> Stěna k nevytápěnému prostoru 1 | B83: =IF(I39<=0.4,"ANO","NE") -> NE | C83: NE | D83: 0 | F83: ostatní | G83: =SUM(D57:D60,D68:D69,D71:D72,D74:D75,D77:D78,D80:D81,D83:D84,D50:D54) -> 0
A84: =A40 -> Stěna k nevytápěnému prostoru 2 | B84: =IF(I40<=0.4,"ANO","NE") -> NE | C84: NE | D84: 0
D85: =SUM(D57:D84,D50:D54) -> 1 | G85: =IF(D50=1,1,IF((G82+G83)<=2,2,IF(G82=0,3,IF((G82+G83)>2,4)))) -> 2
A87: Měrné tepelné ztráty
A88: Obálkou - Ht
A89: Měrný tepelný tok obálkou budovy | D89: Ht | E89: [W/K] | G89: =L46 -> 0
A91: Přirozené větráním - Hv
A92: Podíl vzduchu z objemu zóny | D92: V | E92: [m3] | G92: =J64 -> 0
A93: Násobnost výměny vzduchu | E93: [h-1] | G93: 0.3
A94: Větrací tok | E94: [m3/h] | G94: =G92*G93 -> 0
A95: Měrný tepelný tok větráním | D95: Hv | E95: [W/K] | G95: =0.34*G94 -> 0
A97: Nucené větráním - Hv
A98: Nucené větrání
A100: Potřeba větracího vzduchu na jednu osobu | D100: V1 | E100: m3/(os.hod) | G100: 25
A101: Součinitel přítomnosti osob | D101: pi vent | E101: - | G101: 0.7
A102: Množství přiváděného čerstvého vzduchu | D102: Vf | E102: m3/hod | G102: =SUM('5. Technické systémy'!S46:T48) -> 0
A103: Násobnost výměny vzduchu při 50 Pa | D103: n50 | E103: 1/h | G103: =IF(G85=1,2,IF(G85=2,2,IF(G85=3,2.5,IF(G85=4,4.5,"chyba")))) -> 2
A104: Součinitel větrné expozice - e (0.01-0.1) | D104: e | E104: - | G104: 0.01
A105: Součinitel větrné expozice - f (15,20) | D105: f | E105: - | G105: 20
A106: Přídavný objemový tok vzduchu netěsnostmi | D106: Vx | E106: m3/hod | G106: =(G92*G103*G104)/(1+(G105/G104)*((0)/(G92*G103))^2) -> 
A107: Účinnost rekuperace | D107: ni | E107: - | G107: =Data!K363 -> 0
A108: Množství ohřívaného vzduchu (z ext. teploty) | D108: V | E108: m3/hod | G108: =G102*(1-G107)+G106 -> 
A109: Měrná ztráta na ohřev větracího vzduchu | D109: Hv,f | E109: W/K | G109: =G102*(1-G107)*0.34 -> 0
A110: Měrná ztráta na ohřev vzd. pr. netěsnostmi | D110: Hv,x | E110: W/K | G110: =G106*0.34 -> 
A111: Měrná ztráta větráním - PV/NV TNI 730330 | D111: Hv | E111: W/K | G111: =G110+G109 -> 
A113: Celkový ztráta větráním | D113: Hv | E113: [W/K] | G113: =IF(Data!H355=1,Vypocet!G95,IF(Data!H355=2,Vypocet!G95,IF(Data!H355=3,Vypocet!G111,"chyba"))) -> 0
A115: Celkový tepeplný tok | D115: Hc | E115: [W/K] | G115: =IF(Data!H355=1,Vypocet!G89+Vypocet!G95,IF(Data!H355=2,Vypocet!G89+Vypocet!G95,IF(Data!H355=3,Vypocet!G89+Vypocet!G111,"chyba"))) -> 0
H117: leden | I117: únor | J117: březen | K117: duben | L117: květen | M117: červen | N117: červenec | O117: srpen | P117: září | Q117: říjen | R117: listopad | S117: prosinec
A118: Celková měrná zráta | D118: H | E118: W/K | G118: =L46 -> 0 | H118: =G118 -> 0 | I118: =H118 -> 0 | J118: 0 | K118: 0 | L118: 0 | M118: 0 | N118: 0 | O118: 0 | P118: 0 | Q118: 0 | R118: 0 | S118: 0
A119: Venkovní výpočtová teplota pro ztrátu | D119: Te | E119: °C | G119: -12
A120: Návrhová vnitřní teplota - větrání | D120: Ti | E120: °C | G120: 20
A121: Výpočtová tepelná ztráta | E121: kW | G121: =G118*($G$120-$G$119)/1000 -> 0
A122: Měsíc | H122: leden | I122: únor | J122: březen | K122: duben | L122: květen | M122: červen | N122: červenec | O122: srpen | P122: září | Q122: říjen | R122: listopad | S122: prosinec
A123: Délka | D123: t | E123: [dny] | G123: =SUM(H123:S123) -> 365 | H123: 31 | I123: 28 | J123: 31 | K123: 30 | L123: 31 | M123: 30 | N123: 31 | O123: 31 | P123: 30 | Q123: 31 | R123: 30 | S123: 31
A124: Počet hodin | D124: t | E124: [h] | G124: =24*G123 -> 8760 | H124: =24*H123 -> 744 | I124: =24*I123 -> 672 | J124: =24*J123 -> 744 | K124: =24*K123 -> 720 | L124: =24*L123 -> 744 | M124: 720 | N124: 744 | O124: 744 | P124: 720 | Q124: 744 | R124: 720 | S124: 744
A125: Průměrná venkovní teplota | D125: Te | E125: [°C] | H125: =Data!O3 -> -1.3 | I125: =Data!P3 -> -0.1 | J125: =Data!Q3 -> 3.7 | K125: =Data!R3 -> 8.1 | L125: =Data!S3 -> 13.3 | M125: =Data!T3 -> 16.1 | N125: =Data!U3 -> 18 | O125: =Data!V3 -> 17.9 | P125: =Data!W3 -> 13.5 | Q125: =Data!X3 -> 8.3 | R125: =Data!Y3 -> 3.2 | S125: =Data!Z3 -> 0.5
A126: Teplotní rozdíl - větrání | D126: Dte | E126: [°C] | H126: =$G$120-H125 -> 21.3 | I126: =$G$120-I125 -> 20.1 | J126: 16.3 | K126: 11.9 | L126: 6.7 | M126: 3.9 | N126: 2 | O126: 2.1 | P126: 6.5 | Q126: 11.7 | R126: 16.8 | S126: 19.5
A128: Suma tepelných ztrát prostupem tepla | D128: Qt | E128: [kWh] | G128: =SUM(H128:S128) -> 0 | H128: =IF(H125>$G$120,0,0.001*$G$118*H126*H124) -> 0 | I128: =IF(I125>$G$120,0,0.001*$G$118*I126*I124) -> 0 | J128: 0 | K128: 0 | L128: 0 | M128: 0 | N128: 0 | O128: 0 | P128: 0 | Q128: 0 | R128: 0 | S128: 0
A130: Suma tepelných ztrát větráním | D130: Qv | E130: [kWh] | G130: =SUM(H130:S130) -> 0 | H130: =IF(H125>$G$120,0,0.001*$G$113*H126*H124) -> 0 | I130: =IF(I125>$G$120,0,0.001*$G$113*I126*I124) -> 0 | J130: 0 | K130: 0 | L130: 0 | M130: 0 | N130: 0 | O130: 0 | P130: 0 | Q130: 0 | R130: 0 | S130: 0
A133: Suma tepelných ztrát budovy / rok - výběr PVSO, PVNO, HV, NV | D133: Ql | E133: [kWh] | G133: =SUM(H133:S133) -> 0 | H133: =H128+H130 -> 0 | I133: 0 | J133: 0 | K133: 0 | L133: 0 | M133: 0 | N133: 0 | O133: 0 | P133: 0 | Q133: 0 | R133: 0 | S133: 0
A134: Suma tepelných ztrát budovy / rok - výběr PVSO, PVNO, HV, NV | D134: Ql | E134: [GJ] | G134: =G133/(1000/3.6) -> 0
A136: Vnitřní tepelné zisky
A137: Časová konstanta zóny
A138: Tepelná kapacita na 1m2 | D138: C | E138: [kJ/m2/K] | G138: 165
A139: Celková tepelná kapacita | D139: C | E139: [kJ/K] | G139: =G138*P54 -> 
A140: Celková tepelná kapacita | D140: C | E140: [Wh/K] | G140: =G139/3.6 -> 
A141: Časová konstanta zóny | D141: t | E141: [hod] | G141: =G140/G115 -> 
A143: Vnitřní tepelné zisky dle TNI 73 0331
A144: Vnitřní podlahová plocha pro PENB | D144: A,int | E144: [m2] | G144: =P54 -> 
A146: Měsíc | H146: leden | I146: únor | J146: březen | K146: duben | L146: květen | M146: červen | N146: červenec | O146: srpen | P146: září | Q146: říjen | R146: listopad | S146: prosinec
A147: Délka | D147: t | E147: [dny] | G147: =SUM(H147:S147) -> 365 | H147: 31 | I147: 28 | J147: 31 | K147: 30 | L147: 31 | M147: 30 | N147: 31 | O147: 31 | P147: 30 | Q147: 31 | R147: 30 | S147: 31
A148: Počet hodin | D148: t | E148: [h] | G148: =24*G147 -> 8760 | H148: =24*H147 -> 744 | I148: =24*I147 -> 672 | J148: =24*J147 -> 744 | K148: =24*K147 -> 720 | L148: =24*L147 -> 744 | M148: 720 | N148: 744 | O148: 744 | P148: 720 | Q148: 744 | R148: 720 | S148: 744
A150: Osoby a vybavení | D150: Φint,oc+ap,j | E150: [W] | G150: =G144*(1.5*0.7+3*0.2) -> 
H151: leden | I151: únor | J151: březen | K151: duben | L151: květen | M151: červen | N151: červenec | O151: srpen | P151: září | Q151: říjen | R151: listopad | S151: prosinec
A152: Vnitřní zisky od osob a vybavení | D152: Qint,oc+ap | E152: [GJ] | G152: =SUM(H152:S152) ->  | H152: =($G$150*(H148*3600))/10^9 ->  | I152: =($G$150*(I148*3600))/10^9 -> 
H154: tD [h] | I154: tN [h] | J154: Osvětlenost [lx] | K154: Účinnost [%] | L154: Příkon osvětlení [W/(m2.lx)] | M154: Činitel závislosti na denním světle
H155: 900 | I155: 600 | J155: 90 | K155: 0.15 | L155: 0.05 | M155: 1
A156: Roční potřeba elektřiny na osvětlení | D156: Wlt | E156: [Wh] | G156: =((L155*J155*G144)*1*(H155*M155+I155)) -> 
A157: Průměrný příkon elektřiny v j-tém měsící | D157: Φlt,j | E157: [W] | G157: =((1*G156)/8760) ->  | H157: leden | I157: únor | J157: březen | K157: duben | L157: květen | M157: červen | N157: červenec | O157: srpen | P157: září | Q157: říjen | R157: listopad | S157: prosinec
A158: Vnitřní zisky od osvětlení | D158: Qint,lt,j | E158: [GJ] | G158: =SUM(H158:S158) ->  | H158: =((1-$K$155)*$G$157*(H148*3600))/10^9 ->  | I158: =((1-$K$155)*$G$157*(I148*3600))/10^9 -> 
A160: Celkové vnitřní tepelné zisky | D160: Fi | E160: [W] | G160: =((G152+G158)/(G148*3600))*10^9 -> 
A162: Solární tepelné zisky
A163: Plocha oken (čistá) | E163: [m2] | G163: S | H163: J | I163: V | J163: Z | K163: H
A164: Průčelní stěny | G164: =(SUM(J18:J21)+SUM(M18:M21))/4 -> 0 | H164: =(SUM(J18:J21)+SUM(M18:M21))/4 -> 0 | I164: =(SUM(J18:J21)+SUM(M18:M21))/4 -> 0 | J164: =(SUM(J18:J21)+SUM(M18:M21))/4 -> 0 | K164: =J22 -> 0
A166: Korekční činitel zasklení | G166: S | H166: J | I166: V | J166: Z | K166: H
A167: Průčelní stěny | G167: 0.7 | H167: 0.7 | I167: 0.7 | J167: 0.7 | K167: 0.75
A169: Korekční činitel stínění horizontem | G169: S | H169: J | I169: V | J169: Z | K169: H
A170: Průčelní stěny | G170: 0.75 | H170: 0.75 | I170: 0.75 | J170: 0.75 | K170: 1
A172: Úhel stínění markýzou ° | G172: S | H172: J | I172: V | J172: Z | K172: H
A173: Průčelní stěny | G173: 1 | H173: 1 | I173: 1 | J173: 1 | K173: 1
A175: Korekční činitel stínění markýzou ° | G175: S | H175: J | I175: V | J175: Z | K175: H
A176: Průčelní stěny | G176: 1 | H176: 1 | I176: 1 | J176: 1 | K176: 1
A178: Úhel stínění bočním žebrem ° | G178: S | H178: J | I178: V | J178: Z | K178: H
A179: Průčelní stěny | G179: 1 | H179: 1 | I179: 1 | J179: 1 | K179: 1
A181: Korekční činitel stínění bočním žebrem ° | G181: S | H181: J | I181: V | J181: Z | K181: H
A182: Průčelní stěny | G182: 1 | H182: 1 | I182: 1 | J182: 1 | K182: 1
A184: Celková propustnost solárního záření | G184: S | H184: J | I184: V | J184: Z | K184: H
A185: Průčelní stěny | G185: =IF(SUM(J18:J21)=0,0,((N18*J18+N19*J19+N20*J20+N21*J21)/(SUM(J18:J21)))) -> 0 | H185: =IF(SUM(J18:J21)=0,0,((N18*J18+N19*J19+N20*J20+N21*J21)/(SUM(J18:J21)))) -> 0 | I185: =IF(SUM(J18:J21)=0,0,((N18*J18+N19*J19+N20*J20+N21*J21)/(SUM(J18:J21)))) -> 0 | J185: =IF(SUM(J18:J21)=0,0,((N18*J18+N19*J19+N20*J20+N21*J21)/(SUM(J18:J21)))) -> 0 | K185: =N22 -> 0.85
A187: Sběrná plocha oken | G187: S | H187: J | I187: V | J187: Z | K187: H
A188: Průčelní stěny | E188: [m2] | G188: =G164*G167*G170*G173*G176*G179*G182*G185 -> 0 | H188: =H164*H167*H170*H173*H176*H179*H182*H185 -> 0 | I188: =I164*I167*I170*I173*I176*I179*I182*I185 -> 0 | J188: =J164*J167*J170*J173*J176*J179*J182*J185 -> 0 | K188: =K164*K167*K170*K173*K176*K179*K182*K185 -> 0
E190: [m2] | G190: =G188 -> 0 | H190: =H188 -> 0 | I190: =I188 -> 0 | J190: =J188 -> 0 | K190: =K188 -> 0
A192: Celkem | E192: [m2] | G192: =SUM(G190:K190) -> 0
A194: Měsíc | H194: leden | I194: únor | J194: březen | K194: duben | L194: květen | M194: červen | N194: červenec | O194: srpen | P194: září | Q194: říjen | R194: listopad | S194: prosinec
A195: Délka | D195: t | E195: [dny] | G195: =SUM(H195:S195) -> 365 | H195: 31 | I195: 28 | J195: 31 | K195: 30 | L195: 31 | M195: 30 | N195: 31 | O195: 31 | P195: 30 | Q195: 31 | R195: 30 | S195: 31
A196: Počet hodin | D196: t | E196: [h] | G196: =24*G195 -> 8760 | H196: =24*H195 -> 744 | I196: =24*I195 -> 672 | J196: =24*J195 -> 744 | K196: =24*K195 -> 720 | L196: =24*L195 -> 744 | M196: 720 | N196: 744 | O196: 744 | P196: 720 | Q196: 744 | R196: 720 | S196: 744
A197: Průměrná venkovní teplota | D197: Te | E197: [°C] | H197: =Data!O3 -> -1.3 | I197: =Data!P3 -> -0.1 | J197: =Data!Q3 -> 3.7 | K197: =Data!R3 -> 8.1 | L197: =Data!S3 -> 13.3 | M197: =Data!T3 -> 16.1 | N197: =Data!U3 -> 18 | O197: =Data!V3 -> 17.9 | P197: =Data!W3 -> 13.5 | Q197: =Data!X3 -> 8.3 | R197: =Data!Y3 -> 3.2 | S197: =Data!Z3 -> 0.5
A198: Teplotní rozdíl | D198: Dte | E198: [°C] | H198: =$G$120-H197 -> 21.3 | I198: =$G$120-I197 -> 20.1 | J198: 16.3 | K198: 11.9 | L198: 6.7 | M198: 3.9 | N198: 2 | O198: 2.1 | P198: 6.5 | Q198: 11.7 | R198: 16.8 | S198: 19.5
A200: Intenzita slunečního záření | H200: leden | I200: únor | J200: březen | K200: duben | L200: květen | M200: červen | N200: červenec | O200: srpen | P200: září | Q200: říjen | R200: listopad | S200: prosinec
A201: S | D201: Is | E201: [kWh/m2] | H201: =Data!O4 -> 8.2 | I201: =Data!P4 -> 13.4 | J201: =Data!Q4 -> 25.3 | K201: =Data!R4 -> 36 | L201: =Data!S4 -> 49.1 | M201: =Data!T4 -> 51.8 | N201: =Data!U4 -> 51.3 | O201: =Data!V4 -> 42.4 | P201: =Data!W4 -> 28.8 | Q201: =Data!X4 -> 18.6 | R201: =Data!Y4 -> 9.4 | S201: =Data!Z4 -> 6
A202: J | D202: Is | E202: [kWh/m2] | H202: =Data!O5 -> 34.2 | I202: =Data!P5 -> 51.1 | J202: =Data!Q5 -> 74.4 | K202: =Data!R5 -> 85.7 | L202: =Data!S5 -> 87 | M202: =Data!T5 -> 75.6 | N202: =Data!U5 -> 78.1 | O202: =Data!V5 -> 96 | P202: =Data!W5 -> 77.8 | Q202: =Data!X5 -> 74.4 | R202: =Data!Y5 -> 45.4 | S202: =Data!Z5 -> 29
A203: V | D203: Is | E203: [kWh/m2] | H203: =Data!O6 -> 14.1 | I203: =Data!P6 -> 25.5 | J203: =Data!Q6 -> 46.9 | K203: =Data!R6 -> 74.2 | L203: =Data!S6 -> 87 | M203: =Data!T6 -> 90 | N203: =Data!U6 -> 84.1 | O203: =Data!V6 -> 80.4 | P203: =Data!W6 -> 53.3 | Q203: =Data!X6 -> 38.7 | R203: =Data!Y6 -> 18 | S203: =Data!Z6 -> 11.2
A204: Z | D204: Is | E204: [kWh/m2] | H204: =Data!O7 -> 14.1 | I204: =Data!P7 -> 25.5 | J204: =Data!Q7 -> 46.9 | K204: =Data!R7 -> 74.2 | L204: =Data!S7 -> 87 | M204: =Data!T7 -> 90 | N204: =Data!U7 -> 84.1 | O204: =Data!V7 -> 80.4 | P204: =Data!W7 -> 53.3 | Q204: =Data!X7 -> 38.7 | R204: =Data!Y7 -> 18 | S204: =Data!Z7 -> 11.2
A205: H | D205: Is | E205: [kWh/m2] | H205: =Data!O8 -> 20.8 | I205: =Data!P8 -> 37 | J205: =Data!Q8 -> 72.2 | K205: =Data!R8 -> 113.8 | L205: =Data!S8 -> 148.8 | M205: =Data!T8 -> 146.2 | N205: =Data!U8 -> 144.3 | O205: =Data!V8 -> 136.2 | P205: =Data!W8 -> 87.1 | Q205: =Data!X8 -> 56.5 | R205: =Data!Y8 -> 25.2 | S205: =Data!Z8 -> 14.9
A207: Solární zisky | H207: leden | I207: únor | J207: březen | K207: duben | L207: květen | M207: červen | N207: červenec | O207: srpen | P207: září | Q207: říjen | R207: listopad | S207: prosinec
A208: S | D208: Qs | E208: [kWh] | G208: =SUM(H208:S208) -> 0 | H208: =H201*$G$190 -> 0 | I208: =I201*$G$190 -> 0 | J208: 0 | K208: 0 | L208: 0 | M208: 0 | N208: 0 | O208: 0 | P208: 0 | Q208: 0 | R208: 0 | S208: 0
A209: J | D209: Qs | E209: [kWh] | G209: =SUM(H209:S209) -> 0 | H209: =H202*$H$190 -> 0 | I209: =I202*$H$190 -> 0 | J209: 0 | K209: 0 | L209: 0 | M209: 0 | N209: 0 | O209: 0 | P209: 0 | Q209: 0 | R209: 0 | S209: 0
A210: V | D210: Qs | E210: [kWh] | G210: =SUM(H210:S210) -> 0 | H210: =H203*$I$190 -> 0 | I210: =I203*$I$190 -> 0 | J210: 0 | K210: 0 | L210: 0 | M210: 0 | N210: 0 | O210: 0 | P210: 0 | Q210: 0 | R210: 0 | S210: 0
A211: Z | D211: Qs | E211: [kWh] | G211: =SUM(H211:S211) -> 0 | H211: =H204*$J$190 -> 0 | I211: =I204*$J$190 -> 0 | J211: 0 | K211: 0 | L211: 0 | M211: 0 | N211: 0 | O211: 0 | P211: 0 | Q211: 0 | R211: 0 | S211: 0
A212: H | D212: Qs | E212: [kWh] | G212: =SUM(H212:S212) -> 0 | H212: =H205*$K$190 -> 0 | I212: =I205*$K$190 -> 0 | J212: 0 | K212: 0 | L212: 0 | M212: 0 | N212: 0 | O212: 0 | P212: 0 | Q212: 0 | R212: 0 | S212: 0
A214: Celkové tepelné zisky | H214: leden | I214: únor | J214: březen | K214: duben | L214: květen | M214: červen | N214: červenec | O214: srpen | P214: září | Q214: říjen | R214: listopad | S214: prosinec
A215: Solární zisky | D215: Qs | E215: [kWh] | G215: =SUM(H215:S215) -> 0 | H215: =SUM(H208:H212) -> 0 | I215: =SUM(I208:I212) -> 0 | J215: 0 | K215: 0 | L215: 0 | M215: 0 | N215: 0 | O215: 0 | P215: 0 | Q215: 0 | R215: 0 | S215: 0
E216: [GJ] | G216: 0 | H216: =H215/(1000/3.6) -> 0 | I216: 0 | J216: 0 | K216: 0 | L216: 0 | M216: 0 | N216: 0 | O216: 0 | P216: 0 | Q216: 0 | R216: 0 | S216: 0
A217: Vnitřní zisky | D217: Qi | E217: [kWh] | H217: =$G$160*H196/1000 ->  | I217: =$G$160*I196/1000 -> 
E218: [GJ] | H218: =H217/(1000/3.6) ->  | I218: =I217/(1000/3.6) -> 
A219: Celkové zisky | D219: Qg | E219: [kWh] | H219: =H215+H217 -> 
E220: [GJ] | H220: =H219/(1000/3.6) ->  | I220: =I219/(1000/3.6) -> 
A221: Využitelnost tepelných zisků
A222: Tepelná ztráta budovy | D222: Ql | E222: [kWh] | H222: =H133 -> 0 | I222: =I133 -> 0 | J222: 0 | K222: 0 | L222: 0 | M222: 0 | N222: 0 | O222: 0 | P222: 0 | Q222: 0 | R222: 0 | S222: 0
A223: Poměr zisků a ztrát | D223: g | E223: [ - ] | H223: =H219/H222 ->  | I223: =I219/I222 -> 
A224: Parametr | D224: a0 | E224: [ - ] | G224: 1
A225: Časová konstanta zóny - 0 | D225: t0 | E225: [hod] | G225: 15
A226: Parametr | D226: a | E226: [ - ] | G226: =G224+(G141/G225) -> 
A227: Stupeň využití zisků | D227: h | E227: [ - ] | H227: =IF(H197>$G$120,0,IF(H223=1,$G226/($G226+1),(1-H223^$G226)/(1-H223^($G226+1)))) ->  | I227: =IF(I197>$G$120,0,IF(I223=1,$G226/($G226+1),(1-I223^$G226)/(1-I223^($G226+1)))) -> 
A229: Využitelné zisky
A231: Využ. solární zisky | D231: Qs | E231: [kWh] | G231: =SUM(H231:S231) ->  | H231: =H227*H215 -> 
A232: Využ. vnitřní zisky | D232: Qi | E232: [kWh] | G232: =SUM(H232:S232) ->  | H232: =H227*H217 -> 
A233: Využ. celkové zisky | D233: Qg | E233: [kWh] | G233: =SUM(H233:S233) ->  | H233: =H232+H231 ->  | I233: =I232+I231 -> 
A235: Měsíc | H235: leden | I235: únor | J235: březen | K235: duben | L235: květen | M235: červen | N235: červenec | O235: srpen | P235: září | Q235: říjen | R235: listopad | S235: prosinec
A236: Tepelná ztráta | D236: Ql | E236: [kWh] | G236: =SUM(H236:S236) -> 0 | H236: =H222 -> 0 | I236: 0 | J236: 0 | K236: 0 | L236: 0 | M236: 0 | N236: 0 | O236: 0 | P236: 0 | Q236: 0 | R236: 0 | S236: 0
A237: Celkové zisky | D237: Qg | E237: [kWh] | G237: =SUM(H237:S237) ->  | H237: =H219 -> 
A238: Využitelné solární zisky | D238: Qs | E238: [kWh] | H238: =H231 ->  | I238: =I231 -> 
A239: Využitelné vnitřní zisky | D239: Qi | E239: [kWh] | G239: =SUM(H239:S239) ->  | H239: =H232 -> 
A240: Využitelné celkové zisky | D240: Qg | E240: [kWh] | H240: =H233 -> 
A241: Potřeba tepla na vytápění | D241: e | E241: [kWh] | G241: =SUM(H241:S241) ->  | H241: =H236-H240 ->  | I241: =I236-I240 ->  | J241: =J236-J240 ->  | K241: =K236-K240 ->  | L241: =L236-L240 ->  | M241: =M236-M240 -> 
A242: Potřeba tepla na vytápění | E242: [GJ] | G242: =SUM(H242:S242) ->  | H242: =H241/(1000/3.6) ->  | I242: =I241/(1000/3.6) -> 
A243: Potřeba tepla na vytápění | E243: [MWh] | G243: =G241/1000 -> 
A244: Měrná potřeba tepla na vytápění | D244: eA | E244: [kWh/(m2.a)] | G244: =G241/'1. PENB'!I20 -> 
A245: Zisky pokrývají ze ztrát | E245: % | G245: =G240/G236 -> 
H246: leden | I246: únor | J246: březen | K246: duben | L246: květen | M246: červen | N246: červenec | O246: srpen | P246: září | Q246: říjen | R246: listopad | S246: prosinec
A247: Potřeba tepla na vytápění | D247: e | E247: [MWh] | G247: =SUM(H247:S247) ->  | H247: =H241/1000 ->  | I247: =I241/1000 -> 
A249: Zbývající produkce energie solárnimi kolektory (pro vytápění) | D249: Qe,sc | E249: [MWh] | G249: =SUM(H249:S249) -> 0 | H249: =IF(Data!$I$672<=2,0,IF((H394-H392)>0,0,H394-H392)) -> 0 | I249: =IF(Data!$I$672<=2,0,IF((I394-I392)>0,0,I394-I392)) -> 0 | J249: =IF(Data!$I$672<=2,0,IF((J394-J392)>0,0,J394-J392)) -> 0 | K249: =IF(Data!$I$672<=2,0,IF((K394-K392)>0,0,K394-K392)) -> 0 | L249: =IF(Data!$I$672<=2,0,IF((L394-L392)>0,0,L394-L392)) -> 0 | M249: =IF(Data!$I$672<=2,0,IF((M394-M392)>0,0,M394-M392)) -> 0 | N249: =IF(Data!$I$672<=2,0,IF((N394-N392)>0,0,N394-N392)) -> 0 | O249: =IF(Data!$I$672<=2,0,IF((O394-O392)>0,0,O394-O392)) -> 0 | P249: =IF(Data!$I$672<=2,0,IF((P394-P392)>0,0,P394-P392)) -> 0 | Q249: =IF(Data!$I$672<=2,0,IF((Q394-Q392)>0,0,Q394-Q392)) -> 0 | R249: =IF(Data!$I$672<=2,0,IF((R394-R392)>0,0,R394-R392)) -> 0 | S249: =IF(Data!$I$672<=2,0,IF((S394-S392)>0,0,S394-S392)) -> 0
D250: e | E250: [MWh] | H250: =IF((H247+H249)<0,0,H247+H249) ->  | I250: =IF((I247+I249)<0,0,I247+I249) -> 
A254: 1.zdroj - Účinnost výroby energie zdrojem tepla | D254: ηH,gen | E254: % | G254: =IF(Data!R182="",0,Data!R182) -> 0
A255: 1.zdroj - Účinnost výroby energie zdrojem tepla TČ | D255: COP | E255: [ - ] | G255: =Data!S182 -> 
... 167 more rows

Sheet Citlivostni analyza 1) (hidden)
B2: Geometrické charakteristiky budovy
C3: 0.7 | D3: 0.85 | E3: 1 | F3: 1.15 | G3: 1.3
B4: Objem budovy V | C4: =$E$4*C3 -> 0 | D4: =$E$4*D3 -> 0 | E4: =SUM('1. PENB'!I13:I15) -> 0 | F4: =$E$4*F3 -> 0 | G4: =$E$4*G3 -> 0
C6: 0.7 | D6: 0.85 | E6: 1 | F6: 1.15 | G6: 1.3
B7: Celková plocha obálky budovy A | C7: =$E$7*C6 -> 0 | D7: =$E$7*D6 -> 0 | E7: =SUM('1. PENB'!I16:I18) -> 0 | F7: =$E$7*F6 -> 0 | G7: =$E$7*G6 -> 0
C9: 0.7 | D9: 0.85 | E9: 1 | F9: 1.15 | G9: 1.3
B10: Objemový faktor tvaru budovy A/V | C10: =$E$10*C9 ->  | D10: =$E$10*D9 ->  | E10: =SUM('1. PENB'!I19) ->  | F10: =$E$10*F9 ->  | G10: =$E$10*G9 -> 
C12: 0.7 | D12: 0.85 | E12: 1 | F12: 1.15 | G12: 1.3
B13: Celková energeticky vztažná plocha budovy Ac | C13: =$E$13*C12 -> 0 | D13: =$E$13*D12 -> 0 | E13: =SUM('1. PENB'!I20) -> 0 | F13: =$E$13*F12 -> 0 | G13: =$E$13*G12 -> 0
C15: 0.7 | D15: 0.85 | E15: 1 | F15: 1.15 | G15: 1.3
B16: Ht | C16: =$E$16*C15 -> 0 | D16: =$E$16*D15 -> 0 | E16: =SUM('1. PENB'!I31) -> 0 | F16: =$E$16*F15 -> 0 | G16: =$E$16*G15 -> 0
C18: 0.7 | D18: 0.85 | E18: 1 | F18: 1.15 | G18: 1.3
B19: Uem | C19: =$E$19*C18 -> 0 | D19: =$E$19*D18 -> 0 | E19: =SUM('4. Tepelně tech. parametry'!H33:H34) -> 0 | F19: =$E$19*F18 -> 0 | G19: =$E$19*G18 -> 0

Sheet Citlivostni analyza 2) (hidden)
A2: TZB systémy
A3: b.1.a) vytápění
B5: 0.7 | C5: 0.9 | D5: 1 | E5: 1.1 | F5: 1.3
A6: 1.zdroj - ηH,gen | B6: =$D$6*B5 -> 0 | C6: =$D$6*C5 -> 0 | D6: =SUM('6. Vyhodnocení'!N12:O12) -> 0 | E6: =$D$6*E5 -> 0 | F6: =$D$6*F5 -> 0
B8: 0.7 | C8: 0.9 | D8: 1 | E8: 1.1 | F8: 1.3
A9: 1.zdroj - COP | B9: =$D$9*B8 -> 0 | C9: =$D$9*C8 -> 0 | D9: =SUM('6. Vyhodnocení'!P12) -> 0 | E9: =$D$9*E8 -> 0 | F9: =$D$9*F8 -> 0
B11: 0.7 | C11: 0.9 | D11: 1 | E11: 1.1 | F11: 1.3
A12: 2.zdroj - ηH,gen | B12: =$D$12*B11 -> 0 | C12: =$D$12*C11 -> 0 | D12: =SUM('6. Vyhodnocení'!N13:O13) -> 0 | E12: =$D$12*E11 -> 0 | F12: =$D$12*F11 -> 0
B14: 0.7 | C14: 0.9 | D14: 1 | E14: 1.1 | F14: 1.3
A15: 2.zdroj - COP | B15: =$D$15*B14 -> 0 | C15: =$D$15*C14 -> 0 | D15: =SUM('6. Vyhodnocení'!P13) -> 0 | E15: =$D$15*E14 -> 0 | F15: =$D$15*F14 -> 0
B17: 0.7 | C17: 0.9 | D17: 1 | E17: 1.1 | F17: 1.3
A18: 3.zdroj - ηH,gen | B18: =$D$18*B17 -> 0 | C18: =$D$18*C17 -> 0 | D18: =SUM('6. Vyhodnocení'!N14:O14) -> 0 | E18: =$D$18*E17 -> 0 | F18: =$D$18*F17 -> 0
B20: 0.7 | C20: 0.9 | D20: 1 | E20: 1.1 | F20: 1.3
A21: 3.zdroj - COP | B21: =$D$21*B20 -> 0 | C21: =$D$21*C20 -> 0 | D21: =SUM('6. Vyhodnocení'!P14) -> 0 | E21: =$D$21*E20 -> 0 | F21: =$D$21*F20 -> 0
B23: 0.7 | C23: 0.9 | D23: 1 | E23: 1.1 | F23: 1.3
A24: 1.zdroj - účinnost distribuce | B24: =$D$24*B23 -> 0 | C24: =$D$24*C23 -> 0 | D24: =SUM('6. Vyhodnocení'!Q12:R12) -> 0 | E24: =$D$24*E23 -> 0 | F24: =$D$24*F23 -> 0
B26: 0.7 | C26: 0.9 | D26: 1 | E26: 1.1 | F26: 1.3
A27: 2.zdroj - účinnost distribuce | B27: =$D$27*B26 -> 0 | C27: =$D$27*C26 -> 0 | D27: =SUM('6. Vyhodnocení'!Q13:R13) -> 0 | E27: =$D$27*E26 -> 0 | F27: =$D$27*F26 -> 0
B29: 0.7 | C29: 0.9 | D29: 1 | E29: 1.1 | F29: 1.3
A30: 3.zdroj - účinnost distribuce | B30: =$D$30*B29 -> 0 | C30: =$D$30*C29 -> 0 | D30: =SUM('6. Vyhodnocení'!Q14:R14) -> 0 | E30: =$D$30*E29 -> 0 | F30: =$D$30*F29 -> 0
B32: 0.7 | C32: 0.9 | D32: 1 | E32: 1.1 | F32: 1.3
A33: 1.zdroj - účinnost sdílení | B33: =$D$33*B32 -> 0 | C33: =$D$33*C32 -> 0 | D33: =SUM('6. Vyhodnocení'!S12:T12) -> 0 | E33: =$D$33*E32 -> 0 | F33: =$D$33*F32 -> 0
B35: 0.7 | C35: 0.9 | D35: 1 | E35: 1.1 | F35: 1.3
A36: 2.zdroj - účinnost sdílení | B36: =$D$36*B35 -> 0 | C36: =$D$36*C35 -> 0 | D36: =SUM('6. Vyhodnocení'!S13:T13) -> 0 | E36: =$D$36*E35 -> 0 | F36: =$D$36*F35 -> 0
B38: 0.7 | C38: 0.9 | D38: 1 | E38: 1.1 | F38: 1.3
A39: 3.zdroj - účinnost sdílení | B39: =$D$39*B38 -> 0 | C39: =$D$39*C38 -> 0 | D39: =SUM('6. Vyhodnocení'!S14:T14) -> 0 | E39: =$D$39*E38 -> 0 | F39: =$D$39*F38 -> 0 | P39: kwh/(m2.rok)
B41: 0.7 | C41: 0.9 | D41: 1 | E41: 1.1 | F41: 1.3 | N41: 0.7 | O41: 0.9 | P41: 1 | Q41: 1.1 | R41: 1.3
A42: Potřeba energie na vytápění hodnocené budovy | B42: =$D$42*B41 -> 0 | C42: =$D$42*C41 -> 0 | D42: =SUM('6. Vyhodnocení'!Q17:R17) -> 0 | E42: =$D$42*E41 -> 0 | F42: =$D$42*F41 -> 0 | M42: Potřeba energie na vytápění hodnocené budovy | N42: =$P$42*N41 -> 0 | O42: =$P$42*O41 -> 0 | P42: =SUM('6. Vyhodnocení'!L17:M17) -> 0 | Q42: =$P$42*Q41 -> 0 | R42: =$P$42*R41 -> 0
B44: 0.7 | C44: 0.9 | D44: 1 | E44: 1.1 | F44: 1.3 | N44: 0.7 | O44: 0.9 | P44: 1 | Q44: 1.1 | R44: 1.3
A45: Vypočtená spotřeba energie na vytápění hodnocené budovy | B45: =$D$45*B44 -> 0 | C45: =$D$45*C44 -> 0 | D45: =SUM('6. Vyhodnocení'!Q19:R19) -> 0 | E45: =$D$45*E44 -> 0 | F45: =$D$45*F44 -> 0 | M45: Vypočtená spotřeba energie na vytápění hodnocené budovy | N45: =$P$45*N44 -> 0 | O45: =$P$45*O44 -> 0 | P45: =SUM('6. Vyhodnocení'!L19:M19) -> 0 | Q45: =$P$45*Q44 -> 0 | R45: =$P$45*R44 -> 0
A47: b.2.a) chlazení
B48: 0.7 | C48: 0.9 | D48: 1 | E48: 1.1 | F48: 1.3
A49: EERC,gen | B49: =$D$49*B48 -> 0 | C49: =$D$49*C48 -> 0 | D49: =SUM('6. Vyhodnocení'!N27:P27) -> 0 | E49: =$D$49*E48 -> 0 | F49: =$D$49*F48 -> 0
B51: 0.7 | C51: 0.9 | D51: 1 | E51: 1.1 | F51: 1.3
A52: účinnost distribuce | B52: =$D$52*B51 -> 0 | C52: =$D$52*C51 -> 0 | D52: =SUM('6. Vyhodnocení'!Q27:R27) -> 0 | E52: =$D$52*E51 -> 0 | F52: =$D$52*F51 -> 0
B54: 0.7 | C54: 0.9 | D54: 1 | E54: 1.1 | F54: 1.3
A55: účinnost sdílení | B55: =$D$55*B54 -> 0 | C55: =$D$55*C54 -> 0 | D55: =SUM('6. Vyhodnocení'!S27:T27) -> 0 | E55: =$D$55*E54 -> 0 | F55: =$D$55*F54 -> 0 | P55: kwh/(m2.rok)
B57: 0.7 | C57: 0.9 | D57: 1 | E57: 1.1 | F57: 1.3 | N57: 0.7 | O57: 0.9 | P57: 1 | Q57: 1.1 | R57: 1.3
A58: Potřeba energie na chlazení hodnocené budovy | B58: =$D$58*B57 -> 0 | C58: =$D$58*C57 -> 0 | D58: =SUM('6. Vyhodnocení'!Q29:R29) -> 0 | E58: =$D$58*E57 -> 0 | F58: =$D$58*F57 -> 0 | M58: Potřeba energie na chlazení hodnocené budovy | N58: =$P$58*N57 -> 0 | O58: =$P$58*O57 -> 0 | P58: =SUM('6. Vyhodnocení'!L29:M29) -> 0 | Q58: =$P$58*Q57 -> 0 | R58: =$P$58*R57 -> 0
B59: 0.7 | C59: 0.9 | D59: 1 | E59: 1.1 | F59: 1.3 | N59: 0.7 | O59: 0.9 | P59: 1 | Q59: 1.1 | R59: 1.3
A60: Vypočtená spotřeba energie na chlazení hodnocené budovy | B60: =$D$60*B59 -> 0 | C60: =$D$60*C59 -> 0 | D60: =SUM('6. Vyhodnocení'!Q31:R31) -> 0 | E60: =$D$60*E59 -> 0 | F60: =$D$60*F59 -> 0 | M60: Vypočtená spotřeba energie na chlazení hodnocené budovy | N60: =$P$60*N59 -> 0 | O60: =$P$60*O59 -> 0 | P60: =SUM('6. Vyhodnocení'!L31:M31) -> 0 | Q60: =$P$60*Q59 -> 0 | R60: =$P$60*R59 -> 0
A63: b.3) větrání
B64: 0.7 | C64: 0.9 | D64: 1 | E64: 1.1 | F64: 1.3
A65: Měrný příkon ventilátorů | B65: =$D$65*B64 -> 0 | C65: =$D$65*C64 -> 0 | D65: =SUM('6. Vyhodnocení'!S39:T39) -> 0 | E65: =$D$65*E64 -> 0 | F65: =$D$65*F64 -> 0 | P65: kwh/(m2.rok)
B67: 0.7 | C67: 0.9 | D67: 1 | E67: 1.1 | F67: 1.3 | N67: 0.7 | O67: 0.9 | P67: 1 | Q67: 1.1 | R67: 1.3
A68: Vypočtená spotřeba energie na nucené větrání | B68: =$D$68*B67 -> 0 | C68: =$D$68*C67 -> 0 | D68: =SUM('6. Vyhodnocení'!Q41:R41) -> 0 | E68: =$D$68*E67 -> 0 | F68: =$D$68*F67 -> 0 | M68: Vypočtená spotřeba energie na nucené větrání | N68: =$P$68*N67 -> 0 | O68: =$P$68*O67 -> 0 | P68: =SUM('6. Vyhodnocení'!L41:M41) -> 0 | Q68: =$P$68*Q67 -> 0 | R68: =$P$68*R67 -> 0
A71: b.5.a) příprava teplé vody (TV)
B72: 0.7 | C72: 0.9 | D72: 1 | E72: 1.1 | F72: 1.3
A73: 1.zdroj - ηH,gen | B73: =$D$73*B72 -> 0 | C73: =$D$73*C72 -> 0 | D73: =SUM('6. Vyhodnocení'!N60:O60) -> 0 | E73: =$D$73*E72 -> 0 | F73: =$D$73*F72 -> 0
B75: 0.7 | C75: 0.9 | D75: 1 | E75: 1.1 | F75: 1.3
A76: 1.zdroj - COP | B76: =$D$76*B75 -> 0 | C76: =$D$76*C75 -> 0 | D76: =SUM('6. Vyhodnocení'!P60) -> 0 | E76: =$D$76*E75 -> 0 | F76: =$D$76*F75 -> 0
B78: 0.7 | C78: 0.9 | D78: 1 | E78: 1.1 | F78: 1.3
A79: 2.zdroj - ηH,gen | B79: =$D$79*B78 -> 0 | C79: =$D$79*C78 -> 0 | D79: =SUM('6. Vyhodnocení'!N61:O61) -> 0 | E79: =$D$79*E78 -> 0 | F79: =$D$79*F78 -> 0
B81: 0.7 | C81: 0.9 | D81: 1 | E81: 1.1 | F81: 1.3
A82: 2.zdroj - COP | B82: =$D$82*B81 -> 0 | C82: =$D$82*C81 -> 0 | D82: =SUM('6. Vyhodnocení'!P61) -> 0 | E82: =$D$82*E81 -> 0 | F82: =$D$82*F81 -> 0
B84: 0.7 | C84: 0.9 | D84: 1 | E84: 1.1 | F84: 1.3
A85: 3.zdroj - ηH,gen | B85: =$D$85*B84 -> 0 | C85: =$D$85*C84 -> 0 | D85: =SUM('6. Vyhodnocení'!N62:O62) -> 0 | E85: =$D$85*E84 -> 0 | F85: =$D$85*F84 -> 0
B87: 0.7 | C87: 0.9 | D87: 1 | E87: 1.1 | F87: 1.3
A88: 3.zdroj - COP | B88: =$D$88*B87 -> 0 | C88: =$D$88*C87 -> 0 | D88: =SUM('6. Vyhodnocení'!P62) -> 0 | E88: =$D$88*E87 -> 0 | F88: =$D$88*F87 -> 0
B90: 0.7 | C90: 0.9 | D90: 1 | E90: 1.1 | F90: 1.3
A91: 1.zdroj - Měrná ztráta zásobníku | B91: =$D$91*B90 -> 0 | C91: =$D$91*C90 -> 0 | D91: =SUM('6. Vyhodnocení'!Q60:R60) -> 0 | E91: =$D$91*E90 -> 0 | F91: =$D$91*F90 -> 0
B93: 0.7 | C93: 0.9 | D93: 1 | E93: 1.1 | F93: 1.3
A94: 2.zdroj - Měrná ztráta zásobníku | B94: =$D$94*B93 -> 0 | C94: =$D$94*C93 -> 0 | D94: =SUM('6. Vyhodnocení'!Q61:R61) -> 0 | E94: =$D$94*E93 -> 0 | F94: =$D$94*F93 -> 0
B96: 0.7 | C96: 0.9 | D96: 1 | E96: 1.1 | F96: 1.3
A97: 3.zdroj - Měrná ztráta zásobníku | B97: =$D$97*B96 -> 0 | C97: =$D$97*C96 -> 0 | D97: =SUM('6. Vyhodnocení'!Q62:R62) -> 0 | E97: =$D$97*E96 -> 0 | F97: =$D$97*F96 -> 0 | P97: kwh/(m2.rok)
B99: 0.7 | C99: 0.9 | D99: 1 | E99: 1.1 | F99: 1.3 | N99: 0.7 | O99: 0.9 | P99: 1 | Q99: 1.1 | R99: 1.3
A100: Potřeba energie na přípravu teplé vody | B100: =$D$100*B99 -> 0 | C100: =$D$100*C99 -> 0 | D100: =SUM('6. Vyhodnocení'!Q65:R65) -> 0 | E100: =$D$100*E99 -> 0 | F100: =$D$100*F99 -> 0 | M100: Potřeba energie na přípravu teplé vody | N100: =$P$100*N99 -> 0 | O100: =$P$100*O99 -> 0 | P100: =SUM('6. Vyhodnocení'!L65:M65) -> 0 | Q100: =$P$100*Q99 -> 0 | R100: =$P$100*R99 -> 0
B102: 0.7 | C102: 0.9 | D102: 1 | E102: 1.1 | F102: 1.3 | N102: 0.7 | O102: 0.9 | P102: 1 | Q102: 1.1 | R102: 1.3
A103: Vypočtená spotřeba energie na přípravu teplé vody | B103: =$D$103*B102 -> 0 | C103: =$D$103*C102 -> 0 | D103: =SUM('6. Vyhodnocení'!Q67:R67) -> 0 | E103: =$D$103*E102 -> 0 | F103: =$D$103*F102 -> 0 | M103: Vypočtená spotřeba energie na přípravu teplé vody | N103: =$P$103*N102 -> 0 | O103: =$P$103*O102 -> 0 | P103: =SUM('6. Vyhodnocení'!L67:M67) -> 0 | Q103: =$P$103*Q102 -> 0 | R103: =$P$103*R102 -> 0
A106: b.6) osvětlení
B107: 0.7 | C107: 0.9 | D107: 1 | E107: 1.1 | F107: 1.3
A108: Průměrný příkon osvětlení | B108: =$D$108*B107 ->  | C108: =$D$108*C107 ->  | D108: =SUM('6. Vyhodnocení'!#REF!) ->  | E108: =$D$108*E107 ->  | F108: =$D$108*F107 -> 
B110: 0.7 | C110: 0.9 | D110: 1 | E110: 1.1 | F110: 1.3
A111: Závěrečná tabulka | B111: =$D$111*B110 ->  | C111: =$D$111*C110 ->  | D111: =SUM('6. Vyhodnocení'!#REF!) ->  | E111: =$D$111*E110 ->  | F111: =$D$111*F110 -> 
A113: d) rozdělení dílčích dodaných energií, celkové primární energie a neobnovitelné primární energie podle energonositelů | P113: kwh/(m2.rok)
B114: 0.7 | C114: 0.9 | D114: 1 | E114: 1.1 | F114: 1.3 | N114: 0.7 | O114: 0.9 | P114: 1 | Q114: 1.1 | R114: 1.3
A115: Celková dodaná energie | B115: =$D$115*B114 -> 0 | C115: =$D$115*C114 -> 0 | D115: =SUM('6. Vyhodnocení'!Q70:R70) -> 0 | E115: =$D$115*E114 -> 0 | F115: =$D$115*F114 -> 0 | M115: Celková dodaná energie | N115: =$P$115*N114 -> 0 | O115: =$P$115*O114 -> 0 | P115: =SUM('6. Vyhodnocení'!L70:M70) -> 0 | Q115: =$P$115*Q114 -> 0 | R115: =$P$115*R114 -> 0
B117: 0.7 | C117: 0.9 | D117: 1 | E117: 1.1 | F117: 1.3 | N117: 0.7 | O117: 0.9 | P117: 1 | Q117: 1.1 | R117: 1.3
A118: Celková primární energie | B118: =$D$118*B117 -> 0 | C118: =$D$118*C117 -> 0 | D118: =SUM('6. Vyhodnocení'!Q71:R71) -> 0 | E118: =$D$118*E117 -> 0 | F118: =$D$118*F117 -> 0 | M118: Celková primární energie | N118: =$P$118*N117 -> 0 | O118: =$P$118*O117 -> 0 | P118: =SUM('6. Vyhodnocení'!L71:M71) -> 0 | Q118: =$P$118*Q117 -> 0 | R118: =$P$118*R117 -> 0
B120: 0.7 | C120: 0.9 | D120: 1 | E120: 1.1 | F120: 1.3 | N120: 0.7 | O120: 0.9 | P120: 1 | Q120: 1.1 | R120: 1.3
A121: Neobnovitelná primární energie | B121: =$D$121*B120 -> 0 | C121: =$D$121*C120 -> 0 | D121: =SUM('6. Vyhodnocení'!Q72:R72) -> 0 | E121: =$D$121*E120 -> 0 | F121: =$D$121*F120 -> 0 | M121: Neobnovitelná primární energie | N121: =$P$121*N120 -> 0 | O121: =$P$121*O120 -> 0 | P121: =SUM('6. Vyhodnocení'!L72:M72) -> 0 | Q121: =$P$121*Q120 -> 0 | R121: =$P$121*R120 -> 0
B123: 0.7 | C123: 0.9 | D123: 1 | E123: 1.1 | F123: 1.3
A124: Využití obnovitelných zdrojů energie z hlediska primární energie | B124: =$D$124*B123 -> 0 | C124: =$D$124*C123 -> 0 | D124: =SUM('6. Vyhodnocení'!Q73:R73) -> 0 | E124: =$D$124*E123 -> 0 | F124: =$D$124*F123 -> 0
